Period,Months,Unique Record Identifier,Account,Account Code Description,Supplier Name,Amount 
202006,Apr,2.02006E+11,R1118,Counselling ,Heather Pennefather,"2,150.00"
202006,Apr,2.02006E+11,R1118,Counselling ,Heather Pennefather,"1,600.00"
202006,Apr,2.02006E+11,R1110,Redacted: Personal Information,Redacted,625
202006,Apr,2.02006E+11,R0500,Agency Staff,Comensura Ltd,"1,586.10"
202006,Apr,2.02006E+11,R0500,Agency Staff,Comensura Ltd,847.43
202006,Apr,2.02006E+11,R0500,Agency Staff,Comensura Ltd,"1,032.80"
202006,Apr,2.02006E+11,R0500,Agency Staff,Comensura Ltd,"1,061.85"
202006,Apr,2.02006E+11,R0500,Agency Staff,Comensura Ltd,730.78
202006,Apr,2.02006E+11,R0500,Agency Staff,Comensura Ltd,746.4
202006,Apr,2.02006E+11,R0500,Agency Staff,Comensura Ltd,"1,032.80"
202006,Apr,2.02006E+11,R0500,Agency Staff,Comensura Ltd,"4,438.90"
202006,Apr,2.02006E+11,R0500,Agency Staff,Comensura Ltd,926.03
202006,Apr,2.02006E+11,R0500,Agency Staff,Comensura Ltd,505.08
202006,Apr,2.02006E+11,R0500,Agency Staff,Comensura Ltd,"1,032.80"
202006,Apr,2.02006E+11,R1110,Force Doctor Fees,Comensura Ltd,"6,124.72"
202006,Apr,2.02006E+11,R6750,Consultants Fees - Other,Cleardata UK Ltd,"2,065.18"
202006,Apr,2.02006E+11,R1138,Psychological Screening,NTA Psychological Screening Ltd,"1,590.00"
202006,Apr,2.02006E+11,R1138,Psychological Screening,NTA Psychological Screening Ltd,600
202006,Apr,2.02006E+11,R1070,External Assessment Centres,College of Policing (NPIA),"6,074.24"
202006,Apr,2.02006E+11,R1070,External Assessment Centres,College of Policing (NPIA),"2,404.61"
202006,Apr,2.02006E+11,Z2123,Returned Payments - Clearance in the Year (Expenditure),Black Bag Technologies,"1,308.00"
202006,Apr,2.02006E+11,Z2123,Returned Payments - Clearance in the Year (Expenditure),Ciceley Commercials,"40,278.10"
202006,Apr,2.02006E+11,R4880,Ex-Gratia Payments,Exgratia Payments,650
202006,Apr,2.02006E+11,R6710,Subscriptions,Lake District Search and Mountain Rescue Association,"12,400.00"
202006,Apr,2.02006E+11,R6710,Subscriptions,Police and Crime Commissioner for Cheshire,"2,000.00"
202006,Apr,2.02006E+11,R7290,Other Third Party Payments,Police and Crime Commissioner for North Yorkshire,"2,135.00"
202006,Apr,2.02006E+11,Z2123,Returned Payments - Clearance in the Year (Expenditure),Diligence International LLC,"5,760.00"
202006,Apr,2.02006E+11,R6757,Consultants Fees - Finance,Link Treasury Services Ltd,"6,750.00"
202006,Apr,2.02006E+11,R6710,Subscriptions,The Copyright Licensing Agency Ltd,"1,975.20"
202006,Apr,2.02006E+11,R6710,Subscriptions,The Police ICT Company Ltd,"60,000.00"
202006,Apr,2.02006E+11,R6710,Subscriptions,UK Oracle User Group,899
202006,Apr,2.02006E+11,Z2114,Police Property Act Fund - Transactions Money Out (Total Expenditure),Zest Cumbria cic,"2,500.00"
202006,Apr,2.02006E+11,R7380,Settlement of 3rd Party Claims for damage to property / vehicles,Gallagher Bassett,"4,129.08"
202006,Apr,2.02006E+11,R6824,NatWest Corporate Card Payments,Natwest Corporate Card,"3,761.24"
202006,Apr,2.02006E+11,Z2123,Returned Payments - Clearance in the Year (Expenditure),Power Tecnique Limited,"1,488.00"
202006,Apr,2.02006E+11,Z2123,Returned Payments - Clearance in the Year (Expenditure),Power Tecnique Limited,"-1,195.20"
202006,Apr,2.02006E+11,Z2123,Returned Payments - Clearance in the Year (Expenditure),Power Tecnique Limited,"1,195.20"
202006,Apr,2.02006E+11,Z2123,Returned Payments - Clearance in the Year (Expenditure),Power Tecnique Limited,"1,909.20"
202006,Apr,2.02006E+11,R7042,Pension Services,XPS Administration Limited T/A XPS Administration,"8,911.17"
202006,Apr,2.02006E+11,R1720,Other Support Function Training,Oracle Corporation UK Limited,"4,155.75"
202006,Apr,2.02006E+11,R6710,Subscriptions,EU Supply Limited,"1,000.00"
202006,Apr,2.02006E+11,R6710,Subscriptions,CPOSA,"3,074.00"
202006,Apr,2.02006E+11,R6710,Subscriptions,CPOSA,"3,074.00"
202006,Apr,2.02006E+11,R7290,Other Third Party Payments,Tellemachus Limited,"33,244.70"
202006,Apr,2.02006E+11,R6710,Subscriptions,Chartered Institute of Public Finance and Accountancy,"15,000.00"
202006,Apr,2.02006E+11,R5975,Other Operational Expenses,Change Grow Live,"5,000.00"
202006,Apr,2.02006E+11,R3660,The information is confidential or would attract an exemption under the Freedom of Information Act e.g. where disclosure could be prejudicial to the commercial interests of any person including the authority ,Redacted,"1,980.00"
202006,Apr,2.02006E+11,R2600,Rent,Reed Rains,750
202006,Apr,2.02006E+11,R5320,Computer Software - Purchase,Cleverbridge,"1,979.00"
202006,Apr,2.02006E+11,R5015,Telephone Charges - Mobile Phones,EE Limited,927.27
202006,Apr,2.02006E+11,R5015,Telephone Charges - Mobile Phones,EE Limited,"4,596.91"
202006,Apr,2.02006E+11,R5015,Telephone Charges - Mobile Phones,EE Limited,"4,594.86"
202006,Apr,2.02006E+11,C5310,Computer Hardware - Purchase,SCC (Specialist Computer Centre),"2,626.00"
202006,Apr,2.02006E+11,R5310,Computer Hardware - Purchase,BT Business Direct Ltd,"7,790.00"
202006,Apr,2.02006E+11,R5325,Computer Software - Maintenance,Sellox Limited,"1,600.00"
202006,Apr,2.02006E+11,R5325,Computer Software - Maintenance,Sellox Limited,"1,600.00"
202006,Apr,2.02006E+11,R5320,Computer Software - Purchase,Red Gate Software Ltd,"3,805.00"
202006,Apr,2.02006E+11,R5325,Computer Software - Maintenance,Red Gate Software Ltd,"8,835.30"
202006,Apr,2.02006E+11,R5325,Computer Software - Maintenance,Force Information Systems Limited,"16,749.00"
202006,Apr,2.02006E+11,R5325,Computer Software - Maintenance,Capita Secure Information Solutions Ltd,"4,335.43"
202006,Apr,2.02006E+11,R5325,Computer Software - Maintenance,Capita Secure Information Solutions Ltd,"4,951.32"
202006,Apr,2.02006E+11,R5325,Computer Software - Maintenance,Capita Secure Information Solutions Ltd,"17,481.72"
202006,Apr,2.02006E+11,R5325,Computer Software - Maintenance,The Police ICT Company Ltd,"37,558.53"
202006,Apr,2.02006E+11,R5325,Computer Software - Maintenance,Micro Systemation Ltd,"2,895.00"
202006,Apr,2.02006E+11,R5215,Radio / Airwave Equipment - Maintenance,Police and Crime Commissioner for Merseyside,"4,000.00"
202006,Apr,2.02006E+11,R5315,Computer Hardware - Maintenance,One Source IT Ltd,"1,994.21"
202006,Apr,2.02006E+11,R5315,Computer Hardware - Maintenance,One Source IT Ltd,"8,950.00"
202006,Apr,2.02006E+11,R5325,Computer Software - Maintenance,Softcat PLC,"50,483.00"
202006,Apr,2.02006E+11,R5120,Networks Private Circuits,Insight Direct (UK) Ltd,"3,817.88"
202006,Apr,2.02006E+11,R5010,Telephone Charges - Landlines,TalkTalk,"2,657.07"
202006,Apr,2.02006E+11,R5315,Computer Hardware - Maintenance,Atos IT Services IT Limited,"8,200.00"
202006,Apr,2.02006E+11,R5325,Computer Software - Maintenance,JML Software Solutions Ltd,"16,139.45"
202006,Apr,2.02006E+11,R1720,Other Support Function Training,MHR International UK LTD,898.98
202006,Apr,2.02006E+11,R5325,Computer Software - Maintenance,MHR International UK LTD,"1,104.00"
202006,Apr,2.02006E+11,R5320,Computer Software - Purchase,Axon Public Safety UK Limited,"213,200.00"
202006,Apr,2.02006E+11,R5325,Computer Software - Maintenance,Axon Public Safety UK Limited,"24,900.00"
202006,Apr,2.02006E+11,R5325,Computer Software - Maintenance,Axon Public Safety UK Limited,"211,700.00"
202006,Apr,2.02006E+11,R5320,Computer Software - Purchase,Griffeye Technologies AB,"1,295.00"
202006,Apr,2.02006E+11,R5215,Radio / Airwave Equipment - Maintenance,Airwave Solutions Limited (Subsidiary:- Kelvin Connect),"76,290.37"
202006,Apr,2.02006E+11,R5210,Radio / Airwave Equipment - Purchases,Motorola Solutions UK Ltd,860
202006,Apr,2.02006E+11,R5310,Computer Hardware - Purchase,Xerox UK Ltd,591
202006,Apr,2.02006E+11,R5310,Computer Hardware - Purchase,Xerox UK Ltd,-630.9
202006,Apr,2.02006E+11,R5325,Computer Software - Maintenance,Phoenix Software Ltd,"151,765.45"
202006,Apr,2.02006E+11,R2720,Other Cleaning & Domestic Equipment,Arrow County Supplies,"1,196.80"
202006,Apr,2.02006E+11,R2720,Other Cleaning & Domestic Equipment,Arrow County Supplies,621.7
202006,Apr,2.02006E+11,R3110,Vehicle Maintenance - Tyres & Tubes,Goodyear Dunlop Tyres UK Limited,"14,503.70"
202006,Apr,2.02006E+11,R3450,Accident Damage (Below Insurance Excess)),National Windscreens,793.8
202006,Apr,2.02006E+11,R3510,Vehicle Fuel,Allstar Business Solutions Ltd,"1,524.99"
202006,Apr,2.02006E+11,R2700,Cleaning Contract,Bulloughs Cleaning Services Ltd,"37,222.21"
202006,Apr,2.02006E+11,R2700,Cleaning Contract,Bulloughs Cleaning Services Ltd,"34,475.35"
202006,Apr,2.02006E+11,R7006,North West Ambulance Service - Estates Management Collaboration,BID Group Ltd,"7,260.00"
202006,Apr,2.02006E+11,R2030,Unplanned Building Services Security & Security Equipment Maintenance,BID Group Ltd,"1,052.28"
202006,Apr,2.02006E+11,R7006,North West Ambulance Service - Estates Management Collaboration,BID Group Ltd,530
202006,Apr,2.02006E+11,R7006,North West Ambulance Service - Estates Management Collaboration,BID Group Ltd,"1,307.00"
202006,Apr,2.02006E+11,R7006,North West Ambulance Service - Estates Management Collaboration,BID Group Ltd,920
202006,Apr,2.02006E+11,R7006,North West Ambulance Service - Estates Management Collaboration,BID Group Ltd,997
202006,Apr,2.02006E+11,R7006,North West Ambulance Service - Estates Management Collaboration,BID Group Ltd,"2,010.00"
202006,Apr,2.02006E+11,R2830,Professional Fees,Carigiet Cowen,800
202006,Apr,2.02006E+11,R2840,Asset Valuation Fees,Carigiet Cowen,"3,000.00"
202006,Apr,2.02006E+11,R4520,Canteen - Purchase of Food / Ingredients,Pioneer Foodservice,810.47
202006,Apr,2.02006E+11,R4520,Canteen - Purchase of Food / Ingredients,Pioneer Foodservice,981.36
202006,Apr,2.02006E+11,R4520,Canteen - Purchase of Food / Ingredients,Pioneer Foodservice,"1,064.24"
202006,Apr,2.02006E+11,R4520,Canteen - Purchase of Food / Ingredients,Pioneer Foodservice,656.45
202006,Apr,2.02006E+11,R4520,Canteen - Purchase of Food / Ingredients,Pioneer Foodservice,629.9
202006,Apr,2.02006E+11,R3120,Vehicle Maintenance - Parts Purchase,TMS Motor Spares Ltd,535
202006,Apr,2.02006E+11,R3460,Accident Damage (Below Insurance Threshold),Thompson Accident Repair Centre Ltd,"1,000.00"
202006,Apr,2.02006E+11,R7006,North West Ambulance Service - Estates Management Collaboration,Dawson Electrical Services Ltd,"1,120.00"
202006,Apr,2.02006E+11,R7006,North West Ambulance Service - Estates Management Collaboration,Dawson Electrical Services Ltd,"1,940.00"
202006,Apr,2.02006E+11,R2020,Unplanned Building Services HVAC System,Carlisle Refrigeration Limited,837.6
202006,Apr,2.02006E+11,R2020,Unplanned Building Services HVAC System,Carlisle Refrigeration Limited,"1,415.77"
202006,Apr,2.02006E+11,R2275,Planned Servicing HVAC System,Carlisle Refrigeration Limited,770
202006,Apr,2.02006E+11,R2140,Unplanned Building Maintenance Internal Maintenance,Carlisle Refrigeration Limited,"3,116.46"
202006,Apr,2.02006E+11,R3120,Vehicle Maintenance - Parts Purchase,K and S McKenzie  Ltd,960
202006,Apr,2.02006E+11,R2050,Unplanned Building Services Electrics,JJ Group (Contracting) Ltd,890.72
202006,Apr,2.02006E+11,R2050,Unplanned Building Services Electrics,JJ Group (Contracting) Ltd,615.45
202006,Apr,2.02006E+11,R7006,North West Ambulance Service - Estates Management Collaboration,Cumbria Mechanical and Plumbing Ltd,662.43
202006,Apr,2.02006E+11,R2050,Unplanned Building Services Electrics,JJ Group (Contracting) Ltd,919
202006,Apr,2.02006E+11,R7006,North West Ambulance Service - Estates Management Collaboration,Cumbria Mechanical and Plumbing Ltd,568
202006,Apr,2.02006E+11,R7006,North West Ambulance Service - Estates Management Collaboration,JJ Group (Contracting) Ltd,542.2
202006,Apr,2.02006E+11,R3130,Vehicle Maintenance - Work Done Externally,Cubbys Signs Ltd,600
202006,Apr,2.02006E+11,R2660,Business Rates,Carlisle City Council,536.43
202006,Apr,2.02006E+11,R2660,Business Rates,Carlisle City Council,"5,489.00"
202006,Apr,2.02006E+11,R2660,Business Rates,Carlisle City Council,"7,360.25"
202006,Apr,2.02006E+11,R2660,Business Rates,Carlisle City Council,"273,920.00"
202006,Apr,2.02006E+11,R2660,Business Rates,Carlisle City Council,"6,611.75"
202006,Apr,2.02006E+11,R2660,Business Rates,Carlisle City Council,"17,839.25"
202006,Apr,2.02006E+11,R2610,Estates Leases,Carlisle City Council,"7,750.00"
202006,Apr,2.02006E+11,R7006,North West Ambulance Service - Estates Management Collaboration,Andidrain Ltd,760
202006,Apr,2.02006E+11,R2610,Estates Leases,Cumbria County Council,"1,706.25"
202006,Apr,2.02006E+11,R2460,Grounds Maintenance - Contract,S Nicholson Grounds Maintenance,"1,275.00"
202006,Apr,2.02006E+11,R2660,Business Rates,Eden District Council,"6,861.25"
202006,Apr,2.02006E+11,R2660,Business Rates,Eden District Council,"28,502.13"
202006,Apr,2.02006E+11,R2660,Business Rates,Eden District Council,"1,921.15"
202006,Apr,2.02006E+11,R2660,Business Rates,Eden District Council,"22,704.50"
202006,Apr,2.02006E+11,R2660,Business Rates,Eden District Council,"1,397.20"
202006,Apr,2.02006E+11,R2660,Business Rates,Eden District Council,"224,000.00"
202006,Apr,2.02006E+11,R2210,Planned Survey External Maintenance,Penrith Scaffolding Services Limited,700
202006,Apr,2.02006E+11,R2660,Business Rates,Allerdale Borough Council,"16,217.50"
202006,Apr,2.02006E+11,R2660,Business Rates,Allerdale Borough Council,785.93
202006,Apr,2.02006E+11,R2610,Estates Leases,Allerdale Borough Council,512.5
202006,Apr,2.02006E+11,R1610,CID Training,Trainrite Ltd,720
202006,Apr,2.02006E+11,R2210,Planned Survey External Maintenance,Frederick Potts and Sons Ltd,690
202006,Apr,2.02006E+11,R2205,Planned Survey Non Structural Maintenance,Frederick Potts and Sons Ltd,550
202006,Apr,2.02006E+11,C2830,Professional Fees,Baker Mallett LLP,827.24
202006,Apr,2.02006E+11,R2660,Business Rates,Copeland Borough Council,"53,760.00"
202006,Apr,2.02006E+11,R2660,Business Rates,Copeland Borough Council,885.73
202006,Apr,2.02006E+11,R2715,Clinical Waste,PHS Group Plc,"3,455.64"
202006,Apr,2.02006E+11,R2715,Clinical Waste,PHS Group Plc,"2,513.13"
202006,Apr,2.02006E+11,R2715,Clinical Waste,PHS Group Plc,"1,635.88"
202006,Apr,2.02006E+11,R2715,Clinical Waste,PHS Group Plc,594.84
202006,Apr,2.02006E+11,R2715,Clinical Waste,PHS Group Plc,821.28
202006,Apr,2.02006E+11,R2715,Clinical Waste,PHS Group Plc,889.32
202006,Apr,2.02006E+11,R3120,Vehicle Maintenance - Parts Purchase,Wurth UK Ltd,"1,520.76"
202006,Apr,2.02006E+11,R3120,Vehicle Maintenance - Parts Purchase,Wurth UK Ltd,"1,150.60"
202006,Apr,2.02006E+11,R3980,Vehicle Road Fund Licenses,Post Office Counters Ltd,"1,165.00"
202006,Apr,2.02006E+11,R2680,PFI Occupancy Charges,West Cumbria Estates Management Limited,"105,000.00"
202006,Apr,2.02006E+11,R2500,Oil,Certas Energy Limited,628.5
202006,Apr,2.02006E+11,R3120,Vehicle Maintenance - Parts Purchase,Arnold Clark Automobiles Ltd,"1,742.41"
202006,Apr,2.02006E+11,R3120,Vehicle Maintenance - Parts Purchase,Arnold Clark Automobiles Ltd,697.49
202006,Apr,2.02006E+11,R3120,Vehicle Maintenance - Parts Purchase,Arnold Clark Automobiles Ltd,697.49
202006,Apr,2.02006E+11,R3120,Vehicle Maintenance - Parts Purchase,Arnold Clark Automobiles Ltd,979.12
202006,Apr,2.02006E+11,R3120,Vehicle Maintenance - Parts Purchase,Arnold Clark Automobiles Ltd,715.15
202006,Apr,2.02006E+11,R3120,Vehicle Maintenance - Parts Purchase,Arnold Clark Automobiles Ltd,715.15
202006,Apr,2.02006E+11,R3120,Vehicle Maintenance - Parts Purchase,Arnold Clark Automobiles Ltd,"1,911.50"
202006,Apr,2.02006E+11,R3120,Vehicle Maintenance - Parts Purchase,Arnold Clark Automobiles Ltd,869.82
202006,Apr,2.02006E+11,R3120,Vehicle Maintenance - Parts Purchase,Arnold Clark Automobiles Ltd,682.69
202006,Apr,2.02006E+11,C3905,Vehicle Adaptations - Capital,Portable Multimedia Ltd,"2,000.00"
202006,Apr,2.02006E+11,R3120,Vehicle Maintenance - Parts Purchase,Euro Car Parts,508.89
202006,Apr,2.02006E+11,R3210,Police Vehicle Recovery & Transport,FMG Support (RRRM) Ltd,"3,456.00"
202006,Apr,2.02006E+11,R2730,Refuse,Biffa Waste Services Limited,728.16
202006,Apr,2.02006E+11,R2730,Refuse,Biffa Waste Services Limited,943.5
202006,Apr,2.02006E+11,R2730,Refuse,Biffa Waste Services Limited,642
202006,Apr,2.02006E+11,R3120,Vehicle Maintenance - Parts Purchase,P V Dobson and  Sons Motors Limited,"1,607.87"
202006,Apr,2.02006E+11,R3120,Vehicle Maintenance - Parts Purchase,P V Dobson and  Sons Motors Limited,798.7
202006,Apr,2.02006E+11,R3120,Vehicle Maintenance - Parts Purchase,P V Dobson and  Sons Motors Limited,"1,492.05"
202006,Apr,2.02006E+11,R3120,Vehicle Maintenance - Parts Purchase,P V Dobson and  Sons Motors Limited,"1,068.20"
202006,Apr,2.02006E+11,R2660,Business Rates,South Lakeland District Council,"3,193.60"
202006,Apr,2.02006E+11,R2660,Business Rates,South Lakeland District Council,598.8
202006,Apr,2.02006E+11,R2660,Business Rates,South Lakeland District Council,"101,888.00"
202006,Apr,2.02006E+11,R2660,Business Rates,South Lakeland District Council,"8,867.05"
202006,Apr,2.02006E+11,R2660,Business Rates,South Lakeland District Council,648.7
202006,Apr,2.02006E+11,R2661,Council Tax,South Lakeland District Council,"1,938.53"
202006,Apr,2.02006E+11,R7006,North West Ambulance Service - Estates Management Collaboration,FTS Fire and  Security Ltd,568
202006,Apr,2.02006E+11,R7006,North West Ambulance Service - Estates Management Collaboration,FTS Fire and  Security Ltd,828.44
202006,Apr,2.02006E+11,R2284,Planned Servicing Electrical Equipment Testing (PAT),FTS Fire and  Security Ltd,"1,684.00"
202006,Apr,2.02006E+11,R7006,North West Ambulance Service - Estates Management Collaboration,FTS Fire and  Security Ltd,"1,294.50"
202006,Apr,2.02006E+11,R7006,North West Ambulance Service - Estates Management Collaboration,FTS Fire and  Security Ltd,735.08
202006,Apr,2.02006E+11,R2660,Business Rates,Barrow Borough Council,"171,520.00"
202006,Apr,2.02006E+11,R3120,Vehicle Maintenance - Parts Purchase,E K Motor Factors Ltd,548
202006,Apr,2.02006E+11,R3120,Vehicle Maintenance - Parts Purchase,Guy Perry Ltd,"1,282.29"
202006,Apr,2.02006E+11,R3120,Vehicle Maintenance - Parts Purchase,ECCO Safety Group UK Ltd,"3,979.45"
202006,Apr,2.02006E+11,R3120,Vehicle Maintenance - Parts Purchase,ECCO Safety Group UK Ltd,"3,979.45"
202006,Apr,2.02006E+11,R3120,Vehicle Maintenance - Parts Purchase,ECCO Safety Group UK Ltd,"3,979.45"
202006,Apr,2.02006E+11,R3120,Vehicle Maintenance - Parts Purchase,Volkswagen Group UK Ltd,717.76
202006,Apr,2.02006E+11,R3120,Vehicle Maintenance - Parts Purchase,Volkswagen Group UK Ltd,559
202006,Apr,2.02006E+11,R3120,Vehicle Maintenance - Parts Purchase,Volkswagen Group UK Ltd,574.49
202006,Apr,2.02006E+11,R2845,Legal Fees (Property Sale),DSSR Consulting Engineers,"6,500.00"
202006,Apr,2.02006E+11,R2740,Destruction of Confidential Waste,Shred it,800
202006,Apr,2.02006E+11,C3900,Vehicle Purchases - Capital,Mercedes-Benz Vans UK Ltd,"33,574.25"
202006,Apr,2.02006E+11,R2610,Estates Leases,Ulverston Properties Limited,820.83
202006,Apr,2.02006E+11,R2830,Professional Fees,Ward Hadaway,"1,544.50"
202006,Apr,2.02006E+11,R2830,Professional Fees,Ward Hadaway,"2,000.00"
202006,Apr,2.02006E+11,R2830,Professional Fees,3i Studio Ltd,"4,015.00"
202006,Apr,2.02006E+11,R2610,Estates Leases,National Crime Agency,547.12
202006,Apr,2.02006E+11,R2610,Estates Leases,National Crime Agency,"20,000.00"
202006,Apr,2.02006E+11,R3120,Vehicle Maintenance - Parts Purchase,Ford Motor Co Ltd T/A Parts Plus,"1,150.97"
202006,Apr,2.02006E+11,R3120,Vehicle Maintenance - Parts Purchase,Ford Motor Co Ltd T/A Parts Plus,553.6
202006,Apr,2.02006E+11,R3120,Vehicle Maintenance - Parts Purchase,Ford Motor Co Ltd T/A Parts Plus,"1,461.77"
202006,Apr,2.02006E+11,R2550,Metered Water,Castle Water Limited,"6,449.81"
202006,Apr,2.02006E+11,R2565,Sewerage & Environmental Services,Castle Water Limited,"8,432.53"
202006,Apr,2.02006E+11,R2510,Electricity,EDF Energy,"6,509.48"
202006,Apr,2.02006E+11,R2510,Electricity,EDF Energy,"3,668.58"
202006,Apr,2.02006E+11,R2510,Electricity,EDF Energy,"12,032.86"
202006,Apr,2.02006E+11,R2510,Electricity,EDF Energy,"2,420.45"
202006,Apr,2.02006E+11,R2510,Electricity,EDF Energy,"16,646.70"
202006,Apr,2.02006E+11,R2530,Climate Change Levy,EDF Energy,"1,153.24"
202006,Apr,2.02006E+11,R2510,Electricity,EDF Energy,"16,646.70"
202006,Apr,2.02006E+11,R2530,Climate Change Levy,EDF Energy,"1,153.24"
202006,Apr,2.02006E+11,R2286,Planned Servicing Generators/UPS,Power Tecnique Limited,"9,162.00"
202006,Apr,2.02006E+11,R2286,Planned Servicing Generators/UPS,Power Tecnique Limited,"5,505.50"
202006,Apr,2.02006E+11,R2286,Planned Servicing Generators/UPS,Power Tecnique Limited,"4,404.40"
202006,Apr,2.02006E+11,R3020,Workshop Equipment & Tools - Servicing / Repairs,Autodata Ltd,"1,428.00"
202006,Apr,2.02006E+11,R3120,Vehicle Maintenance - Parts Purchase,Castrol (UK) Ltd,"2,065.44"
202006,Apr,2.02006E+11,R3120,Vehicle Maintenance - Parts Purchase,Lloyd Motors Ltd,528.71
202006,Apr,2.02006E+11,R3120,Vehicle Maintenance - Parts Purchase,Lloyd Motors Ltd,565.08
202006,Apr,2.02006E+11,R3120,Vehicle Maintenance - Parts Purchase,Lloyd Motors Ltd,505.1
202006,Apr,2.02006E+11,R3120,Vehicle Maintenance - Parts Purchase,Lloyd Motors Ltd,"1,287.24"
202006,Apr,2.02006E+11,R3120,Vehicle Maintenance - Parts Purchase,Lloyd Motors Ltd,521.06
202006,Apr,2.02006E+11,R3120,Vehicle Maintenance - Parts Purchase,Lloyd Motors Ltd,690.38
202006,Apr,2.02006E+11,R3120,Vehicle Maintenance - Parts Purchase,Lloyd Motors Ltd,792.23
202006,Apr,2.02006E+11,R3120,Vehicle Maintenance - Parts Purchase,Lloyd Motors Ltd,690.38
202006,Apr,2.02006E+11,R3120,Vehicle Maintenance - Parts Purchase,Lloyd Motors Ltd,792.23
202006,Apr,2.02006E+11,R3120,Vehicle Maintenance - Parts Purchase,Lloyd Motors Ltd,792.23
202006,Apr,2.02006E+11,R3120,Vehicle Maintenance - Parts Purchase,Lloyd Motors Ltd,690.38
202006,Apr,2.02006E+11,R3120,Vehicle Maintenance - Parts Purchase,Lloyd Motors Ltd,690.38
202006,Apr,2.02006E+11,R3120,Vehicle Maintenance - Parts Purchase,Lloyd Motors Ltd,690.38
202006,Apr,2.02006E+11,R3120,Vehicle Maintenance - Parts Purchase,Lloyd Motors Ltd,792.23
202006,Apr,2.02006E+11,R3120,Vehicle Maintenance - Parts Purchase,Lloyd Motors Ltd,792.23
202006,Apr,2.02006E+11,R2505,Gas,Corona Energy,"14,307.00"
202006,Apr,2.02006E+11,R2530,Climate Change Levy,Corona Energy,"1,610.61"
202006,Apr,2.02006E+11,R3510,Vehicle Fuel,Allstar Business Solutions Ltd,"1,855.18"
202006,Apr,2.02006E+11,R3510,Vehicle Fuel,Allstar Business Solutions Ltd,513.85
202006,Apr,2.02006E+11,R3510,Vehicle Fuel,Allstar Business Solutions Ltd,826.56
202006,Apr,2.02006E+11,R3510,Vehicle Fuel,Allstar Business Solutions Ltd,504.58
202006,Apr,2.02006E+11,R3510,Vehicle Fuel,Allstar Business Solutions Ltd,626.08
202006,Apr,2.02006E+11,R3510,Vehicle Fuel,Allstar Business Solutions Ltd,"52,113.04"
202006,Apr,2.02006E+11,R3510,Vehicle Fuel,Allstar Business Solutions Ltd,"2,235.69"
202006,Apr,2.02006E+11,R3510,Vehicle Fuel,Allstar Business Solutions Ltd,"1,099.56"
202006,Apr,2.02006E+11,R3745,Travel - Public Transport,Capita Travel and Events,-631.6
202006,Apr,2.02006E+11,R5600,Postage Costs,Pitney Bowes Ltd,"2,651.90"
202006,Apr,2.02006E+11,R4090,The information is confidential or would attract an exemption under the Freedom of Information Act e.g. where disclosure could be prejudicial to the commercial interests of any person including the authority,Redacted,515.85
202006,Apr,2.02006E+11,R4090,The information is confidential or would attract an exemption under the Freedom of Information Act e.g. where disclosure could be prejudicial to the commercial interests of any person including the authority,Redacted,538.14
202006,Apr,2.02006E+11,R4090,The information is confidential or would attract an exemption under the Freedom of Information Act e.g. where disclosure could be prejudicial to the commercial interests of any person including the authority,Redacted,800.22
202006,Apr,2.02006E+11,R4090,The information is confidential or would attract an exemption under the Freedom of Information Act e.g. where disclosure could be prejudicial to the commercial interests of any person including the authority,Redacted,588.81
202006,Apr,2.02006E+11,R6870,Subsistence - Training,Brooklands Guest House,640
202006,Apr,2.02006E+11,R6850,Hotel Accommodation - Training,Capita Travel and Events,900
202006,Apr,2.02006E+11,R6850,Hotel Accommodation - Training,Capita Travel and Events,900
202006,Apr,2.02006E+11,R6850,Hotel Accommodation - Training,Capita Travel and Events,758.2
202006,Apr,2.02006E+11,R6850,Hotel Accommodation - Training,Capita Travel and Events,515.5
202006,Apr,2.02006E+11,R3745,Travel - Public Transport,Capita Travel and Events,-700.2
202006,Apr,2.02006E+11,R6850,Hotel Accommodation - Training,Capita Travel and Events,600
202006,Apr,2.02006E+11,R6850,Hotel Accommodation - Training,Capita Travel and Events,"3,032.00"
202006,Apr,2.02006E+11,R3670,Vehicle Hire - Car Share Scheme,Enterprise Car Club,"3,720.00"
202006,Apr,2.02006E+11,R6850,Hotel Accommodation - Training,Police and Crime Commissioner for Greater Manchester,"1,672.00"
202006,Apr,2.02006E+11,R5600,Postage Costs,Royal Mail,787
202006,Apr,2.02006E+11,R1720,Other Support Function Training,University of Cumbria,550
202006,Apr,2.02006E+11,R1830,Training Equipment & Materials,Civil Defence Supply Limited,"2,793.00"
202006,Apr,2.02006E+11,R1610,CID Training,College of Policing (NPIA),539
202006,Apr,2.02006E+11,R1610,CID Training,The Kingsham Consultancy Ltd (Dr A McKee),"1,000.00"
202006,Apr,2.02006E+11,R5350,Web Design & Running Costs,Zengenti Ltd,"5,600.00"
202006,Apr,2.02006E+11,R4175,Print Unit - Digital Copier Click Charges,Xerox UK Ltd,"1,777.74"
202006,Apr,2.02006E+11,R5600,Postage Costs,Royal Mail,"1,664.68"
202006,Apr,2.02006E+11,R5600,Postage Costs,Royal Mail,943.53
202006,Apr,2.02006E+11,R5600,Postage Costs,Royal Mail,"1,060.06"
202006,Apr,2.02006E+11,R4922,SARC Counselling Services,Safety Net UK,"33,306.25"
202006,Apr,2.02006E+11,R2660,Business Rates,Eden District Council,"4,191.60"
202006,Apr,2.02006E+11,R6785,Contributions - PCC Commissioning Services,Eden District Council,"6,000.00"
202006,Apr,2.02006E+11,R6785,Contributions - PCC Commissioning Services,Time to Change (West Cumbria) Project CIC,"9,930.25"
202006,Apr,2.02006E+11,R6785,Contributions - PCC Commissioning Services,Time to Change (West Cumbria) Project CIC,"9,930.25"
202006,Apr,2.02006E+11,R4920,SARC Doctors,G4S Health Services (UK) Ltd,"19,575.04"
202006,Apr,2.02006E+11,R4920,SARC Doctors,G4S Health Services (UK) Ltd,"19,575.04"
202006,Apr,2.02006E+11,R4920,SARC Doctors,G4S Health Services (UK) Ltd,"19,575.04"
202006,Apr,2.02006E+11,R4920,SARC Doctors,G4S Health Services (UK) Ltd,"19,575.04"
202006,Apr,2.02006E+11,R4920,SARC Doctors,G4S Health Services (UK) Ltd,"19,575.04"
202006,Apr,2.02006E+11,R6785,Contributions - PCC Commissioning Services,Victim Support,"73,369.38"
202006,Apr,2.02006E+11,R6785,Contributions - PCC Commissioning Services,Victim Support,"14,191.25"
202006,Apr,2.02006E+11,R6785,Contributions - PCC Commissioning Services,Resource Creatives Enterprises Ltd,692.44
202006,Apr,2.02006E+11,R6785,Contributions - PCC Commissioning Services,Resource Creatives Enterprises Ltd,692.44
202006,Apr,2.02006E+11,R6785,Contributions - PCC Commissioning Services,Womens Community Matters,"10,088.76"
202006,Apr,2.02006E+11,R6785,Contributions - PCC Commissioning Services,Womens Community Matters,"8,153.20"
202006,Apr,2.02006E+11,R6785,Contributions - PCC Commissioning Services,Womens Community Matters,"3,591.18"
202006,Apr,2.02006E+11,R0500,Agency Staff,Comensura Ltd,902.06
202006,Apr,2.02006E+11,R0500,Agency Staff,Comensura Ltd,902.06
202006,Apr,2.02006E+11,R6710,Subscriptions,Independent Custody Visiting Association ICVA,"1,000.00"
202006,Apr,2.02006E+11,R6785,Contributions - PCC Commissioning Services,Remedi Restorative Services,"9,041.67"
202006,Apr,2.02006E+11,R6785,Contributions - PCC Commissioning Services,Remedi Restorative Services,"2,600.00"
202006,Apr,2.02006E+11,R6710,Subscriptions,CPOSA,"3,074.00"
202006,Apr,2.02006E+11,R7090,Other Collaboration Payments,Cumbria County Council,"10,000.00"
202006,Apr,2.02006E+11,R7090,Other Collaboration Payments,Police and Crime Commissioner for Cheshire,"5,266.38"
202006,Apr,2.02006E+11,R7090,Other Collaboration Payments,Police and Crime Commissioner for Cheshire,"9,128.66"
202006,Apr,2.02006E+11,R7090,Other Collaboration Payments,Police and Crime Commissioner for Durham Constabulary,"20,667.20"
202006,Apr,2.02006E+11,R7090,Other Collaboration Payments,Police and Crime Commissioner for Merseyside,"6,803.93"
202006,Apr,2.02006E+11,R7090,Other Collaboration Payments,Police and Crime Commissioner for Lancashire,"7,500.98"
202006,Apr,2.02006E+11,R7090,Other Collaboration Payments,Police and Crime Commissioner for Lancashire,"10,603.95"
202006,Apr,2.02006E+11,R5950,Disclosure of information would breach the Data Protection Act 1998 ,Redacted,"1,049.53"
202006,Apr,2.02006E+11,R5950,Disclosure of information would breach the Data Protection Act 1998 ,Redacted,541.88
202006,Apr,2.02006E+11,R5950,Disclosure of information would breach the Data Protection Act 1998 ,Redacted,789.09
202006,Apr,2.02006E+11,R5835,Operational Equipment - Testing Kits & Consumables,Scenesafe,580.92
202006,Apr,2.02006E+11,R4710,Forensic Analysis - Serious Crime,Key Forensic Services Ltd (Orange UK Holdings Ltd),"2,128.15"
202006,Apr,2.02006E+11,R4705,Forensic Analysis - Over Prescribed Limit,Key Forensic Services Ltd (Orange UK Holdings Ltd),"1,957.50"
202006,Apr,2.02006E+11,R4705,Forensic Analysis - Over Prescribed Limit,Key Forensic Services Ltd (Orange UK Holdings Ltd),"2,275.78"
202006,Apr,2.02006E+11,R4705,Forensic Analysis - Over Prescribed Limit,Key Forensic Services Ltd (Orange UK Holdings Ltd),"2,210.53"
202006,Apr,2.02006E+11,R4710,Forensic Analysis - Serious Crime,Key Forensic Services Ltd (Orange UK Holdings Ltd),"3,139.60"
202006,Apr,2.02006E+11,R4715,Forensic Analysis - Volume Crime,Key Forensic Services Ltd (Orange UK Holdings Ltd),"1,647.94"
202006,Apr,2.02006E+11,R4710,Forensic Analysis - Serious Crime,Key Forensic Services Ltd (Orange UK Holdings Ltd),"1,412.05"
202006,Apr,2.02006E+11,R4710,Forensic Analysis - Serious Crime,Key Forensic Services Ltd (Orange UK Holdings Ltd),"6,118.45"
202006,Apr,2.02006E+11,R4715,Forensic Analysis - Volume Crime,Key Forensic Services Ltd (Orange UK Holdings Ltd),604.94
202006,Apr,2.02006E+11,R4705,Forensic Analysis - Over Prescribed Limit,Key Forensic Services Ltd (Orange UK Holdings Ltd),"2,327.25"
202006,Apr,2.02006E+11,R4705,Forensic Analysis - Over Prescribed Limit,Key Forensic Services Ltd (Orange UK Holdings Ltd),"2,985.56"
202006,Apr,2.02006E+11,R4715,Forensic Analysis - Volume Crime,Key Forensic Services Ltd (Orange UK Holdings Ltd),802.9
202006,Apr,2.02006E+11,R4715,Forensic Analysis - Volume Crime,Key Forensic Services Ltd (Orange UK Holdings Ltd),"2,726.00"
202006,Apr,2.02006E+11,R5950,Disclosure of information would breach the Data Protection Act 1998 ,Redacted,602.72
202006,Apr,2.02006E+11,R5950,Disclosure of information would breach the Data Protection Act 1998 ,Redacted,887.83
202006,Apr,2.02006E+11,R5950,Disclosure of information would breach the Data Protection Act 1998 ,Redacted,625.16
202006,Apr,2.02006E+11,R4735,Communication Auto Services - OS,Home Office,"25,246.96"
202006,Apr,2.02006E+11,R4820,CHIS Payments & Other Rewards,DO NOT USE USE 20340 Metropolitan Police,"1,708.12"
202006,Apr,2.02006E+11,R5950,Disclosure of information would breach the Data Protection Act 1998 ,Redacted,996.04
202006,Apr,2.02006E+11,R4720,Forensic Analysis - PACE / DNA,Eurofins Forensic Services Ltd,"2,524.68"
202006,Apr,2.02006E+11,R4720,Forensic Analysis - PACE / DNA,Eurofins Forensic Services Ltd,985.89
202006,Apr,2.02006E+11,R1630,Other Operational Training,Berla Corporation,"3,973.99"
202006,Apr,2.02006E+11,R5912,Police Dogs - Feed,Royal Canin,576.4
202006,Apr,2.02006E+11,R4630,Detained Persons - Appropriate Adult Services,Child Action Northwest,"7,896.00"
202006,Apr,2.02006E+11,R5790,Operational Equipment - Audio / Video Equipment,PSS Home Entertainment Limited,895
202006,Apr,2.02006E+11,R5916,Police Dogs - Vets Fees,Frame Swift and Partners LLP,"1,209.00"
202006,Apr,2.02006E+11,R4625,Detained Persons - Laundry,Shortridge Ltd,542.48
202006,Apr,2.02006E+11,R4625,Detained Persons - Laundry,Shortridge Ltd,894.68
202006,Apr,2.02006E+11,R4620,Detained Persons - Consumables,Scenesafe,525
202006,Apr,2.02006E+11,R4900,Custody Medical Contract,G4S Health Services (UK) Ltd,"221,422.19"
202006,Apr,2.02006E+11,R4900,Custody Medical Contract,G4S Health Services (UK) Ltd,"109,584.13"
202006,Apr,2.02006E+11,R5918,Police Dogs - Other Maintenance,Safe Solutions (Safe4) Ltd,"2,800.00"
202006,Apr,2.02006E+11,R7060,Underwater Search,Police and Crime Commissioner for Cheshire,"43,403.09"
202006,Apr,2.02006E+11,R4625,Detained Persons - Laundry,Shortridge Ltd,906.33
202006,Apr,2.02006E+11,R4605,Detained Persons - Clothing,Charles Fellows Supplies Limited,522.06
202006,Apr,2.02006E+11,R4960,Disclosure of information would breach the Data Protection Act 1998,Redacted,744.8
202006,Apr,2.02006E+11,R5980,Firearms Equipment,Primetake Ltd,"6,499.00"
202006,Apr,2.02006E+11,R5865,Operational Equipment - Other,Civil Defence Supply Limited,840
202006,Apr,2.02006E+11,R5865,Operational Equipment - Other,Civil Defence Supply Limited,560
202006,Apr,2.02006E+11,R5865,Operational Equipment - Other,Civil Defence Supply Limited,"26,196.50"
202006,Apr,2.02006E+11,R5760,Operational Equipment - TASER,Axon Public Safety UK Limited,825
202006,Apr,2.02006E+11,R5760,Operational Equipment - TASER,Axon Public Safety UK Limited,"22,000.00"
202006,Apr,2.02006E+11,R4950,Interpreters Fees - Face to Face,Capita Translation and Interpreting (Applied Language Solutions Ltd),"2,971.89"
202006,Apr,2.02006E+11,R4955,Interpreters Fees - Telephone,Capita Translation and Interpreting (Applied Language Solutions Ltd),948.33
202006,Apr,2.02006E+11,R5980,Firearms Equipment,GMK Limited,"9,581.50"
202006,Apr,2.02006E+11,R4940,First Aid Equipment / Consumables,The ATTAC Group,725
202006,Apr,2.02006E+11,R1630,Other Operational Training,Police and Crime Commissioner for South Yorkshire,920
202006,Apr,2.02006E+11,R5980,Firearms Equipment,Edgar Brothers,"1,079.50"
202006,Apr,2.02006E+11,R5980,Firearms Equipment,Edgar Brothers,"2,100.00"
202006,Apr,2.02006E+11,R7295,Contribution to NPAS,Police and Crime Commissioner for West Yorkshire,"9,975.00"
202006,Apr,2.02006E+11,R4940,First Aid Equipment / Consumables,Arrow County Supplies,"4,953.60"
202006,Apr,2.02006E+11,R4940,First Aid Equipment / Consumables,Arrow County Supplies,"5,198.60"
202006,Apr,2.02006E+11,R2725,Cleaning Materials,Arrow County Supplies,"1,238.80"
202006,Apr,2.02006E+11,R4940,First Aid Equipment / Consumables,Arrow County Supplies,"4,049.82"
202006,Apr,2.02006E+11,C5110,Networks Hardware Purchase,SCC (Specialist Computer Centre),"127,650.00"
202006,Apr,2.02006E+11,R5110,Networks Hardware Purchase,SCC (Specialist Computer Centre),"4,197.70"
202006,Apr,2.02006E+11,R5110,Networks Hardware Purchase,SCC (Specialist Computer Centre),"2,833.00"
202006,Apr,2.02006E+11,R2700,Cleaning Contract,Bulloughs Cleaning Services Ltd,"1,042.69"
202006,Apr,2.02006E+11,R2700,Cleaning Contract,Bulloughs Cleaning Services Ltd,"1,306.00"
202006,Apr,2.02006E+11,R5110,Networks Hardware Purchase,Avoira Limited,"2,762.63"
202006,Apr,2.02006E+11,R5110,Networks Hardware Purchase,Avoira Limited,"3,375.00"
202006,Apr,2.02006E+11,R5110,Networks Hardware Purchase,Avoira Limited,982.95
202006,Apr,2.02006E+11,R2410,Minor Works,Carigiet Cowen,600
202006,Apr,2.02006E+11,R2410,Minor Works,Carlisle Glass Longhorn,"1,110.00"
202006,Apr,2.02006E+11,R4020,Office Sundries,Tech 4 office equipment LTD,"3,481.44"
202006,Apr,2.02006E+11,R4200,Photocopier Machines - Rental Charges,Tech 4 office equipment LTD,"1,920.00"
202006,Apr,2.02006E+11,R4940,First Aid Equipment / Consumables,Thomas Graham and Sons Limited,966.28
202006,Apr,2.02006E+11,R4940,First Aid Equipment / Consumables,Thomas Graham and Sons Limited,"2,204.30"
202006,Apr,2.02006E+11,R4940,First Aid Equipment / Consumables,Thomas Graham and Sons Limited,"1,226.16"
202006,Apr,2.02006E+11,R4940,First Aid Equipment / Consumables,Thomas Graham and Sons Limited,586.85
202006,Apr,2.02006E+11,R4940,First Aid Equipment / Consumables,Thomas Graham and Sons Limited,"19,960.00"
202006,Apr,2.02006E+11,R4940,First Aid Equipment / Consumables,Thomas Graham and Sons Limited,"2,060.48"
202006,Apr,2.02006E+11,R4940,First Aid Equipment / Consumables,Thomas Graham and Sons Limited,"2,173.62"
202006,Apr,2.02006E+11,R4940,First Aid Equipment / Consumables,Thomas Graham and Sons Limited,907.97
202006,Apr,2.02006E+11,R4940,First Aid Equipment / Consumables,Thomas Graham and Sons Limited,"1,074.08"
202006,Apr,2.02006E+11,R4940,First Aid Equipment / Consumables,Thomas Graham and Sons Limited,"2,020.20"
202006,Apr,2.02006E+11,R4940,First Aid Equipment / Consumables,Thomas Graham and Sons Limited,"7,320.00"
202006,Apr,2.02006E+11,R4940,First Aid Equipment / Consumables,Thomas Graham and Sons Limited,701.44
202006,Apr,2.02006E+11,R4940,First Aid Equipment / Consumables,Thomas Graham and Sons Limited,"1,822.21"
202006,Apr,2.02006E+11,R4940,First Aid Equipment / Consumables,Thomas Graham and Sons Limited,"2,666.70"
202006,Apr,2.02006E+11,R4940,First Aid Equipment / Consumables,Thomas Graham and Sons Limited,"2,666.70"
202006,Apr,2.02006E+11,R4940,First Aid Equipment / Consumables,Thomas Graham and Sons Limited,"1,683.75"
202006,Apr,2.02006E+11,R4940,First Aid Equipment / Consumables,Thomas Graham and Sons Limited,"1,975.00"
202006,Apr,2.02006E+11,R4155,External Printing,H and H Reed's Printers Ltd,733
202006,Apr,2.02006E+11,R4940,First Aid Equipment / Consumables,Scenesafe,"2,950.00"
202006,Apr,2.02006E+11,R4940,First Aid Equipment / Consumables,SMI Int Group Ltd,"2,155.68"
202006,Apr,2.02006E+11,R4940,First Aid Equipment / Consumables,SMI Int Group Ltd,"2,155.68"
202006,Apr,2.02006E+11,R4940,First Aid Equipment / Consumables,Arco Limited,836.4
202006,Apr,2.02006E+11,R5865,Operational Equipment - Other,Cromwell Group Ltd,810.8
202006,Apr,2.02006E+11,R4940,First Aid Equipment / Consumables,CID Hygiene,"4,671.00"
202006,Apr,2.02006E+11,R4940,First Aid Equipment / Consumables,CID Hygiene,503.1
202006,Apr,2.02006E+11,R4940,First Aid Equipment / Consumables,Bidfood,"1,473.26"
202006,Apr,2.02006E+11,R5760,Operational Equipment - TASER,Axon Public Safety UK Limited,"10,525.00"
202006,Apr,2.02006E+11,R4940,First Aid Equipment / Consumables,HBS Healthcare,"4,950.00"
202006,Apr,2.02006E+11,R4940,First Aid Equipment / Consumables,HBS Healthcare,"5,000.00"
202006,Apr,2.02006E+11,R4940,First Aid Equipment / Consumables,HBS Healthcare,"28,500.00"
202006,Apr,2.02006E+11,R4940,First Aid Equipment / Consumables,HBS Healthcare,"25,000.00"
202006,Apr,2.02006E+11,R4940,First Aid Equipment / Consumables,HBS Healthcare,"12,865.00"
202006,Apr,2.02006E+11,R4300,Furniture - General,Brysdales Ltd,"3,824.00"
202006,Apr,2.02006E+11,R5210,Radio / Airwave Equipment - Purchases,Motorola Solutions UK Ltd,"3,500.00"
202006,Apr,2.02006E+11,R4940,First Aid Equipment / Consumables,Banner Group Limited,"1,210.00"
202006,Apr,2.02006E+11,R4940,First Aid Equipment / Consumables,City Electrical Factors Ltd,560
202006,Apr,2.02006E+11,R4940,First Aid Equipment / Consumables,City Electrical Factors Ltd,"1,490.00"
202006,Apr,2.02006E+11,B2312,Inventories/Stocks - Uniforms - Purchases,Earle International,502.5
202006,Apr,2.02006E+11,R4000,Office Equipment - Purchase,Heatons Group Ltd,"1,243.75"
202006,Apr,2.02006E+11,R4000,Office Equipment - Purchase,Heatons Group Ltd,981.26
202006,Apr,2.02006E+11,B2302,Inventories/Stocks - General / Admin Equipment - Purchases,Scenesafe,"2,288.07"
202006,Apr,2.02006E+11,B2302,Inventories/Stocks - General / Admin Equipment - Purchases,Scenesafe,"1,206.86"
202006,Apr,2.02006E+11,B2312,Inventories/Stocks - Uniforms - Purchases,Yaffy (MWUK Ltd),"2,451.00"
202006,Apr,2.02006E+11,B2312,Inventories/Stocks - Uniforms - Purchases,Yaffy (MWUK Ltd),"2,475.00"
202006,Apr,2.02006E+11,B2312,Inventories/Stocks - Uniforms - Purchases,Keela International Ltd,"1,061.06"
202006,Apr,2.02006E+11,B2312,Inventories/Stocks - Uniforms - Purchases,Ioma Clothing Co Ltd,656.95
202006,Apr,2.02006E+11,B2312,Inventories/Stocks - Uniforms - Purchases,MC Products UK Ltd,935
202006,Apr,2.02006E+11,B2312,Inventories/Stocks - Uniforms - Purchases,Bennett Safetywear Ltd,705.05
202006,Apr,2.02006E+11,R4302,Furniture - DSE Specialist Furniture,Centric Office Solutions Limited,600
202006,Apr,2.02006E+11,B2312,Inventories/Stocks - Uniforms - Purchases,Mehler Vario System GmbH,"3,713.60"
202006,Apr,2.02006E+11,B2312,Inventories/Stocks - Uniforms - Purchases,Mehler Vario System GmbH,978.4
202006,Apr,2.02006E+11,B2312,Inventories/Stocks - Uniforms - Purchases,Mehler Vario System GmbH,"1,786.20"
202006,Apr,2.02006E+11,B2312,Inventories/Stocks - Uniforms - Purchases,Mehler Vario System GmbH,"3,164.60"
202006,Apr,2.02006E+11,B2312,Inventories/Stocks - Uniforms - Purchases,Mehler Vario System GmbH,"1,334.80"
202006,Apr,2.02006E+11,B2312,Inventories/Stocks - Uniforms - Purchases,Mehler Vario System GmbH,713.6
202006,Apr,2.02006E+11,B2312,Inventories/Stocks - Uniforms - Purchases,Niton Equipment Ltd,"1,669.63"
202006,Apr,2.02006E+11,R4400,Books & Publications,LexisNexis,"16,026.00"
202006,Apr,2.02006E+11,B2312,Inventories/Stocks - Uniforms - Purchases,SBI TacPro,"2,027.20"
202006,Apr,2.02006E+11,B2312,Inventories/Stocks - Uniforms - Purchases,SBI TacPro,"1,082.80"
202006,Apr,2.02006E+11,B2312,Inventories/Stocks - Uniforms - Purchases,SBI TacPro,"2,165.60"
202006,Apr,2.02006E+11,B2312,Inventories/Stocks - Uniforms - Purchases,SBI TacPro,"4,054.40"
202006,Apr,2.02006E+11,B2312,Inventories/Stocks - Uniforms - Purchases,SBI TacPro,526.86
202006,Apr,2.02006E+11,B2312,Inventories/Stocks - Uniforms - Purchases,Price Western Leather Co Ltd,"1,393.50"
202006,Apr,2.02006E+11,B2312,Inventories/Stocks - Uniforms - Purchases,Wakefield Shirt Group (William Sugden & Sons Ltd),679
202006,Apr,2.02006E+11,B2312,Inventories/Stocks - Uniforms - Purchases,Wakefield Shirt Group (William Sugden & Sons Ltd),519.57
202006,Apr,2.02006E+11,B4004,Disclosure of information would breach the Data Protection Act 1998,Redacted,"3,500.00"
202006,Apr,2.02006E+11,B4004,Disclosure of information would breach the Data Protection Act 1998,Redacted,700
202006,Apr,2.02006E+11,B4003,Disclosure of information would breach the Data Protection Act 1998,Redacted,"2,500.00"
202006,Apr,2.02006E+11,B4004,Disclosure of information would breach the Data Protection Act 1998,Redacted,"6,000.00"
202006,Apr,2.02006E+11,B4004,Provision for Insurance Liabilities - Drawdown from Provision - Third Party Costs,Plexus Law,"7,675.00"
202006,Apr,2.02006E+11,B4003,Disclosure of information would breach the Data Protection Act 1998,Redacted,"4,885.00"
202006,Apr,2.02006E+11,B4004,Disclosure of information would breach the Data Protection Act 1998,Redacted,"1,350.00"
202006,Apr,2.02006E+11,B4003,Disclosure of information would breach the Data Protection Act 1998,Redacted,"1,000.00"
202006,May,2.02006E+11,R0500,Agency Staff,Comensura Ltd,783.72
202006,May,2.02006E+11,R0500,Agency Staff,Comensura Ltd,"1,032.80"
202006,May,2.02006E+11,R0500,Agency Staff,Comensura Ltd,"1,065.13"
202006,May,2.02006E+11,R0500,Agency Staff,Comensura Ltd,867.69
202006,May,2.02006E+11,R0500,Agency Staff,Comensura Ltd,"1,032.80"
202006,May,2.02006E+11,R0500,Agency Staff,Comensura Ltd,"2,219.45"
202006,May,2.02006E+11,R0500,Agency Staff,Comensura Ltd,"1,044.67"
202006,May,2.02006E+11,R3740,Disclosure of information would breach the Data Protection Act 1998,Redacted,976.5
202006,May,2.02006E+11,R6860,Disclosure of information would breach the Data Protection Act 1998,Redacted,744
202006,May,2.02006E+11,R3740,Disclosure of information would breach the Data Protection Act 1998,Redacted,"1,205.10"
202006,May,2.02006E+11,R7290,Other Third Party Payments,Police and Crime Commissioner for Hertfordshire,"1,860.00"
202006,May,2.02006E+11,R4880,Ex-Gratia Payments,Exgratia Payments,"1,150.00"
202006,May,2.02006E+11,R7390,Other Insurance,Aon UK Ltd,"4,650.00"
202006,May,2.02006E+11,R6824,NatWest Corporate Card Payments,Natwest Corporate Card,"2,608.25"
202006,May,2.02006E+11,R7040,Payroll Services,MHR International UK LTD,"15,856.50"
202006,May,2.02006E+11,R6830,External Audit Fee,Grant Thornton UK LLP,"2,887.00"
202006,May,2.02006E+11,R7042,Pension Services,XPS Administration Limited T/A XPS Administration,"8,911.17"
202006,May,2.02006E+11,R3660,The information is confidential or would attract an exemption under the Freedom of Information Act e.g. where disclosure could be prejudicial to the commercial interests of any person including the authority ,Redacted,"1,980.00"
202006,May,2.02006E+11,R5975,Other Operational Expenses,"Reshape (Re, sexual, harm, awareness, prevention & education)","5,000.00"
202006,May,2.02006E+11,R2600,Rent,Reed Rains,750
202006,May,2.02006E+11,R5320,Computer Software - Purchase,SCC (Specialist Computer Centre),"12,358.39"
202006,May,2.02006E+11,R5325,Computer Software - Maintenance,SCC (Specialist Computer Centre),"15,937.18"
202006,May,2.02006E+11,R5325,Computer Software - Maintenance,Capita Secure Information Solutions Ltd,"4,335.43"
202006,May,2.02006E+11,R5325,Computer Software - Maintenance,Capita Secure Information Solutions Ltd,"17,862.82"
202006,May,2.02006E+11,R5325,Computer Software - Maintenance,Internet Investigation Solutions,"12,921.18"
202006,May,2.02006E+11,R5320,Computer Software - Purchase,Internet Investigation Solutions,"2,192.52"
202006,May,2.02006E+11,R5325,Computer Software - Maintenance,Micro Systemation Ltd,"-2,895.00"
202006,May,2.02006E+11,R5325,Computer Software - Maintenance,Micro Systemation Ltd,"2,895.00"
202006,May,2.02006E+11,R5325,Computer Software - Maintenance,Chorus Intelligence Limited Previously known as (Create Intelligence Ltd),"25,000.00"
202006,May,2.02006E+11,R1710,ICT Training,QA Training Ltd,"53,122.00"
202006,May,2.02006E+11,R5325,Computer Software - Maintenance,Softcat PLC,"120,098.13"
202006,May,2.02006E+11,R5120,Networks Private Circuits,Insight Direct (UK) Ltd,"3,755.23"
202006,May,2.02006E+11,R5120,Networks Private Circuits,Vodafone Limited,"11,876.21"
202006,May,2.02006E+11,R5315,Computer Hardware - Maintenance,Specialised Equipment Cleaning,595
202006,May,2.02006E+11,R5010,Telephone Charges - Landlines,TalkTalk,"2,733.44"
202006,May,2.02006E+11,R5325,Computer Software - Maintenance,Nevis Systems Ltd,"1,480.08"
202006,May,2.02006E+11,R5120,Networks Private Circuits,Vodafone Limited,"1,776.00"
202006,May,2.02006E+11,R5010,Telephone Charges - Landlines,British Telecom,"9,419.04"
202006,May,2.02006E+11,R5110,Networks Hardware Purchase,CPC Plc,763.85
202006,May,2.02006E+11,R5325,Computer Software - Maintenance,Microsoft Limited,"42,375.00"
202006,May,2.02006E+11,R5325,Computer Software - Maintenance,Microsoft Limited,"32,352.75"
202006,May,2.02006E+11,R5325,Computer Software - Maintenance,Oracle Corporation UK Limited,"165,441.27"
202006,May,2.02006E+11,R5325,Computer Software - Maintenance,Maintel Europe Ltd,"4,115.29"
202006,May,2.02006E+11,R5120,Networks Private Circuits,Airwave Solutions Limited (Subsidiary:- Kelvin Connect),"105,600.00"
202006,May,2.02006E+11,R5325,Computer Software - Maintenance,Airwave Solutions Limited (Subsidiary:- Kelvin Connect),"141,705.00"
202006,May,2.02006E+11,R5215,Radio / Airwave Equipment - Maintenance,Airwave Solutions Limited (Subsidiary:- Kelvin Connect),"74,435.05"
202006,May,2.02006E+11,C5310,Computer Hardware - Purchase,Stone Computers Ltd,"46,280.00"
202006,May,2.02006E+11,R5325,Computer Software - Maintenance,Unisys Ltd,853
202006,May,2.02006E+11,R5325,Computer Software - Maintenance,Police and Crime Commissioner for West Yorkshire,"12,645.15"
202006,May,2.02006E+11,R5345,Computer & Printer Consumables,Xerox UK Ltd,622.62
202006,May,2.02006E+11,R5345,Computer & Printer Consumables,Xerox UK Ltd,"4,672.60"
202006,May,2.02006E+11,R2720,Other Cleaning & Domestic Equipment,Arrow County Supplies,"1,394.80"
202006,May,2.02006E+11,R2720,Other Cleaning & Domestic Equipment,Arrow County Supplies,"1,238.80"
202006,May,2.02006E+11,R3110,Vehicle Maintenance - Tyres & Tubes,Goodyear Dunlop Tyres UK Limited,"6,476.22"
202006,May,2.02006E+11,R2800,Security and Alarms (inc locks),Chubb Fire and Security Limited,780
202006,May,2.02006E+11,R2800,Security and Alarms (inc locks),Chubb Fire and Security Limited,830.68
202006,May,2.02006E+11,R2700,Cleaning Contract,Bulloughs Cleaning Services Ltd,"13,144.49"
202006,May,2.02006E+11,R2700,Cleaning Contract,Bulloughs Cleaning Services Ltd,"3,742.03"
202006,May,2.02006E+11,R2700,Cleaning Contract,Bulloughs Cleaning Services Ltd,600.98
202006,May,2.02006E+11,R2700,Cleaning Contract,Bulloughs Cleaning Services Ltd,"5,127.48"
202006,May,2.02006E+11,R2700,Cleaning Contract,Bulloughs Cleaning Services Ltd,"2,423.10"
202006,May,2.02006E+11,R2700,Cleaning Contract,Bulloughs Cleaning Services Ltd,"3,665.94"
202006,May,2.02006E+11,R2700,Cleaning Contract,Bulloughs Cleaning Services Ltd,"1,502.43"
202006,May,2.02006E+11,R2700,Cleaning Contract,Bulloughs Cleaning Services Ltd,568.48
202006,May,2.02006E+11,R2700,Cleaning Contract,Bulloughs Cleaning Services Ltd,600.97
202006,May,2.02006E+11,R2700,Cleaning Contract,Bulloughs Cleaning Services Ltd,"2,746.86"
202006,May,2.02006E+11,R2700,Cleaning Contract,Bulloughs Cleaning Services Ltd,"1,502.43"
202006,May,2.02006E+11,R4540,Canteen - Hot Drink Machines,Rijo 42 Ingredients Ltd,514.94
202006,May,2.02006E+11,R2030,Unplanned Building Services Security & Security Equipment Maintenance,BID Group Ltd,528
202006,May,2.02006E+11,R7006,North West Ambulance Service - Estates Management Collaboration,BID Group Ltd,"1,619.00"
202006,May,2.02006E+11,R4540,Canteen - Hot Drink Machines,BNP Paribas Leasing Solutions Ltd,519.99
202006,May,2.02006E+11,R4540,Canteen - Hot Drink Machines,BNP Paribas Leasing Solutions Ltd,519.99
202006,May,2.02006E+11,R4540,Canteen - Hot Drink Machines,BNP Paribas Leasing Solutions Ltd,519.99
202006,May,2.02006E+11,R4540,Canteen - Hot Drink Machines,BNP Paribas Leasing Solutions Ltd,519.99
202006,May,2.02006E+11,R2730,Refuse,Suez Recycling & Recovery UK Ltd,"6,191.07"
202006,May,2.02006E+11,R3450,Accident Damage (Below Insurance Excess)),Thompson Accident Repair Centre Ltd,652.5
202006,May,2.02006E+11,R3450,Accident Damage (Below Insurance Excess)),Thompson Accident Repair Centre Ltd,663
202006,May,2.02006E+11,R3460,Accident Damage (Below Insurance Threshold),Thompson Accident Repair Centre Ltd,734.49
202006,May,2.02006E+11,R3460,Accident Damage (Below Insurance Threshold),Thompson Accident Repair Centre Ltd,"1,000.00"
202006,May,2.02006E+11,R3460,Accident Damage (Below Insurance Threshold),Thompson Accident Repair Centre Ltd,"1,000.00"
202006,May,2.02006E+11,R3460,Accident Damage (Below Insurance Threshold),Thompson Accident Repair Centre Ltd,"1,000.00"
202006,May,2.02006E+11,R3460,Accident Damage (Below Insurance Threshold),Thompson Accident Repair Centre Ltd,598.89
202006,May,2.02006E+11,R3460,Accident Damage (Below Insurance Threshold),Thompson Accident Repair Centre Ltd,"1,000.00"
202006,May,2.02006E+11,R3460,Accident Damage (Below Insurance Threshold),Thompson Accident Repair Centre Ltd,"8,048.23"
202006,May,2.02006E+11,R3460,Accident Damage (Below Insurance Threshold),Thompson Accident Repair Centre Ltd,"1,000.00"
202006,May,2.02006E+11,R2275,Planned Servicing HVAC System,Carlisle Refrigeration Limited,596
202006,May,2.02006E+11,R2275,Planned Servicing HVAC System,Carlisle Refrigeration Limited,505
202006,May,2.02006E+11,R7006,North West Ambulance Service - Estates Management Collaboration,Cumbria Mechanical and Plumbing Ltd,"2,561.00"
202006,May,2.02006E+11,R7006,North West Ambulance Service - Estates Management Collaboration,Cumbria Mechanical and Plumbing Ltd,653.79
202006,May,2.02006E+11,R2260,Planned Servicing Boiler & Heating Plant,Cumbria Mechanical and Plumbing Ltd,"9,319.00"
202006,May,2.02006E+11,R2140,Unplanned Building Maintenance Internal Maintenance,Cumbria Mechanical and Plumbing Ltd,692.9
202006,May,2.02006E+11,R2150,Unplanned Building Maintenance Electrics,JJ Group (Contracting) Ltd,"1,302.22"
202006,May,2.02006E+11,R2610,Estates Leases,Solway Plain Futures Ltd,"1,898.00"
202006,May,2.02006E+11,R3917,Bicycle Maintenance Costs,Arragons Cycle Centre,"1,744.60"
202006,May,2.02006E+11,R2730,Refuse,Enterprise Managed Services Ltd,"1,159.60"
202006,May,2.02006E+11,R7006,North West Ambulance Service - Estates Management Collaboration,Metcalfe Plant & Tool Ltd,945.75
202006,May,2.02006E+11,C2245,Planned Survey Alterations & Improvements,Thomas Armstrong Construction Ltd,"61,682.87"
202006,May,2.02006E+11,R2080,Unplanned Building Services External Other,Frederick Potts and Sons Ltd,969.87
202006,May,2.02006E+11,R2070,Unplanned Building Services Internal Other,Frederick Potts and Sons Ltd,605
202006,May,2.02006E+11,R2410,Minor Works,Frederick Potts and Sons Ltd,927.88
202006,May,2.02006E+11,R2170,Unplanned Building Maintenance External Maintenance,Frederick Potts and Sons Ltd,850
202006,May,2.02006E+11,R7006,North West Ambulance Service - Estates Management Collaboration,Frederick Potts and Sons Ltd,"3,265.00"
202006,May,2.02006E+11,R2830,Professional Fees,Institute of Workplace and Facilities Management,957
202006,May,2.02006E+11,C3905,Vehicle Adaptations - Capital,Woodway Engineering Ltd,"2,799.00"
202006,May,2.02006E+11,C3905,Vehicle Adaptations - Capital,Wurth UK Ltd,668.14
202006,May,2.02006E+11,C3905,Vehicle Adaptations - Capital,Wurth UK Ltd,615.77
202006,May,2.02006E+11,R2680,PFI Occupancy Charges,West Cumbria Estates Management Limited,"105,000.00"
202006,May,2.02006E+11,R2030,Unplanned Building Services Security & Security Equipment Maintenance,Northern Steeplejacks Ltd,525
202006,May,2.02006E+11,R2500,Oil,Certas Energy Limited,"5,789.50"
202006,May,2.02006E+11,R2500,Oil,Certas Energy Limited,"1,713.87"
202006,May,2.02006E+11,R2500,Oil,Certas Energy Limited,"3,449.76"
202006,May,2.02006E+11,R2500,Oil,Certas Energy Limited,"4,358.20"
202006,May,2.02006E+11,R3210,Police Vehicle Recovery & Transport,FMG Support (RRRM) Ltd,"3,503.00"
202006,May,2.02006E+11,R2730,Refuse,Biffa Waste Services Limited,513.6
202006,May,2.02006E+11,R2730,Refuse,Biffa Waste Services Limited,629.76
202006,May,2.02006E+11,R2730,Refuse,Biffa Waste Services Limited,820
202006,May,2.02006E+11,R2730,Refuse,Biffa Waste Services Limited,754.8
202006,May,2.02006E+11,R2800,Security and Alarms (inc locks),Mawtec Systems Limited,"2,856.00"
202006,May,2.02006E+11,R2660,Business Rates,South Lakeland District Council,"1,990.00"
202006,May,2.02006E+11,R2040,Unplanned Building Services Fire Systems,FTS Fire and  Security Ltd,506
202006,May,2.02006E+11,R2610,Estates Leases,Sedbergh and District Charitable Incorporated Organisation CIO,"2,400.00"
202006,May,2.02006E+11,R3120,Vehicle Maintenance - Parts Purchase,Guy Perry Ltd,685.7
202006,May,2.02006E+11,R3120,Vehicle Maintenance - Parts Purchase,Guy Perry Ltd,"1,275.89"
202006,May,2.02006E+11,R3120,Vehicle Maintenance - Parts Purchase,Guy Perry Ltd,"2,921.33"
202006,May,2.02006E+11,R2505,Gas,Flogas Britain Ltd,909.77
202006,May,2.02006E+11,R3120,Vehicle Maintenance - Parts Purchase,Volkswagen Group UK Ltd,521.53
202006,May,2.02006E+11,R2740,Destruction of Confidential Waste,Shred it,501
202006,May,2.02006E+11,R2610,Estates Leases,Ulverston Properties Limited,820.83
202006,May,2.02006E+11,R2510,Electricity,EDF Energy,"-16,646.70"
202006,May,2.02006E+11,R2530,Climate Change Levy,EDF Energy,"-1,153.24"
202006,May,2.02006E+11,R2510,Electricity,EDF Energy,"3,396.03"
202006,May,2.02006E+11,R2510,Electricity,EDF Energy,"10,083.51"
202006,May,2.02006E+11,R2530,Climate Change Levy,EDF Energy,658.66
202006,May,2.02006E+11,R2510,Electricity,EDF Energy,"11,201.58"
202006,May,2.02006E+11,R2510,Electricity,EDF Energy,"14,321.10"
202006,May,2.02006E+11,R2530,Climate Change Levy,EDF Energy,927.89
202006,May,2.02006E+11,R2210,Planned Survey External Maintenance,Designed Roof Systems Ltd,"7,300.00"
202006,May,2.02006E+11,R4520,Canteen - Purchase of Food / Ingredients,Cleggs Chilled Food Service,638.5
202006,May,2.02006E+11,R2277,Planned Servicing Water Chlorination,Water and Air Management Limited,989.4
202006,May,2.02006E+11,R7006,North West Ambulance Service - Estates Management Collaboration,Countrywide Grounds Maintenance Ltd,641.66
202006,May,2.02006E+11,R3120,Vehicle Maintenance - Parts Purchase,Castrol (UK) Ltd,"1,037.92"
202006,May,2.02006E+11,C3900,Vehicle Purchases - Capital,Volkswagen Group UK Ltd,"25,818.58"
202006,May,2.02006E+11,C3900,Vehicle Purchases - Capital,Volkswagen Group UK Ltd,"26,144.74"
202006,May,2.02006E+11,C3900,Vehicle Purchases - Capital,Volkswagen Group UK Ltd,"25,818.58"
202006,May,2.02006E+11,C3900,Vehicle Purchases - Capital,Volkswagen Group UK Ltd,"26,084.58"
202006,May,2.02006E+11,R3510,Vehicle Fuel,Allstar Business Solutions Ltd,"32,190.25"
202006,May,2.02006E+11,R3510,Vehicle Fuel,Allstar Business Solutions Ltd,907.29
202006,May,2.02006E+11,R3510,Vehicle Fuel,Allstar Business Solutions Ltd,"1,279.47"
202006,May,2.02006E+11,R3510,Vehicle Fuel,Allstar Business Solutions Ltd,812.87
202006,May,2.02006E+11,R3510,Vehicle Fuel,Allstar Business Solutions Ltd,719.87
202006,May,2.02006E+11,C3905,Vehicle Adaptations - Capital,RSG Engineering Ltd,873.24
202006,May,2.02006E+11,C3905,Vehicle Adaptations - Capital,RSG Engineering Ltd,"2,120.00"
202006,May,2.02006E+11,C3905,Vehicle Adaptations - Capital,RSG Engineering Ltd,"1,082.00"
202006,May,2.02006E+11,C3905,Vehicle Adaptations - Capital,RSG Engineering Ltd,"4,636.16"
202006,May,2.02006E+11,C3905,Vehicle Adaptations - Capital,RSG Engineering Ltd,"3,482.72"
202006,May,2.02006E+11,R5600,Postage Costs,Pitney Bowes Ltd,"5,055.02"
202006,May,2.02006E+11,R5630,Courier Services - Internal Deliveries,Cumbria County Council,"3,051.43"
202006,May,2.02006E+11,R4090,The information is confidential or would attract an exemption under the Freedom of Information Act e.g. where disclosure could be prejudicial to the commercial interests of any person including the authority,Redacted,549.69
202006,May,2.02006E+11,R4090,The information is confidential or would attract an exemption under the Freedom of Information Act e.g. where disclosure could be prejudicial to the commercial interests of any person including the authority,Redacted,581.46
202006,May,2.02006E+11,R4090,The information is confidential or would attract an exemption under the Freedom of Information Act e.g. where disclosure could be prejudicial to the commercial interests of any person including the authority,Redacted,796.38
202006,May,2.02006E+11,R6870,Subsistence - Training,Brooklands Guest House,640
202006,May,2.02006E+11,R6840,Hotel Accommodation,Capita Travel and Events,"1,916.67"
202006,May,2.02006E+11,R6850,Hotel Accommodation - Training,Capita Travel and Events,812
202006,May,2.02006E+11,R6850,Hotel Accommodation - Training,Capita Travel and Events,"6,940.00"
202006,May,2.02006E+11,R6850,Hotel Accommodation - Training,Capita Travel and Events,"10,560.00"
202006,May,2.02006E+11,R6850,Hotel Accommodation - Training,Capita Travel and Events,574.56
202006,May,2.02006E+11,R6850,Hotel Accommodation - Training,Capita Travel and Events,768
202006,May,2.02006E+11,R6850,Hotel Accommodation - Training,Capita Travel and Events,704.19
202006,May,2.02006E+11,R3670,Vehicle Hire - Car Share Scheme,Enterprise Car Club,"3,720.00"
202006,May,2.02006E+11,R1720,Other Support Function Training,University of Cumbria,550
202006,May,2.02006E+11,R1800,Further Education,University of Cumbria,"1,100.00"
202006,May,2.02006E+11,R1740,Leadership Training,Thomas International UK Ltd,700
202006,May,2.02006E+11,R1740,Leadership Training,Thomas International UK Ltd,700
202006,May,2.02006E+11,R1800,Further Education,University of Wolverhampton,"1,042.00"
202006,May,2.02006E+11,R6730,Non-Staff Advertising,Cumberland FA,900
202006,May,2.02006E+11,R6745,Other Promotional Expenses,Soopa Doopa Branding Ltd,"6,834.00"
202006,May,2.02006E+11,R6745,Other Promotional Expenses,Soopa Doopa Branding Ltd,"3,566.00"
202006,May,2.02006E+11,R6745,Other Promotional Expenses,Soopa Doopa Branding Ltd,"3,825.00"
202006,May,2.02006E+11,R4175,Print Unit - Digital Copier Click Charges,Xerox UK Ltd,"1,152.55"
202006,May,2.02006E+11,R6750,Consultants Fees - Other,SMSR Ltd,616
202006,May,2.02006E+11,R4155,External Printing,Harlow Printing Limited,"1,100.00"
202006,May,2.02006E+11,R2230,Planned Survey Electrics,JJ Group (Contracting) Ltd,742.5
202006,May,2.02006E+11,R5600,Postage Costs,Royal Mail,"1,375.43"
202006,May,2.02006E+11,R5600,Postage Costs,Royal Mail,"1,092.32"
202006,May,2.02006E+11,R3745,Travel - Public Transport,Capita Travel and Events,-614.8
202006,May,2.02006E+11,R6785,Contributions - PCC Commissioning Services,Cumbria Gateway,"10,445.25"
202006,May,2.02006E+11,R6785,Contributions - PCC Commissioning Services,South Workington Youth Partnership,"7,000.00"
202006,May,2.02006E+11,R6785,Contributions - PCC Commissioning Services,Victim Support,"73,369.42"
202006,May,2.02006E+11,R6785,Contributions - PCC Commissioning Services,Victim Support,"14,191.25"
202006,May,2.02006E+11,R6785,Contributions - PCC Commissioning Services,The Well Communities C.I.C,"3,000.00"
202006,May,2.02006E+11,R6785,Contributions - PCC Commissioning Services,Brathay Trust,"6,091.00"
202006,May,2.02006E+11,R0500,Agency Staff,Comensura Ltd,902.06
202006,May,2.02006E+11,R0500,Agency Staff,Comensura Ltd,926.44
202006,May,2.02006E+11,R6830,External Audit Fee,Grant Thornton UK LLP,"5,840.00"
202006,May,2.02006E+11,R6710,Subscriptions,Association of Police and Crime Commissioners,"30,000.00"
202006,May,2.02006E+11,R7082,National Police Chiefs Council (NPCC),Mayors Office for Policing and Crime,"13,766.00"
202006,May,2.02006E+11,R7080,National Police Co-ordination Centre (NPoCC),Mayors Office for Policing and Crime,"16,788.00"
202006,May,2.02006E+11,R7090,Other Collaboration Payments,Mayors Office for Policing and Crime,"7,970.00"
202006,May,2.02006E+11,R4780,Disclosure of information would breach the Data Protection Act 1998 ,Redacted,800
202006,May,2.02006E+11,R5790,Operational Equipment - Audio / Video Equipment,PSS Home Entertainment Limited,715
202006,May,2.02006E+11,R5835,Operational Equipment - Testing Kits & Consumables,Scenesafe,748.08
202006,May,2.02006E+11,R4715,Forensic Analysis - Volume Crime,Key Forensic Services Ltd (Orange UK Holdings Ltd),634.74
202006,May,2.02006E+11,R4715,Forensic Analysis - Volume Crime,Key Forensic Services Ltd (Orange UK Holdings Ltd),972.97
202006,May,2.02006E+11,R4715,Forensic Analysis - Volume Crime,Key Forensic Services Ltd (Orange UK Holdings Ltd),812
202006,May,2.02006E+11,R4705,Forensic Analysis - Over Prescribed Limit,Key Forensic Services Ltd (Orange UK Holdings Ltd),"3,472.03"
202006,May,2.02006E+11,R4705,Forensic Analysis - Over Prescribed Limit,Key Forensic Services Ltd (Orange UK Holdings Ltd),"1,326.75"
202006,May,2.02006E+11,R4705,Forensic Analysis - Over Prescribed Limit,Key Forensic Services Ltd (Orange UK Holdings Ltd),717.75
202006,May,2.02006E+11,R4710,Forensic Analysis - Serious Crime,Key Forensic Services Ltd (Orange UK Holdings Ltd),"1,625.75"
202006,May,2.02006E+11,R4710,Forensic Analysis - Serious Crime,Key Forensic Services Ltd (Orange UK Holdings Ltd),"1,938.45"
202006,May,2.02006E+11,R4715,Forensic Analysis - Volume Crime,Key Forensic Services Ltd (Orange UK Holdings Ltd),"2,001.00"
202006,May,2.02006E+11,R4705,Forensic Analysis - Over Prescribed Limit,Key Forensic Services Ltd (Orange UK Holdings Ltd),"1,405.78"
202006,May,2.02006E+11,R4705,Forensic Analysis - Over Prescribed Limit,Key Forensic Services Ltd (Orange UK Holdings Ltd),"2,319.28"
202006,May,2.02006E+11,R4705,Forensic Analysis - Over Prescribed Limit,Key Forensic Services Ltd (Orange UK Holdings Ltd),535.78
202006,May,2.02006E+11,R4715,Forensic Analysis - Volume Crime,Key Forensic Services Ltd (Orange UK Holdings Ltd),876.12
202006,May,2.02006E+11,R4710,Forensic Analysis - Serious Crime,Key Forensic Services Ltd (Orange UK Holdings Ltd),798.05
202006,May,2.02006E+11,R4710,Forensic Analysis - Serious Crime,Key Forensic Services Ltd (Orange UK Holdings Ltd),"1,102.72"
202006,May,2.02006E+11,R4710,Forensic Analysis - Serious Crime,Key Forensic Services Ltd (Orange UK Holdings Ltd),"4,431.25"
202006,May,2.02006E+11,R7065,TITAN - North West Collaboration,Police and Crime Commissioner for Merseyside,"12,748.25"
202006,May,2.02006E+11,R7065,TITAN - North West Collaboration,Police and Crime Commissioner for Merseyside,"10,944.35"
202006,May,2.02006E+11,R7065,TITAN - North West Collaboration,Police and Crime Commissioner for Merseyside,"34,043.32"
202006,May,2.02006E+11,R7065,TITAN - North West Collaboration,Police and Crime Commissioner for Merseyside,"30,673.54"
202006,May,2.02006E+11,R7065,TITAN - North West Collaboration,Police and Crime Commissioner for Merseyside,"58,429.66"
202006,May,2.02006E+11,R5950,Disclosure of information would breach the Data Protection Act 1998 ,Redacted,619.5
202006,May,2.02006E+11,R5950,Disclosure of information would breach the Data Protection Act 1998 ,Redacted,661.61
202006,May,2.02006E+11,R6750,Consultants Fees - Other,Police and Crime Commissioner for North Wales,"7,070.91"
202006,May,2.02006E+11,R4705,Forensic Analysis - Over Prescribed Limit,Orchid Cellmark Ltd,580
202006,May,2.02006E+11,R4710,Forensic Analysis - Serious Crime,Orchid Cellmark Ltd,649.6
202006,May,2.02006E+11,R4715,Forensic Analysis - Volume Crime,Orchid Cellmark Ltd,649.6
202006,May,2.02006E+11,R4710,Forensic Analysis - Serious Crime,Orchid Cellmark Ltd,632.2
202006,May,2.02006E+11,R4710,Forensic Analysis - Serious Crime,Orchid Cellmark Ltd,"1,167.10"
202006,May,2.02006E+11,R4845,The information is confidential or would attract an exemption under the Freedom of Information Act e.g. where disclosure could be prejudicial to the commercial interests of any person including the authority ,Redacted,"1,260.00"
202006,May,2.02006E+11,R4845,The information is confidential or would attract an exemption under the Freedom of Information Act e.g. where disclosure could be prejudicial to the commercial interests of any person including the authority ,Redacted,"1,800.00"
202006,May,2.02006E+11,R4720,Forensic Analysis - PACE / DNA,Eurofins Forensic Services Ltd,768.66
202006,May,2.02006E+11,R4720,Forensic Analysis - PACE / DNA,Eurofins Forensic Services Ltd,"1,162.08"
202006,May,2.02006E+11,R6750,Consultants Fees - Other,United Kingdom Accreditation Service,"3,077.75"
202006,May,2.02006E+11,R4630,Detained Persons - Appropriate Adult Services,Child Action Northwest,"9,633.12"
202006,May,2.02006E+11,R5916,Police Dogs - Vets Fees,Frame Swift and Partners LLP,954.82
202006,May,2.02006E+11,R4625,Detained Persons - Laundry,Shortridge Ltd,647.55
202006,May,2.02006E+11,R4625,Detained Persons - Laundry,Shortridge Ltd,508.59
202006,May,2.02006E+11,R6702,Confiscated Animal Costs,Whinmill Farm Canine Centre,"5,580.00"
202006,May,2.02006E+11,R6702,Confiscated Animal Costs,Whinmill Farm Canine Centre,"5,865.00"
202006,May,2.02006E+11,R5865,Operational Equipment - Other,Scenesafe,645
202006,May,2.02006E+11,R4625,Detained Persons - Laundry,Shortridge Ltd,"1,265.29"
202006,May,2.02006E+11,R4605,Detained Persons - Clothing,Charles Fellows Supplies Limited,925
202006,May,2.02006E+11,R4960,Disclosure of information would breach the Data Protection Act 1998,Redacted,560
202006,May,2.02006E+11,R6750,Consultants Fees - Other,Perfect Flow Solutions Limited,"7,700.00"
202006,May,2.02006E+11,R6610,Vehicle Recovery Costs,FMG Support (RRRM) Ltd,"1,065.00"
202006,May,2.02006E+11,R5865,Operational Equipment - Other,Arco Limited,599.09
202006,May,2.02006E+11,R6702,Confiscated Animal Costs,Flatt Farm Boarding Kennels,"3,019.00"
202006,May,2.02006E+11,R5980,Firearms Equipment,Civil Defence Supply Limited,"1,737.50"
202006,May,2.02006E+11,C5790,Operational Equipment - Audio / Video Equipment,Axon Public Safety UK Limited,"9,000.00"
202006,May,2.02006E+11,R5835,Operational Equipment - Testing Kits & Consumables,D.Tec International Ltd,"1,674.00"
202006,May,2.02006E+11,R5835,Operational Equipment - Testing Kits & Consumables,D.Tec International Ltd,"1,674.00"
202006,May,2.02006E+11,R5835,Operational Equipment - Testing Kits & Consumables,D.Tec International Ltd,"1,674.00"
202006,May,2.02006E+11,R5835,Operational Equipment - Testing Kits & Consumables,D.Tec International Ltd,"1,701.00"
202006,May,2.02006E+11,R5835,Operational Equipment - Testing Kits & Consumables,D.Tec International Ltd,"1,701.00"
202006,May,2.02006E+11,R5835,Operational Equipment - Testing Kits & Consumables,D.Tec International Ltd,"1,701.00"
202006,May,2.02006E+11,R1630,Other Operational Training,The ATTAC Group,"7,920.00"
202006,May,2.02006E+11,R4940,First Aid Equipment / Consumables,The ATTAC Group,"1,260.00"
202006,May,2.02006E+11,R5910,Police Dogs - Purchase,Foxhills Boarding Kennels,"1,500.00"
202006,May,2.02006E+11,R4940,First Aid Equipment / Consumables,Henleys Medical Supplies Ltd,"1,750.00"
202006,May,2.02006E+11,R4940,First Aid Equipment / Consumables,Henleys Medical Supplies Ltd,"1,750.00"
202006,May,2.02006E+11,R5110,Networks Hardware Purchase,SCC (Specialist Computer Centre),"5,507.70"
202006,May,2.02006E+11,R5110,Networks Hardware Purchase,SCC (Specialist Computer Centre),"4,244.50"
202006,May,2.02006E+11,R2700,Cleaning Contract,Bulloughs Cleaning Services Ltd,"5,213.45"
202006,May,2.02006E+11,R2700,Cleaning Contract,Bulloughs Cleaning Services Ltd,664.7
202006,May,2.02006E+11,R4940,First Aid Equipment / Consumables,Thomas Graham and Sons Limited,"1,149.60"
202006,May,2.02006E+11,R4940,First Aid Equipment / Consumables,Thomas Graham and Sons Limited,"2,902.50"
202006,May,2.02006E+11,R4940,First Aid Equipment / Consumables,Thomas Graham and Sons Limited,"1,161.00"
202006,May,2.02006E+11,R4000,Office Equipment - Purchase,PSS Home Entertainment Limited,"2,504.00"
202006,May,2.02006E+11,R2410,Minor Works,Frederick Potts and Sons Ltd,"1,060.76"
202006,May,2.02006E+11,R4940,First Aid Equipment / Consumables,Scenesafe,"2,950.00"
202006,May,2.02006E+11,R2700,Cleaning Contract,West Cumbria Estates Management Limited,"1,223.87"
202006,May,2.02006E+11,R4940,First Aid Equipment / Consumables,HBS Healthcare,"25,000.00"
202006,May,2.02006E+11,R4940,First Aid Equipment / Consumables,HBS Healthcare,"25,000.00"
202006,May,2.02006E+11,R4940,First Aid Equipment / Consumables,HBS Healthcare,"25,000.00"
202006,May,2.02006E+11,R5110,Networks Hardware Purchase,CPC Plc,"1,125.00"
202006,May,2.02006E+11,R5325,Computer Software - Maintenance,Fortrus Limited,"38,152.00"
202006,May,2.02006E+11,R5310,Computer Hardware - Purchase,Stone Computers Ltd,"31,375.00"
202006,May,2.02006E+11,R5110,Networks Hardware Purchase,Stone Computers Ltd,"24,625.00"
202006,May,2.02006E+11,R5310,Computer Hardware - Purchase,Stone Computers Ltd,"2,550.00"
202006,May,2.02006E+11,C3900,Vehicle Purchases - Capital,Volkswagen Group UK Ltd,"28,111.06"
202006,May,2.02006E+11,C3900,Vehicle Purchases - Capital,Volkswagen Group UK Ltd,"23,119.34"
202006,May,2.02006E+11,B2302,Inventories/Stocks - General / Admin Equipment - Purchases,Arrow County Supplies,775.4
202006,May,2.02006E+11,B2302,Inventories/Stocks - General / Admin Equipment - Purchases,Arrow County Supplies,949.06
202006,May,2.02006E+11,B2312,Inventories/Stocks - Uniforms - Purchases,Sonic Communications Int Ltd,600.5
202006,May,2.02006E+11,B2312,Inventories/Stocks - Uniforms - Purchases,TCH UK Ltd,"4,010.00"
202006,May,2.02006E+11,B2312,Inventories/Stocks - Uniforms - Purchases,Tranam Limited,"1,148.32"
202006,May,2.02006E+11,R4000,Office Equipment - Purchase,PSS Home Entertainment Limited,575
202006,May,2.02006E+11,B2312,Inventories/Stocks - Uniforms - Purchases,Yaffy (MWUK Ltd),"2,587.50"
202006,May,2.02006E+11,B2312,Inventories/Stocks - Uniforms - Purchases,Lloyd Motors Ltd,545.13
202006,May,2.02006E+11,B2312,Inventories/Stocks - Uniforms - Purchases,Keela International Ltd,"1,427.30"
202006,May,2.02006E+11,B2312,Inventories/Stocks - Uniforms - Purchases,Turner Virr  Co Ltd,"1,522.50"
202006,May,2.02006E+11,B4006,Provision for Insurance Liabilities - Drawdown from Provision - Own Counsel's Costs,Atlantic Chambers,-900
202006,May,2.02006E+11,B4053,Provision for Legal Claims - Drawdown from Provision,Atlantic Chambers,750
202006,May,2.02006E+11,B4004,Disclosure of information would breach the Data Protection Act 1998,Redacted,"3,500.00"
202006,May,2.02006E+11,B4005,Provision for Insurance Liabilities - Drawdown from Provision - Own Solicitor's Costs,Weightmans LLP,"4,924.80"
202006,May,2.02006E+11,B4003,Disclosure of information would breach the Data Protection Act 1998,Redacted,"7,800.00"
202006,May,2.02006E+11,B4004,Disclosure of information would breach the Data Protection Act 1998,Redacted,720
202006,May,2.02006E+11,B4007,Disclosure of information would breach the Data Protection Act 1998,Redacted,"1,092.00"
202006,May,2.02006E+11,B4003,Disclosure of information would breach the Data Protection Act 1998,Redacted,"2,420.00"
202006,May,2.02006E+11,R6660,Counsel Fees,5 Essex Court,-510
202006,Jun,2.02006E+11,R0500,Agency Staff,Comensura Ltd,"1,200.63"
202006,Jun,2.02006E+11,R0500,Agency Staff,Comensura Ltd,"5,339.50"
202006,Jun,2.02006E+11,R0500,Agency Staff,Comensura Ltd,"1,024.20"
202006,Jun,2.02006E+11,R0500,Agency Staff,Comensura Ltd,"4,593.54"
202006,Jun,2.02006E+11,R0500,Agency Staff,Comensura Ltd,597.12
202006,Jun,2.02006E+11,R0500,Agency Staff,Comensura Ltd,"1,342.64"
202006,Jun,2.02006E+11,R0500,Agency Staff,Comensura Ltd,"1,775.56"
202006,Jun,2.02006E+11,R0500,Agency Staff,Comensura Ltd,"1,013.98"
202006,Jun,2.02006E+11,R0500,Agency Staff,Comensura Ltd,"1,250.22"
202006,Jun,2.02006E+11,R0500,Agency Staff,Comensura Ltd,"1,032.80"
202006,Jun,2.02006E+11,R0500,Agency Staff,Comensura Ltd,"3,551.12"
202006,Jun,2.02006E+11,R0500,Agency Staff,Comensura Ltd,"1,842.22"
202006,Jun,2.02006E+11,R0500,Agency Staff,Comensura Ltd,867.69
202006,Jun,2.02006E+11,R0500,Agency Staff,Comensura Ltd,"1,032.80"
202006,Jun,2.02006E+11,R0500,Agency Staff,Comensura Ltd,"2,219.45"
202006,Jun,2.02006E+11,R0500,Agency Staff,Comensura Ltd,"1,044.67"
202006,Jun,2.02006E+11,R0500,Agency Staff,Comensura Ltd,597.12
202006,Jun,2.02006E+11,R0500,Agency Staff,Comensura Ltd,"1,032.80"
202006,Jun,2.02006E+11,R0500,Agency Staff,Comensura Ltd,"3,995.01"
202006,Jun,2.02006E+11,R0500,Agency Staff,Comensura Ltd,897.84
202006,Jun,2.02006E+11,R0500,Agency Staff,Comensura Ltd,"4,593.54"
202006,Jun,2.02006E+11,R0500,Agency Staff,Comensura Ltd,746.4
202006,Jun,2.02006E+11,R0500,Agency Staff,Comensura Ltd,955.34
202006,Jun,2.02006E+11,R0500,Agency Staff,Comensura Ltd,"1,065.10"
202006,Jun,2.02006E+11,R0500,Agency Staff,Comensura Ltd,915.84
202006,Jun,2.02006E+11,R0500,Agency Staff,Comensura Ltd,"1,418.16"
202006,Jun,2.02006E+11,R0500,Agency Staff,Comensura Ltd,"1,252.27"
202006,Jun,2.02006E+11,R0500,Agency Staff,Comensura Ltd,"2,219.45"
202006,Jun,2.02006E+11,R0500,Agency Staff,Comensura Ltd,"1,065.10"
202006,Jun,2.02006E+11,R0500,Agency Staff,Comensura Ltd,597.12
202006,Jun,2.02006E+11,R0500,Agency Staff,Comensura Ltd,"2,219.45"
202006,Jun,2.02006E+11,R0500,Agency Staff,Comensura Ltd,"1,065.11"
202006,Jun,2.02006E+11,R1610,CID Training,Sancus Solutions Ltd,635
202006,Jun,2.02006E+11,R1610,CID Training,Sancus Solutions Ltd,635
202006,Jun,2.02006E+11,R1138,Psychological Screening,NTA Psychological Screening Ltd,"1,380.00"
202006,Jun,2.02006E+11,R3740,Disclosure of information would breach the Data Protection Act 1998,Redacted,"1,026.00"
202006,Jun,2.02006E+11,R3740,Disclosure of information would breach the Data Protection Act 1998,Redacted,972
202006,Jun,2.02006E+11,Z2123,Returned Payments - Clearance in the Year (Expenditure),Black Bag Technologies,"1,308.00"
202006,Jun,2.02006E+11,Z2123,Returned Payments - Clearance in the Year (Expenditure),BNP Paribas Leasing Solutions Ltd,519.99
202006,Jun,2.02006E+11,Z2123,Returned Payments - Clearance in the Year (Expenditure),BNP Paribas Leasing Solutions Ltd,519.99
202006,Jun,2.02006E+11,Z2123,Returned Payments - Clearance in the Year (Expenditure),BNP Paribas Leasing Solutions Ltd,519.99
202006,Jun,2.02006E+11,Z2123,Returned Payments - Clearance in the Year (Expenditure),BNP Paribas Leasing Solutions Ltd,519.99
202006,Jun,2.02006E+11,R4880,Ex-Gratia Payments,Exgratia Payments,807
202006,Jun,2.02006E+11,R7290,Other Third Party Payments,Cumbria Police Federation Joint Branch Board,"6,000.00"
202006,Jun,2.02006E+11,Z2123,Returned Payments - Clearance in the Year (Expenditure),Mr Adrian Desmond (Returned seized cash),600
202006,Jun,2.02006E+11,R7040,Payroll Services,MHR International UK LTD,"15,856.50"
202006,Jun,2.02006E+11,R6710,Subscriptions,National Crime Agency,577
202006,Jun,2.02006E+11,R7042,Pension Services,XPS Administration Limited T/A XPS Administration,"8,911.17"
202006,Jun,2.02006E+11,R6710,Subscriptions,Protect,"1,127.11"
202006,Jun,2.02006E+11,R6710,Subscriptions,Police and Crime Commissioner for Hampshire Constabulary,"3,650.16"
202006,Jun,2.02006E+11,R7290,Other Third Party Payments,Police and Crime Commissioner for Hampshire Constabulary,"1,817.97"
202006,Jun,2.02006E+11,R3660,The information is confidential or would attract an exemption under the Freedom of Information Act e.g. where disclosure could be prejudicial to the commercial interests of any person including the authority ,Redacted,"1,980.00"
202006,Jun,2.02006E+11,R2661,Council Tax,Warrington Borough Council,"1,828.83"
202006,Jun,2.02006E+11,R2600,Rent,Reed Rains,750
202006,Jun,2.02006E+11,R5015,Telephone Charges - Mobile Phones,EE Limited,"2,394.48"
202006,Jun,2.02006E+11,R5325,Computer Software - Maintenance,Clue Computing Company Ltd,"3,900.00"
202006,Jun,2.02006E+11,R5325,Computer Software - Maintenance,Capita Secure Information Solutions Ltd,"5,523.90"
202006,Jun,2.02006E+11,R5325,Computer Software - Maintenance,Capita Secure Information Solutions Ltd,"5,662.00"
202006,Jun,2.02006E+11,R5325,Computer Software - Maintenance,Civica UK Ltd,"14,487.28"
202006,Jun,2.02006E+11,C6750,Consultants Fees - Other,Perfect Flow Solutions Limited,"7,000.00"
202006,Jun,2.02006E+11,R5325,Computer Software - Maintenance,Northgate Public Services UK Ltd,"12,499.00"
202006,Jun,2.02006E+11,R5210,Radio / Airwave Equipment - Purchases,Primetake Ltd,907.5
202006,Jun,2.02006E+11,R6755,Consultants Fees - ICT,Comensura Ltd,"1,200.80"
202006,Jun,2.02006E+11,R6755,Consultants Fees - ICT,Comensura Ltd,"1,501.00"
202006,Jun,2.02006E+11,R6755,Consultants Fees - ICT,Comensura Ltd,"1,032.80"
202006,Jun,2.02006E+11,R6755,Consultants Fees - ICT,Comensura Ltd,"1,501.00"
202006,Jun,2.02006E+11,R5325,Computer Software - Maintenance,Softcat PLC,"120,946.00"
202006,Jun,2.02006E+11,R5325,Computer Software - Maintenance,Softcat PLC,"26,010.00"
202006,Jun,2.02006E+11,R5325,Computer Software - Maintenance,Softcat PLC,"23,040.00"
202006,Jun,2.02006E+11,R5325,Computer Software - Maintenance,Softcat PLC,"32,460.00"
202006,Jun,2.02006E+11,R5325,Computer Software - Maintenance,Softcat PLC,"70,782.00"
202006,Jun,2.02006E+11,R5120,Networks Private Circuits,Insight Direct (UK) Ltd,"3,807.42"
202006,Jun,2.02006E+11,R5120,Networks Private Circuits,Vodafone Limited,"3,958.16"
202006,Jun,2.02006E+11,R5120,Networks Private Circuits,Vodafone Limited,"23,400.00"
202006,Jun,2.02006E+11,R5120,Networks Private Circuits,Vodafone Limited,"5,987.22"
202006,Jun,2.02006E+11,R5120,Networks Private Circuits,Vodafone Limited,"11,876.21"
202006,Jun,2.02006E+11,R5120,Networks Private Circuits,Vodafone Limited,"11,876.21"
202006,Jun,2.02006E+11,R5120,Networks Private Circuits,Vodafone Limited,"3,958.16"
202006,Jun,2.02006E+11,R5315,Computer Hardware - Maintenance,Specialised Equipment Cleaning,660
202006,Jun,2.02006E+11,R5010,Telephone Charges - Landlines,TalkTalk,"2,492.61"
202006,Jun,2.02006E+11,R5320,Computer Software - Purchase,MHR International UK LTD,"1,500.00"
202006,Jun,2.02006E+11,R5325,Computer Software - Maintenance,MHR International UK LTD,"3,850.00"
202006,Jun,2.02006E+11,R5320,Computer Software - Purchase,MHR International UK LTD,"3,369.50"
202006,Jun,2.02006E+11,R5120,Networks Private Circuits,Vodafone Limited,"1,776.00"
202006,Jun,2.02006E+11,R5120,Networks Private Circuits,Vodafone Limited,"8,800.40"
202006,Jun,2.02006E+11,R5215,Radio / Airwave Equipment - Maintenance,Airwave Solutions Limited (Subsidiary:- Kelvin Connect),"79,036.73"
202006,Jun,2.02006E+11,R7110,National Police ICT Service Charges,Police and Crime Commissioner for Hampshire Constabulary,"20,915.43"
202006,Jun,2.02006E+11,C5310,Computer Hardware - Purchase,Stone Computers Ltd,"5,060.00"
202006,Jun,2.02006E+11,C6755,Consultants Fees - ICT,CW Systems Intergration Limited,"2,000.00"
202006,Jun,2.02006E+11,R5325,Computer Software - Maintenance,Version 1 Solutions Limited,"4,064.98"
202006,Jun,2.02006E+11,R6755,Consultants Fees - ICT,Version 1 Solutions Limited,"5,405.68"
202006,Jun,2.02006E+11,R2720,Other Cleaning & Domestic Equipment,Arrow County Supplies,775.4
202006,Jun,2.02006E+11,R2720,Other Cleaning & Domestic Equipment,Arrow County Supplies,929.1
202006,Jun,2.02006E+11,R2720,Other Cleaning & Domestic Equipment,Arrow County Supplies,"1,394.80"
202006,Jun,2.02006E+11,R3510,Vehicle Fuel,Allstar Business Solutions Ltd,"1,529.32"
202006,Jun,2.02006E+11,R2800,Security and Alarms (inc locks),Chubb Fire and Security Limited,"4,317.13"
202006,Jun,2.02006E+11,R2800,Security and Alarms (inc locks),Chubb Fire and Security Limited,689.87
202006,Jun,2.02006E+11,R2800,Security and Alarms (inc locks),Chubb Fire and Security Limited,709.73
202006,Jun,2.02006E+11,R3120,Vehicle Maintenance - Parts Purchase,James Alpe Ltd,535
202006,Jun,2.02006E+11,R2700,Cleaning Contract,Bulloughs Cleaning Services Ltd,"13,144.49"
202006,Jun,2.02006E+11,R2700,Cleaning Contract,Bulloughs Cleaning Services Ltd,"3,742.03"
202006,Jun,2.02006E+11,R2700,Cleaning Contract,Bulloughs Cleaning Services Ltd,600.98
202006,Jun,2.02006E+11,R2700,Cleaning Contract,Bulloughs Cleaning Services Ltd,"5,156.04"
202006,Jun,2.02006E+11,R2700,Cleaning Contract,Bulloughs Cleaning Services Ltd,"2,430.46"
202006,Jun,2.02006E+11,R2700,Cleaning Contract,Bulloughs Cleaning Services Ltd,"3,688.02"
202006,Jun,2.02006E+11,R2700,Cleaning Contract,Bulloughs Cleaning Services Ltd,"1,502.43"
202006,Jun,2.02006E+11,R2700,Cleaning Contract,Bulloughs Cleaning Services Ltd,568.48
202006,Jun,2.02006E+11,R2700,Cleaning Contract,Bulloughs Cleaning Services Ltd,600.97
202006,Jun,2.02006E+11,R2700,Cleaning Contract,Bulloughs Cleaning Services Ltd,"2,746.86"
202006,Jun,2.02006E+11,R2700,Cleaning Contract,Bulloughs Cleaning Services Ltd,"1,502.43"
202006,Jun,2.02006E+11,R2700,Cleaning Contract,Bulloughs Cleaning Services Ltd,"1,397.00"
202006,Jun,2.02006E+11,R2700,Cleaning Contract,Bulloughs Cleaning Services Ltd,517
202006,Jun,2.02006E+11,R7006,North West Ambulance Service - Estates Management Collaboration,BID Group Ltd,"1,295.00"
202006,Jun,2.02006E+11,R7006,North West Ambulance Service - Estates Management Collaboration,BID Group Ltd,"2,070.00"
202006,Jun,2.02006E+11,R7006,North West Ambulance Service - Estates Management Collaboration,BID Group Ltd,"1,700.00"
202006,Jun,2.02006E+11,R7006,North West Ambulance Service - Estates Management Collaboration,BID Group Ltd,760
202006,Jun,2.02006E+11,R3450,Accident Damage (Below Insurance Excess)),Thompson Accident Repair Centre Ltd,964.39
202006,Jun,2.02006E+11,R3460,Accident Damage (Below Insurance Threshold),Thompson Accident Repair Centre Ltd,583.87
202006,Jun,2.02006E+11,R3460,Accident Damage (Below Insurance Threshold),Thompson Accident Repair Centre Ltd,"1,000.00"
202006,Jun,2.02006E+11,R3460,Accident Damage (Below Insurance Threshold),Thompson Accident Repair Centre Ltd,"4,625.83"
202006,Jun,2.02006E+11,R3460,Accident Damage (Below Insurance Threshold),Thompson Accident Repair Centre Ltd,"1,000.00"
202006,Jun,2.02006E+11,C3905,Vehicle Adaptations - Capital,Thompson Accident Repair Centre Ltd,530
202006,Jun,2.02006E+11,R2275,Planned Servicing HVAC System,Carlisle Refrigeration Limited,662.2
202006,Jun,2.02006E+11,R3120,Vehicle Maintenance - Parts Purchase,Lloyd Motorrad,"1,608.34"
202006,Jun,2.02006E+11,R3120,Vehicle Maintenance - Parts Purchase,Lloyd Motorrad,519.74
202006,Jun,2.02006E+11,R3130,Vehicle Maintenance - Work Done Externally,Lloyd Motorrad,592.93
202006,Jun,2.02006E+11,R3110,Vehicle Maintenance - Tyres & Tubes,Lloyd Motorrad,500.99
202006,Jun,2.02006E+11,R2050,Unplanned Building Services Electrics,JJ Group (Contracting) Ltd,798.4
202006,Jun,2.02006E+11,R7006,North West Ambulance Service - Estates Management Collaboration,Cumbria Mechanical and Plumbing Ltd,806.45
202006,Jun,2.02006E+11,R2260,Planned Servicing Boiler & Heating Plant,Cumbria Mechanical and Plumbing Ltd,880
202006,Jun,2.02006E+11,R2060,Unplanned Building Services Environmental Services/Plumbing,Cumbria Mechanical and Plumbing Ltd,802.36
202006,Jun,2.02006E+11,R2600,Rent,Walton Goodland Limited,"1,750.00"
202006,Jun,2.02006E+11,R2460,Grounds Maintenance - Contract,S Nicholson Grounds Maintenance,765
202006,Jun,2.02006E+11,R2230,Planned Survey Electrics,PSS Home Entertainment Limited,"1,750.00"
202006,Jun,2.02006E+11,R2230,Planned Survey Electrics,West Cumbria Estates Management Limited,677
202006,Jun,2.02006E+11,R2680,PFI Occupancy Charges,West Cumbria Estates Management Limited,"105,000.00"
202006,Jun,2.02006E+11,R2230,Planned Survey Electrics,West Cumbria Estates Management Limited,977.9
202006,Jun,2.02006E+11,R2680,PFI Occupancy Charges,West Cumbria Estates Management Limited,"105,000.00"
202006,Jun,2.02006E+11,C3905,Vehicle Adaptations - Capital,Fleet ID Ltd,"2,016.68"
202006,Jun,2.02006E+11,C3905,Vehicle Adaptations - Capital,Fleet ID Ltd,"4,033.36"
202006,Jun,2.02006E+11,C3905,Vehicle Adaptations - Capital,Fleet ID Ltd,"-4,033.36"
202006,Jun,2.02006E+11,R3120,Vehicle Maintenance - Parts Purchase,Arnold Clark Automobiles Ltd,932.74
202006,Jun,2.02006E+11,R3120,Vehicle Maintenance - Parts Purchase,Arnold Clark Automobiles Ltd,507.02
202006,Jun,2.02006E+11,R3120,Vehicle Maintenance - Parts Purchase,Arnold Clark Automobiles Ltd,792.81
202006,Jun,2.02006E+11,R3210,Police Vehicle Recovery & Transport,FMG Support (RRRM) Ltd,"2,362.80"
202006,Jun,2.02006E+11,R2730,Refuse,Biffa Waste Services Limited,610.08
202006,Jun,2.02006E+11,R2730,Refuse,Biffa Waste Services Limited,513.6
202006,Jun,2.02006E+11,R2730,Refuse,Biffa Waste Services Limited,754.8
202006,Jun,2.02006E+11,R3120,Vehicle Maintenance - Parts Purchase,Pye Motors Ltd,844
202006,Jun,2.02006E+11,R2265,Planned Servicing Fire Systems,FTS Fire and  Security Ltd,600
202006,Jun,2.02006E+11,R7006,North West Ambulance Service - Estates Management Collaboration,FTS Fire and  Security Ltd,570.01
202006,Jun,2.02006E+11,R3120,Vehicle Maintenance - Parts Purchase,D Stoker Group Ltd,542.54
202006,Jun,2.02006E+11,R3120,Vehicle Maintenance - Parts Purchase,D Stoker Group Ltd,565.16
202006,Jun,2.02006E+11,R3120,Vehicle Maintenance - Parts Purchase,D Stoker Group Ltd,-542.54
202006,Jun,2.02006E+11,R3120,Vehicle Maintenance - Parts Purchase,Guy Perry Ltd,517.84
202006,Jun,2.02006E+11,R3120,Vehicle Maintenance - Parts Purchase,Guy Perry Ltd,528.14
202006,Jun,2.02006E+11,R3120,Vehicle Maintenance - Parts Purchase,Guy Perry Ltd,528.14
202006,Jun,2.02006E+11,R3120,Vehicle Maintenance - Parts Purchase,Guy Perry Ltd,834.76
202006,Jun,2.02006E+11,R3120,Vehicle Maintenance - Parts Purchase,Guy Perry Ltd,"1,757.95"
202006,Jun,2.02006E+11,R3120,Vehicle Maintenance - Parts Purchase,Guy Perry Ltd,857.3
202006,Jun,2.02006E+11,R2610,Estates Leases,Dalton Community Association,"1,100.00"
202006,Jun,2.02006E+11,R3120,Vehicle Maintenance - Parts Purchase,Volkswagen Group UK Ltd,588.13
202006,Jun,2.02006E+11,R2610,Estates Leases,Ulverston Properties Limited,820.83
202006,Jun,2.02006E+11,R2260,Planned Servicing Boiler & Heating Plant,Zip Heaters UK Ltd t a Zip Water,"1,776.00"
202006,Jun,2.02006E+11,R3120,Vehicle Maintenance - Parts Purchase,Ford Motor Co Ltd T/A Parts Plus,524.48
202006,Jun,2.02006E+11,R3120,Vehicle Maintenance - Parts Purchase,Ford Motor Co Ltd T/A Parts Plus,546.75
202006,Jun,2.02006E+11,R3120,Vehicle Maintenance - Parts Purchase,Ford Motor Co Ltd T/A Parts Plus,862.25
202006,Jun,2.02006E+11,R3120,Vehicle Maintenance - Parts Purchase,Ford Motor Co Ltd T/A Parts Plus,510.4
202006,Jun,2.02006E+11,R2286,Planned Servicing Generators/UPS,Power Tecnique Limited,808.5
202006,Jun,2.02006E+11,R2050,Unplanned Building Services Electrics,Power Tecnique Limited,545
202006,Jun,2.02006E+11,R7006,North West Ambulance Service - Estates Management Collaboration,W Hughes & Sons Limited,"24,100.00"
202006,Jun,2.02006E+11,R3450,Accident Damage (Below Insurance Excess)),Enterprise Rent-a-car UK Limited,612.27
202006,Jun,2.02006E+11,R3450,Accident Damage (Below Insurance Excess)),Enterprise Rent-a-car UK Limited,583.81
202006,Jun,2.02006E+11,R3450,Accident Damage (Below Insurance Excess)),Enterprise Rent-a-car UK Limited,771.56
202006,Jun,2.02006E+11,R3450,Accident Damage (Below Insurance Excess)),Enterprise Rent-a-car UK Limited,747.92
202006,Jun,2.02006E+11,R7006,North West Ambulance Service - Estates Management Collaboration,Countrywide Grounds Maintenance Ltd,"3,208.34"
202006,Jun,2.02006E+11,R3120,Vehicle Maintenance - Parts Purchase,Lloyd Motors Ltd,616.38
202006,Jun,2.02006E+11,R3120,Vehicle Maintenance - Parts Purchase,Lloyd Motors Ltd,589.72
202006,Jun,2.02006E+11,R3120,Vehicle Maintenance - Parts Purchase,Lloyd Motors Ltd,536.55
202006,Jun,2.02006E+11,R3120,Vehicle Maintenance - Parts Purchase,Lloyd Motors Ltd,590.46
202006,Jun,2.02006E+11,R3110,Vehicle Maintenance - Tyres & Tubes,Lloyd Motors Ltd,928.08
202006,Jun,2.02006E+11,R3110,Vehicle Maintenance - Tyres & Tubes,Lloyd Motors Ltd,"1,534.78"
202006,Jun,2.02006E+11,R2505,Gas,Corona Energy,"10,122.75"
202006,Jun,2.02006E+11,R2530,Climate Change Levy,Corona Energy,"1,438.39"
202006,Jun,2.02006E+11,R3510,Vehicle Fuel,Allstar Business Solutions Ltd,661.2
202006,Jun,2.02006E+11,R3510,Vehicle Fuel,Allstar Business Solutions Ltd,"38,452.74"
202006,Jun,2.02006E+11,R3510,Vehicle Fuel,Allstar Business Solutions Ltd,799.45
202006,Jun,2.02006E+11,R3510,Vehicle Fuel,Allstar Business Solutions Ltd,"1,767.29"
202006,Jun,2.02006E+11,R3510,Vehicle Fuel,Allstar Business Solutions Ltd,623.49
202006,Jun,2.02006E+11,R3510,Vehicle Fuel,Allstar Business Solutions Ltd,873.87
202006,Jun,2.02006E+11,R2140,Unplanned Building Maintenance Internal Maintenance,Chubb Locks Custodial Services Ltd,"1,187.37"
202006,Jun,2.02006E+11,R2030,Unplanned Building Services Security & Security Equipment Maintenance,Chubb Locks Custodial Services Ltd,525
202006,Jun,2.02006E+11,R5600,Postage Costs,Pitney Bowes Ltd,"1,516.27"
202006,Jun,2.02006E+11,R5630,Courier Services - Internal Deliveries,Cumbria County Council,"2,904.63"
202006,Jun,2.02006E+11,R5630,Courier Services - Internal Deliveries,Cumbria County Council,"3,376.47"
202006,Jun,2.02006E+11,R4090,The information is confidential or would attract an exemption under the Freedom of Information Act e.g. where disclosure could be prejudicial to the commercial interests of any person including the authority,Redacted,819.9
202006,Jun,2.02006E+11,R4090,The information is confidential or would attract an exemption under the Freedom of Information Act e.g. where disclosure could be prejudicial to the commercial interests of any person including the authority,Redacted,602.46
202006,Jun,2.02006E+11,R4090,The information is confidential or would attract an exemption under the Freedom of Information Act e.g. where disclosure could be prejudicial to the commercial interests of any person including the authority,Redacted,538.14
202006,Jun,2.02006E+11,R4090,The information is confidential or would attract an exemption under the Freedom of Information Act e.g. where disclosure could be prejudicial to the commercial interests of any person including the authority,Redacted,512.4
202006,Jun,2.02006E+11,R6850,Hotel Accommodation - Training,Capita Travel and Events,"3,360.00"
202006,Jun,2.02006E+11,R6850,Hotel Accommodation - Training,Capita Travel and Events,"1,920.00"
202006,Jun,2.02006E+11,R6850,Hotel Accommodation - Training,Capita Travel and Events,942
202006,Jun,2.02006E+11,R6850,Hotel Accommodation - Training,Capita Travel and Events,"9,120.00"
202006,Jun,2.02006E+11,R6850,Hotel Accommodation - Training,Capita Travel and Events,"1,250.00"
202006,Jun,2.02006E+11,R6850,Hotel Accommodation - Training,Capita Travel and Events,550
202006,Jun,2.02006E+11,R3605,Vehicle Hire - Training,Enterprise Rent-a-car UK Limited,520.44
202006,Jun,2.02006E+11,R5600,Postage Costs,Royal Mail,787
202006,Jun,2.02006E+11,R1800,Further Education,University of Cumbria,"-1,100.00"
202006,Jun,2.02006E+11,R1800,Further Education,University of Cumbria,"1,912.50"
202006,Jun,2.02006E+11,R1720,Other Support Function Training,SFJ Awards Limited,"1,836.00"
202006,Jun,2.02006E+11,R1720,Other Support Function Training,SFJ Awards Limited,"1,088.00"
202006,Jun,2.02006E+11,R1720,Other Support Function Training,SFJ Awards Limited,"1,088.00"
202006,Jun,2.02006E+11,R1720,Other Support Function Training,SFJ Awards Limited,"2,448.00"
202006,Jun,2.02006E+11,R1720,Other Support Function Training,SFJ Awards Limited,"1,224.00"
202006,Jun,2.02006E+11,R5350,Web Design & Running Costs,Smartsurvey Ltd,540
202006,Jun,2.02006E+11,R6750,Consultants Fees - Other,SMSR Ltd,707
202006,Jun,2.02006E+11,R6730,Non-Staff Advertising,Global Radio Services Limited,765.63
202006,Jun,2.02006E+11,R5350,Web Design & Running Costs,Zengenti Ltd,"8,016.00"
202006,Jun,2.02006E+11,R5600,Postage Costs,Royal Mail,995.34
202006,Jun,2.02006E+11,R6990,Other Miscellaneous Expenditure,Carlisle City Council,"3,777.33"
202006,Jun,2.02006E+11,R6785,Contributions - PCC Commissioning Services,Eden District Council,"-6,000.00"
202006,Jun,2.02006E+11,R6785,Contributions - PCC Commissioning Services,Eden District Council,"6,000.00"
202006,Jun,2.02006E+11,R6785,Contributions - PCC Commissioning Services,North Cumbria Integrated care NHS Foundation Trust (NCIC NHS FT),"-42,000.00"
202006,Jun,2.02006E+11,R2600,Rent,North Cumbria Integrated care NHS Foundation Trust (NCIC NHS FT),"1,400.00"
202006,Jun,2.02006E+11,R2700,Cleaning Contract,North Cumbria Integrated care NHS Foundation Trust (NCIC NHS FT),"2,186.25"
202006,Jun,2.02006E+11,R2700,Cleaning Contract,North Cumbria Integrated care NHS Foundation Trust (NCIC NHS FT),"2,186.25"
202006,Jun,2.02006E+11,R2700,Cleaning Contract,North Cumbria Integrated care NHS Foundation Trust (NCIC NHS FT),"1,560.54"
202006,Jun,2.02006E+11,R2510,Electricity,North Cumbria Integrated care NHS Foundation Trust (NCIC NHS FT),"1,117.84"
202006,Jun,2.02006E+11,R6785,Contributions - PCC Commissioning Services,North Cumbria Integrated care NHS Foundation Trust (NCIC NHS FT),"42,000.00"
202006,Jun,2.02006E+11,R6785,Contributions - PCC Commissioning Services,Victim Support,"73,369.42"
202006,Jun,2.02006E+11,R6785,Contributions - PCC Commissioning Services,Victim Support,"14,191.25"
202006,Jun,2.02006E+11,R6785,Contributions - PCC Commissioning Services,Resource Creatives Enterprises Ltd,692.44
202006,Jun,2.02006E+11,R6785,Contributions - PCC Commissioning Services,Resource Creatives Enterprises Ltd,692.44
202006,Jun,2.02006E+11,R6785,Contributions - PCC Commissioning Services,Resource Creatives Enterprises Ltd,"2,967.60"
202006,Jun,2.02006E+11,R6785,Contributions - PCC Commissioning Services,Satterthwaite & Rusland Rural Crime Initiative,842.4
202006,Jun,2.02006E+11,R0500,Agency Staff,Comensura Ltd,902.06
202006,Jun,2.02006E+11,R0500,Agency Staff,Comensura Ltd,963.01
202006,Jun,2.02006E+11,R0500,Agency Staff,Comensura Ltd,"1,194.62"
202006,Jun,2.02006E+11,R0500,Agency Staff,Comensura Ltd,926.44
202006,Jun,2.02006E+11,R0500,Agency Staff,Comensura Ltd,804.54
202006,Jun,2.02006E+11,R0500,Agency Staff,Comensura Ltd,926.44
202006,Jun,2.02006E+11,R0500,Agency Staff,Comensura Ltd,877.68
202006,Jun,2.02006E+11,R0500,Agency Staff,Comensura Ltd,902.06
202006,Jun,2.02006E+11,R6785,Contributions - PCC Commissioning Services,"Cumbria, Northumberland Tyne & Wear NHS FT","84,000.00"
202006,Jun,2.02006E+11,R6785,Contributions - PCC Commissioning Services,Restorative Solutions CIC,"5,000.00"
202006,Jun,2.02006E+11,R6785,Contributions - PCC Commissioning Services,Remedi Restorative Services,"11,641.67"
202006,Jun,2.02006E+11,R6785,Contributions - PCC Commissioning Services,Remedi Restorative Services,"11,641.67"
202006,Jun,2.02006E+11,R7090,Other Collaboration Payments,Carlisle City Council,"6,000.00"
202006,Jun,2.02006E+11,R7090,Other Collaboration Payments,Police and Crime Commissioner for Cheshire,"5,520.60"
202006,Jun,2.02006E+11,R7090,Other Collaboration Payments,Police and Crime Commissioner for Lancashire,"2,137.54"
202006,Jun,2.02006E+11,C5790,Operational Equipment - Audio / Video Equipment,NDI Recognition Systems Limited,"25,230.00"
202006,Jun,2.02006E+11,R5865,Operational Equipment - Other,Dave Hudson,820
202006,Jun,2.02006E+11,R4710,Forensic Analysis - Serious Crime,Key Forensic Services Ltd (Orange UK Holdings Ltd),"1,047.20"
202006,Jun,2.02006E+11,R4710,Forensic Analysis - Serious Crime,Key Forensic Services Ltd (Orange UK Holdings Ltd),"1,393.04"
202006,Jun,2.02006E+11,R4715,Forensic Analysis - Volume Crime,Key Forensic Services Ltd (Orange UK Holdings Ltd),754
202006,Jun,2.02006E+11,R4705,Forensic Analysis - Over Prescribed Limit,Key Forensic Services Ltd (Orange UK Holdings Ltd),"1,949.53"
202006,Jun,2.02006E+11,R4705,Forensic Analysis - Over Prescribed Limit,Key Forensic Services Ltd (Orange UK Holdings Ltd),"1,283.25"
202006,Jun,2.02006E+11,R4705,Forensic Analysis - Over Prescribed Limit,Key Forensic Services Ltd (Orange UK Holdings Ltd),"1,370.25"
202006,Jun,2.02006E+11,R4705,Forensic Analysis - Over Prescribed Limit,Key Forensic Services Ltd (Orange UK Holdings Ltd),"1,188.28"
202006,Jun,2.02006E+11,R4705,Forensic Analysis - Over Prescribed Limit,Key Forensic Services Ltd (Orange UK Holdings Ltd),"1,805.25"
202006,Jun,2.02006E+11,R4705,Forensic Analysis - Over Prescribed Limit,Key Forensic Services Ltd (Orange UK Holdings Ltd),"1,370.25"
202006,Jun,2.02006E+11,R4710,Forensic Analysis - Serious Crime,Key Forensic Services Ltd (Orange UK Holdings Ltd),"1,419.70"
202006,Jun,2.02006E+11,R4710,Forensic Analysis - Serious Crime,Key Forensic Services Ltd (Orange UK Holdings Ltd),"1,742.10"
202006,Jun,2.02006E+11,R4715,Forensic Analysis - Volume Crime,Key Forensic Services Ltd (Orange UK Holdings Ltd),622.05
202006,Jun,2.02006E+11,R4710,Forensic Analysis - Serious Crime,Key Forensic Services Ltd (Orange UK Holdings Ltd),"2,102.30"
202006,Jun,2.02006E+11,R4715,Forensic Analysis - Volume Crime,Key Forensic Services Ltd (Orange UK Holdings Ltd),"2,204.00"
202006,Jun,2.02006E+11,R4715,Forensic Analysis - Volume Crime,Key Forensic Services Ltd (Orange UK Holdings Ltd),604.94
202006,Jun,2.02006E+11,R5865,Operational Equipment - Other,Cummins Allison Ltd,"1,173.00"
202006,Jun,2.02006E+11,R7065,TITAN - North West Collaboration,Police and Crime Commissioner for Merseyside,"1,279.00"
202006,Jun,2.02006E+11,R7065,TITAN - North West Collaboration,Police and Crime Commissioner for Merseyside,"1,467.16"
202006,Jun,2.02006E+11,R5950,Disclosure of information would breach the Data Protection Act 1998 ,Redacted,562.78
202006,Jun,2.02006E+11,R5950,Disclosure of information would breach the Data Protection Act 1998 ,Redacted,712.23
202006,Jun,2.02006E+11,R5950,Disclosure of information would breach the Data Protection Act 1998 ,Redacted,528.5
202006,Jun,2.02006E+11,R5950,Disclosure of information would breach the Data Protection Act 1998 ,Redacted,530.52
202006,Jun,2.02006E+11,R5815,Operational Equipment - Hi-Tech. Crime,RS Components Limited,988.75
202006,Jun,2.02006E+11,R4715,Forensic Analysis - Volume Crime,Orchid Cellmark Ltd,601.75
202006,Jun,2.02006E+11,R4715,Forensic Analysis - Volume Crime,Orchid Cellmark Ltd,649.6
202006,Jun,2.02006E+11,R4715,Forensic Analysis - Volume Crime,Orchid Cellmark Ltd,"1,948.80"
202006,Jun,2.02006E+11,R4700,Disclosure of information would breach the Data Protection Act 1998 ,Redacted,"2,851.02"
202006,Jun,2.02006E+11,R4700,Disclosure of information would breach the Data Protection Act 1998 ,Redacted,"2,998.04"
202006,Jun,2.02006E+11,R4700,Disclosure of information would breach the Data Protection Act 1998 ,Redacted,"2,651.00"
202006,Jun,2.02006E+11,R7135,The information is confidential or would attract an exemption under the Freedom of Information Act e.g. where disclosure could be prejudicial to the commercial interests of any person including the authority ,Redacted,"3,485.00"
202006,Jun,2.02006E+11,R4780,CSI Consumables,Glendale Presentation Solutions Ltd,"1,505.00"
202006,Jun,2.02006E+11,R4780,CSI Consumables,Acota Limited,"4,620.04"
202006,Jun,2.02006E+11,R4720,Forensic Analysis - PACE / DNA,Eurofins Forensic Services Ltd,"2,207.19"
202006,Jun,2.02006E+11,R4720,Forensic Analysis - PACE / DNA,Eurofins Forensic Services Ltd,"1,253.25"
202006,Jun,2.02006E+11,R4630,Detained Persons - Appropriate Adult Services,Child Action Northwest,"9,883.16"
202006,Jun,2.02006E+11,R5916,Police Dogs - Vets Fees,Frame Swift and Partners LLP,761.07
202006,Jun,2.02006E+11,R6702,Confiscated Animal Costs,Whinmill Farm Canine Centre,"2,850.00"
202006,Jun,2.02006E+11,R5980,Firearms Equipment,Same Day PLC Guardian Service,"3,377.05"
202006,Jun,2.02006E+11,R5980,Firearms Equipment,Viking Arms Ltd,"13,615.00"
202006,Jun,2.02006E+11,R5980,Firearms Equipment,Viking Arms Ltd,"4,775.00"
202006,Jun,2.02006E+11,R4600,Detained Persons - Meals / Refreshments,Bidfood,581.02
202006,Jun,2.02006E+11,R4610,Detained Persons - Equipment,Thomas Kneale,799.6
202006,Jun,2.02006E+11,R5800,Operational Equipment - Breathalyser Consumables,BOC Limited,549
202006,Jun,2.02006E+11,R5800,Operational Equipment - Breathalyser Consumables,BOC Limited,508.05
202006,Jun,2.02006E+11,R5800,Operational Equipment - Breathalyser Consumables,BOC Limited,508.05
202006,Jun,2.02006E+11,R5980,Firearms Equipment,Axon Public Safety UK Limited,"59,125.00"
202006,Jun,2.02006E+11,R5790,Operational Equipment - Audio / Video Equipment,Wex Photo Video,827.52
202006,Jun,2.02006E+11,R4950,Interpreters Fees - Face to Face,Capita Translation and Interpreting (Applied Language Solutions Ltd),972
202006,Jun,2.02006E+11,R4950,Interpreters Fees - Face to Face,Capita Translation and Interpreting (Applied Language Solutions Ltd),"1,354.98"
202006,Jun,2.02006E+11,R4955,Interpreters Fees - Telephone,Capita Translation and Interpreting (Applied Language Solutions Ltd),800
202006,Jun,2.02006E+11,R4940,First Aid Equipment / Consumables,S P Services UK Ltd,920.84
202006,Jun,2.02006E+11,R5980,Firearms Equipment,UK Tactical,"1,797.00"
202006,Jun,2.02006E+11,R5867,Operational Equipment - Maintenance,Tellemachus Limited,"1,444.50"
202006,Jun,2.02006E+11,R6780,Grants & Donations,Care of Police Survivors,"2,000.00"
202006,Jun,2.02006E+11,R4940,First Aid Equipment / Consumables,Arrow County Supplies,"1,514.00"
202006,Jun,2.02006E+11,R4940,First Aid Equipment / Consumables,Arrow County Supplies,"-1,514.00"
202006,Jun,2.02006E+11,R2700,Cleaning Contract,Bulloughs Cleaning Services Ltd,"6,207.08"
202006,Jun,2.02006E+11,R2865,Premises Signage,B K Screenprint,"2,445.38"
202006,Jun,2.02006E+11,R2410,Minor Works,Grafix Signmakers Ltd,"1,664.00"
202006,Jun,2.02006E+11,R2410,Minor Works,A W Blake Ltd,632.4
202006,Jun,2.02006E+11,R4940,First Aid Equipment / Consumables,Thomas Graham and Sons Limited,"1,666.00"
202006,Jun,2.02006E+11,R4940,First Aid Equipment / Consumables,Thomas Graham and Sons Limited,"2,676.75"
202006,Jun,2.02006E+11,R4940,First Aid Equipment / Consumables,Thomas Graham and Sons Limited,"3,600.00"
202006,Jun,2.02006E+11,R5980,Firearms Equipment,T W Relph and Sons Ltd,575
202006,Jun,2.02006E+11,R4000,Office Equipment - Purchase,PSS Home Entertainment Limited,950
202006,Jun,2.02006E+11,R2410,Minor Works,Frederick Potts and Sons Ltd,"3,884.00"
202006,Jun,2.02006E+11,R2700,Cleaning Contract,West Cumbria Estates Management Limited,"1,063.13"
202006,Jun,2.02006E+11,R4940,First Aid Equipment / Consumables,CID Hygiene,538.5
202006,Jun,2.02006E+11,R6755,Consultants Fees - ICT,Bottomline Technologies Europe Ltd,600
202006,Jun,2.02006E+11,R5310,Computer Hardware - Purchase,Stone Computers Ltd,"262,884.00"
202006,Jun,2.02006E+11,R5310,Computer Hardware - Purchase,Stone Computers Ltd,"25,366.00"
202006,Jun,2.02006E+11,R4715,Forensic Analysis - Volume Crime,Eurofins Forensic Services Ltd,"2,418.02"
202006,Jun,2.02006E+11,R4940,First Aid Equipment / Consumables,City Electrical Factors Ltd,745
202006,Jun,2.02006E+11,R4300,Furniture - General,"Lafayette Instrument Company, Inc.","1,394.91"
202006,Jun,2.02006E+11,B2302,Inventories/Stocks - General / Admin Equipment - Purchases,Arrow County Supplies,697.4
202006,Jun,2.02006E+11,B2302,Inventories/Stocks - General / Admin Equipment - Purchases,Arrow County Supplies,659.44
202006,Jun,2.02006E+11,B2312,Inventories/Stocks - Uniforms - Purchases,TCH UK Ltd,590
202006,Jun,2.02006E+11,R4300,Furniture - General,Gresham Office Furniture,"1,939.20"
202006,Jun,2.02006E+11,R4300,Furniture - General,Gresham Office Furniture,"1,596.00"
202006,Jun,2.02006E+11,R4400,Books & Publications,Hills Books,714
202006,Jun,2.02006E+11,B2302,Inventories/Stocks - General / Admin Equipment - Purchases,Scenesafe,"1,027.28"
202006,Jun,2.02006E+11,B2302,Inventories/Stocks - General / Admin Equipment - Purchases,Scenesafe,538.4
202006,Jun,2.02006E+11,B2302,Inventories/Stocks - General / Admin Equipment - Purchases,Scenesafe,841.68
202006,Jun,2.02006E+11,B2302,Inventories/Stocks - General / Admin Equipment - Purchases,Scenesafe,"1,699.84"
202006,Jun,2.02006E+11,B2312,Inventories/Stocks - Uniforms - Purchases,Keela International Ltd,611.7
202006,Jun,2.02006E+11,B2312,Inventories/Stocks - Uniforms - Purchases,Keela International Ltd,"2,899.00"
202006,Jun,2.02006E+11,B2312,Inventories/Stocks - Uniforms - Purchases,Try and Lilly Ltd,798.94
202006,Jun,2.02006E+11,B2302,Inventories/Stocks - General / Admin Equipment - Purchases,Kays Medical Limited,"1,282.60"
202006,Jun,2.02006E+11,B2312,Inventories/Stocks - Uniforms - Purchases,MC Products UK Ltd,583.24
202006,Jun,2.02006E+11,B2312,Inventories/Stocks - Uniforms - Purchases,MC Products UK Ltd,921.6
202006,Jun,2.02006E+11,B2312,Inventories/Stocks - Uniforms - Purchases,Turner Virr  Co Ltd,"1,568.10"
202006,Jun,2.02006E+11,B2302,Inventories/Stocks - General / Admin Equipment - Purchases,Essentra Components Ltd,564.24
202006,Jun,2.02006E+11,B2312,Inventories/Stocks - Uniforms - Purchases,Mehler Vario System GmbH,"1,274.90"
202006,Jun,2.02006E+11,B2312,Inventories/Stocks - Uniforms - Purchases,Mehler Vario System GmbH,"1,393.00"
202006,Jun,2.02006E+11,B2312,Inventories/Stocks - Uniforms - Purchases,Mehler Vario System GmbH,"1,263.00"
202006,Jun,2.02006E+11,B2312,Inventories/Stocks - Uniforms - Purchases,Mehler Vario System GmbH,"5,813.40"
202006,Jun,2.02006E+11,B2312,Inventories/Stocks - Uniforms - Purchases,Axess International Limited,504.4
202006,Jun,2.02006E+11,B2312,Inventories/Stocks - Uniforms - Purchases,Peter Jones ILG Ltd,991
202006,Jun,2.02006E+11,B2312,Inventories/Stocks - Uniforms - Purchases,CW Headdress Ltd,"1,118.00"
202006,Jun,2.02006E+11,B2312,Inventories/Stocks - Uniforms - Purchases,SBI TacPro,"2,407.00"
202006,Jun,2.02006E+11,B2312,Inventories/Stocks - Uniforms - Purchases,SBI TacPro,"2,219.74"
202006,Jun,2.02006E+11,B2312,Inventories/Stocks - Uniforms - Purchases,SBI TacPro,"1,520.40"
202006,Jun,2.02006E+11,B2312,Inventories/Stocks - Uniforms - Purchases,SBI TacPro,"2,027.20"
202006,Jun,2.02006E+11,R4400,Books & Publications,Thomson Reuters,"10,013.57"
202006,Jun,2.02006E+11,B2312,Inventories/Stocks - Uniforms - Purchases,Michael Lupton Associates Ltd,519.4
202006,Jun,2.02006E+11,B2312,Inventories/Stocks - Uniforms - Purchases,Michael Lupton Associates Ltd,"1,007.50"
202006,Jun,2.02006E+11,B2312,Inventories/Stocks - Uniforms - Purchases,Michael Lupton Associates Ltd,"2,268.00"
202006,Jun,2.02006E+11,B2312,Inventories/Stocks - Uniforms - Purchases,Michael Lupton Associates Ltd,"2,101.86"
202006,Jun,2.02006E+11,B2312,Inventories/Stocks - Uniforms - Purchases,Michael Lupton Associates Ltd,798
202006,Jun,2.02006E+11,B2312,Inventories/Stocks - Uniforms - Purchases,Michael Lupton Associates Ltd,608.4
202006,Jun,2.02006E+11,B2312,Inventories/Stocks - Uniforms - Purchases,Michael Lupton Associates Ltd,598.5
202006,Jun,2.02006E+11,R6660,Counsel Fees,Atlantic Chambers,"1,620.00"
202006,Jun,2.02006E+11,B4003,Disclosure of information would breach the Data Protection Act 1998,Redacted,600
202006,Jun,2.02006E+11,B4005,Provision for Insurance Liabilities - Drawdown from Provision - Own Solicitor's Costs,Weightmans LLP,-820.8
202006,Jun,2.02006E+11,B4004,Provision for Insurance Liabilities - Drawdown from Provision - Third Party Costs,Plexus Law,"2,012.50"
202006,Jun,2.02006E+11,B4006,Provision for Insurance Liabilities - Drawdown from Provision - Own Counsel's Costs,Outer Temple Chambers,"-2,966.88"
202006,Jun,2.02006E+11,B4053,Provision for Legal Claims - Drawdown from Provision,Outer Temple Chambers,"2,472.40"
Period,Months,Unique Record Identifier,Account,Account Code Description,Supplier Name,Amount 
202009,Jul,2.02009E+11,R2700,Cleaning Contract,Bulloughs Cleaning Services Ltd,"7,758.85"
202009,Jul,2.02009E+11,R4530,Canteen - Equipment and Utensils,Grafix Signmakers Ltd,"4,039.00"
202009,Jul,2.02009E+11,R2660,Business Rates,A W Blake Ltd,627.6
202009,Jul,2.02009E+11,R4940,First Aid Equipment / Consumables,Thomas Graham and Sons Limited,"2,612.25"
202009,Jul,2.02009E+11,R4940,First Aid Equipment / Consumables,Thomas Graham and Sons Limited,"1,451.25"
202009,Jul,2.02009E+11,R4940,First Aid Equipment / Consumables,Thomas Graham and Sons Limited,"6,600.00"
202009,Jul,2.02009E+11,R4940,First Aid Equipment / Consumables,Thomas Graham and Sons Limited,"23,316.75"
202009,Jul,2.02009E+11,R4940,First Aid Equipment / Consumables,Thomas Graham and Sons Limited,"2,773.50"
202009,Jul,2.02009E+11,R2700,Cleaning Contract,West Cumbria Estates Management Limited,"1,020.44"
202009,Jul,2.02009E+11,R2410,Minor Works,FTS Fire and  Security Ltd,"3,087.80"
202009,Jul,2.02009E+11,R4940,First Aid Equipment / Consumables,BSI Ltd,"20,496.00"
202009,Jul,2.02009E+11,R4940,First Aid Equipment / Consumables,Banner Group Limited,"1,913.75"
202009,Jul,2.02009E+11,R1152,Gym Equipment - Lease,Investec Asset Finance PLC,"2,399.88"
202009,Jul,2.02009E+11,R1152,Gym Equipment - Lease,Investec Asset Finance PLC,"-1,999.90"
202009,Jul,2.02009E+11,R1152,Gym Equipment - Lease,Investec Asset Finance PLC,"-1,767.50"
202009,Jul,2.02009E+11,R1720,Other Support Function Training,University of Cumbria,"1,100.00"
202009,Jul,2.02009E+11,R1720,Other Support Function Training,University of Cumbria,"1,100.00"
202009,Jul,2.02009E+11,R1800,Further Education,University of Cumbria,550
202009,Jul,2.02009E+11,R1720,Other Support Function Training,University of Cumbria,550
202009,Jul,2.02009E+11,R1610,CID Training,Alex Preston,900
202009,Jul,2.02009E+11,R1610,CID Training,The Kingsham Consultancy Ltd (Dr A McKee),"3,000.00"
202009,Jul,2.02009E+11,R6750,Consultants Fees - Other,University of Durham,"9,000.00"
202009,Jul,2.02009E+11,R6750,Consultants Fees - Other,SMSR Ltd,658
202009,Jul,2.02009E+11,R1720,Other Support Function Training,M Training (TA IC-e Design & Marketing),750
202009,Jul,2.02009E+11,R4155,External Printing,Harlow Printing Limited,"2,580.00"
202009,Jul,2.02009E+11,R6730,Non-Staff Advertising,Global Radio Services Limited,"1,674.11"
202009,Jul,2.02009E+11,R6730,Non-Staff Advertising,Granicus LLC (formerly GovDelivery LLC),"1,308.00"
202009,Jul,2.02009E+11,R6730,Non-Staff Advertising,Granicus LLC (formerly GovDelivery LLC),"1,050.00"
202009,Jul,2.02009E+11,R5350,Web Design & Running Costs,Granicus LLC (formerly GovDelivery LLC),"5,174.00"
202009,Jul,2.02009E+11,R2720,Other Cleaning & Domestic Equipment,Arrow County Supplies,787.74
202009,Jul,2.02009E+11,R2720,Other Cleaning & Domestic Equipment,Arrow County Supplies,620.55
202009,Jul,2.02009E+11,R2720,Other Cleaning & Domestic Equipment,Arrow County Supplies,"1,238.80"
202009,Jul,2.02009E+11,R3110,Vehicle Maintenance - Tyres & Tubes,Goodyear Dunlop Tyres UK Limited,"7,843.72"
202009,Jul,2.02009E+11,R3110,Vehicle Maintenance - Tyres & Tubes,Goodyear Dunlop Tyres UK Limited,"9,806.31"
202009,Jul,2.02009E+11,R3510,Vehicle Fuel,Allstar Business Solutions Ltd,"1,444.95"
202009,Jul,2.02009E+11,R2800,Security and Alarms (inc locks),Chubb Fire and Security Limited,"5,683.86"
202009,Jul,2.02009E+11,R2800,Security and Alarms (inc locks),Chubb Fire and Security Limited,564.66
202009,Jul,2.02009E+11,R2800,Security and Alarms (inc locks),Chubb Fire and Security Limited,"1,213.63"
202009,Jul,2.02009E+11,R2800,Security and Alarms (inc locks),Chubb Fire and Security Limited,625.92
202009,Jul,2.02009E+11,R2800,Security and Alarms (inc locks),Chubb Fire and Security Limited,993.06
202009,Jul,2.02009E+11,R2800,Security and Alarms (inc locks),Chubb Fire and Security Limited,664.82
202009,Jul,2.02009E+11,R2800,Security and Alarms (inc locks),Chubb Fire and Security Limited,"1,083.26"
202009,Jul,2.02009E+11,R2030,Unplanned Building Services Security & Security Equipment Maintenance,Chubb Fire and Security Limited,506.43
202009,Jul,2.02009E+11,R2700,Cleaning Contract,Bulloughs Cleaning Services Ltd,"13,144.49"
202009,Jul,2.02009E+11,R2700,Cleaning Contract,Bulloughs Cleaning Services Ltd,"3,742.03"
202009,Jul,2.02009E+11,R2700,Cleaning Contract,Bulloughs Cleaning Services Ltd,600.98
202009,Jul,2.02009E+11,R2700,Cleaning Contract,Bulloughs Cleaning Services Ltd,"5,156.05"
202009,Jul,2.02009E+11,R2700,Cleaning Contract,Bulloughs Cleaning Services Ltd,"2,437.82"
202009,Jul,2.02009E+11,R2700,Cleaning Contract,Bulloughs Cleaning Services Ltd,"3,688.02"
202009,Jul,2.02009E+11,R2700,Cleaning Contract,Bulloughs Cleaning Services Ltd,"1,502.43"
202009,Jul,2.02009E+11,R2700,Cleaning Contract,Bulloughs Cleaning Services Ltd,600.97
202009,Jul,2.02009E+11,R2700,Cleaning Contract,Bulloughs Cleaning Services Ltd,"2,746.85"
202009,Jul,2.02009E+11,R2700,Cleaning Contract,Bulloughs Cleaning Services Ltd,"1,502.43"
202009,Jul,2.02009E+11,R2710,Window Cleaning,Bulloughs Cleaning Services Ltd,550
202009,Jul,2.02009E+11,R2700,Cleaning Contract,Bulloughs Cleaning Services Ltd,980
202009,Jul,2.02009E+11,R7006,North West Ambulance Service - Estates Management Collaboration,BID Group Ltd,"1,450.00"
202009,Jul,2.02009E+11,R2130,Unplanned Building Maintenance Safety Works,BID Group Ltd,"2,475.00"
202009,Jul,2.02009E+11,R7006,North West Ambulance Service - Estates Management Collaboration,BID Group Ltd,"1,456.00"
202009,Jul,2.02009E+11,R7006,North West Ambulance Service - Estates Management Collaboration,BID Group Ltd,993.25
202009,Jul,2.02009E+11,R2290,Planned Servicing General Maintenance,BID Group Ltd,544
202009,Jul,2.02009E+11,R2290,Planned Servicing General Maintenance,BID Group Ltd,510
202009,Jul,2.02009E+11,R2130,Unplanned Building Maintenance Safety Works,BID Group Ltd,"1,980.00"
202009,Jul,2.02009E+11,R7006,North West Ambulance Service - Estates Management Collaboration,BID Group Ltd,769
202009,Jul,2.02009E+11,R2210,Planned Survey External Maintenance,BID Group Ltd,"9,450.00"
202009,Jul,2.02009E+11,R4520,Canteen - Purchase of Food / Ingredients,Pioneer Foodservice,598.24
202009,Jul,2.02009E+11,R4520,Canteen - Purchase of Food / Ingredients,Pioneer Foodservice,669.37
202009,Jul,2.02009E+11,R4520,Canteen - Purchase of Food / Ingredients,Pioneer Foodservice,713.69
202009,Jul,2.02009E+11,R4520,Canteen - Purchase of Food / Ingredients,Pioneer Foodservice,553.91
202009,Jul,2.02009E+11,R4520,Canteen - Purchase of Food / Ingredients,Pioneer Foodservice,"1,004.94"
202009,Jul,2.02009E+11,R4520,Canteen - Purchase of Food / Ingredients,Pioneer Foodservice,734.2
202009,Jul,2.02009E+11,R4520,Canteen - Purchase of Food / Ingredients,Pioneer Foodservice,613.98
202009,Jul,2.02009E+11,R4520,Canteen - Purchase of Food / Ingredients,Pioneer Foodservice,991.7
202009,Jul,2.02009E+11,R4520,Canteen - Purchase of Food / Ingredients,Pioneer Foodservice,728.12
202009,Jul,2.02009E+11,R4520,Canteen - Purchase of Food / Ingredients,Pioneer Foodservice,509.57
202009,Jul,2.02009E+11,R2730,Refuse,Cumbria Waste Recycling Ltd,566.26
202009,Jul,2.02009E+11,R3460,Accident Damage (Below Insurance Threshold),Thompson Accident Repair Centre Ltd,"2,904.28"
202009,Jul,2.02009E+11,R3460,Accident Damage (Below Insurance Threshold),Thompson Accident Repair Centre Ltd,"1,000.00"
202009,Jul,2.02009E+11,R3460,Accident Damage (Below Insurance Threshold),Thompson Accident Repair Centre Ltd,610.08
202009,Jul,2.02009E+11,R3460,Accident Damage (Below Insurance Threshold),Thompson Accident Repair Centre Ltd,"1,000.00"
202009,Jul,2.02009E+11,R3460,Accident Damage (Below Insurance Threshold),Thompson Accident Repair Centre Ltd,"5,293.92"
202009,Jul,2.02009E+11,R3460,Accident Damage (Below Insurance Threshold),Thompson Accident Repair Centre Ltd,"1,000.00"
202009,Jul,2.02009E+11,R3460,Accident Damage (Below Insurance Threshold),Thompson Accident Repair Centre Ltd,514.99
202009,Jul,2.02009E+11,R3460,Accident Damage (Below Insurance Threshold),Thompson Accident Repair Centre Ltd,"1,000.00"
202009,Jul,2.02009E+11,R2220,Planned Survey Internal Maintenance,D Brown Building and Joinery Limited,"8,870.00"
202009,Jul,2.02009E+11,R2410,Minor Works,D Brown Building and Joinery Limited,"5,580.00"
202009,Jul,2.02009E+11,R7006,North West Ambulance Service - Estates Management Collaboration,Michael Thompson Limited,"1,930.00"
202009,Jul,2.02009E+11,R7006,North West Ambulance Service - Estates Management Collaboration,Dawson Electrical Services Ltd,870
202009,Jul,2.02009E+11,R7006,North West Ambulance Service - Estates Management Collaboration,Dawson Electrical Services Ltd,760
202009,Jul,2.02009E+11,R7006,North West Ambulance Service - Estates Management Collaboration,Dawson Electrical Services Ltd,"2,870.00"
202009,Jul,2.02009E+11,R7006,North West Ambulance Service - Estates Management Collaboration,Dawson Electrical Services Ltd,970
202009,Jul,2.02009E+11,R2275,Planned Servicing HVAC System,Carlisle Refrigeration Limited,844
202009,Jul,2.02009E+11,R2140,Unplanned Building Maintenance Internal Maintenance,Carlisle Refrigeration Limited,"2,259.35"
202009,Jul,2.02009E+11,R3450,Accident Damage (Below Insurance Excess)),Lloyd Motorrad,686.01
202009,Jul,2.02009E+11,R3120,Vehicle Maintenance - Parts Purchase,Vertu Motors plc,572.15
202009,Jul,2.02009E+11,R2050,Unplanned Building Services Electrics,JJ Group (Contracting) Ltd,663.56
202009,Jul,2.02009E+11,R2160,Unplanned Building Maintenance Environmental Services/Plumbing,Cumbria Mechanical and Plumbing Ltd,569.8
202009,Jul,2.02009E+11,R2010,Unplanned Building Services Boiler & Heating Plant,Cumbria Mechanical and Plumbing Ltd,572.7
202009,Jul,2.02009E+11,R2160,Unplanned Building Maintenance Environmental Services/Plumbing,Cumbria Mechanical and Plumbing Ltd,660.45
202009,Jul,2.02009E+11,R3120,Vehicle Maintenance - Parts Purchase,Arnold Clark Automobiles Ltd,529.16
202009,Jul,2.02009E+11,R2610,Estates Leases,Carlisle City Council,"7,750.00"
202009,Jul,2.02009E+11,R7006,North West Ambulance Service - Estates Management Collaboration,Andidrain Ltd,"1,110.00"
202009,Jul,2.02009E+11,R2610,Estates Leases,Cumbria County Council,"1,706.25"
202009,Jul,2.02009E+11,R2460,Grounds Maintenance - Contract,S Nicholson Grounds Maintenance,"1,275.00"
202009,Jul,2.02009E+11,R2730,Refuse,Aspatria Skip Hire,960
202009,Jul,2.02009E+11,R2610,Estates Leases,Solway Plain Futures Ltd,"1,898.00"
202009,Jul,2.02009E+11,R2460,Grounds Maintenance - Contract,Nicol Landscapes Ltd,600
202009,Jul,2.02009E+11,R7006,North West Ambulance Service - Estates Management Collaboration,Keswick Superglaze Ltd,"2,795.00"
202009,Jul,2.02009E+11,R2610,Estates Leases,Allerdale Borough Council,512.5
202009,Jul,2.02009E+11,R2705,Hostels Laundry Contracts,Shortridge Ltd,594.4
202009,Jul,2.02009E+11,R7006,North West Ambulance Service - Estates Management Collaboration,Frederick Potts and Sons Ltd,706
202009,Jul,2.02009E+11,R7006,North West Ambulance Service - Estates Management Collaboration,Frederick Potts and Sons Ltd,"1,200.00"
202009,Jul,2.02009E+11,R2170,Unplanned Building Maintenance External Maintenance,Frederick Potts and Sons Ltd,"1,030.00"
202009,Jul,2.02009E+11,R2070,Unplanned Building Services Internal Other,Frederick Potts and Sons Ltd,603.43
202009,Jul,2.02009E+11,R2610,Estates Leases,Frederick Potts and Sons Ltd,787.5
202009,Jul,2.02009E+11,R7006,North West Ambulance Service - Estates Management Collaboration,Frederick Potts and Sons Ltd,620
202009,Jul,2.02009E+11,R7006,North West Ambulance Service - Estates Management Collaboration,Margrange Ltd,"1,745.00"
202009,Jul,2.02009E+11,R2230,Planned Survey Electrics,Margrange Ltd,"4,460.60"
202009,Jul,2.02009E+11,R7006,North West Ambulance Service - Estates Management Collaboration,Margrange Ltd,"1,916.55"
202009,Jul,2.02009E+11,R7006,North West Ambulance Service - Estates Management Collaboration,Margrange Ltd,760.8
202009,Jul,2.02009E+11,R3980,Vehicle Road Fund Licenses,Post Office Counters Ltd,"1,348.00"
202009,Jul,2.02009E+11,R3980,Vehicle Road Fund Licenses,Post Office Counters Ltd,555
202009,Jul,2.02009E+11,R2680,PFI Occupancy Charges,West Cumbria Estates Management Limited,"105,000.00"
202009,Jul,2.02009E+11,C2230,Planned Survey Electrics,West Cumbria Estates Management Limited,"3,455.60"
202009,Jul,2.02009E+11,R2500,Oil,Certas Energy Limited,"4,897.89"
202009,Jul,2.02009E+11,R2500,Oil,Certas Energy Limited,"3,673.60"
202009,Jul,2.02009E+11,R3120,Vehicle Maintenance - Parts Purchase,Arnold Clark Automobiles Ltd,"1,294.94"
202009,Jul,2.02009E+11,R3120,Vehicle Maintenance - Parts Purchase,Arnold Clark Automobiles Ltd,570.26
202009,Jul,2.02009E+11,R3210,Police Vehicle Recovery & Transport,FMG Support (RRRM) Ltd,"3,105.00"
202009,Jul,2.02009E+11,R2715,Clinical Waste,Adler & Allan Ltd,"1,020.00"
202009,Jul,2.02009E+11,R2730,Refuse,Biffa Waste Services Limited,943.5
202009,Jul,2.02009E+11,R2730,Refuse,Biffa Waste Services Limited,642
202009,Jul,2.02009E+11,R2730,Refuse,Biffa Waste Services Limited,688.8
202009,Jul,2.02009E+11,R2730,Refuse,Biffa Waste Services Limited,690.08
202009,Jul,2.02009E+11,R2730,Refuse,Biffa Waste Services Limited,513.6
202009,Jul,2.02009E+11,R2730,Refuse,Biffa Waste Services Limited,834.8
202009,Jul,2.02009E+11,R7006,North West Ambulance Service - Estates Management Collaboration,FTS Fire and  Security Ltd,"1,014.00"
202009,Jul,2.02009E+11,R2265,Planned Servicing Fire Systems,FTS Fire and  Security Ltd,706.5
202009,Jul,2.02009E+11,R3450,Accident Damage (Below Insurance Excess)),Long Lane Garage,930.15
202009,Jul,2.02009E+11,R3450,Accident Damage (Below Insurance Excess)),Long Lane Garage,851.04
202009,Jul,2.02009E+11,R3120,Vehicle Maintenance - Parts Purchase,E K Motor Factors Ltd,580
202009,Jul,2.02009E+11,R3120,Vehicle Maintenance - Parts Purchase,Guy Perry Ltd,660.06
202009,Jul,2.02009E+11,R3120,Vehicle Maintenance - Parts Purchase,Guy Perry Ltd,839.29
202009,Jul,2.02009E+11,C3900,Vehicle Purchases - Capital,Rayrigg Motors,"11,884.58"
202009,Jul,2.02009E+11,C3900,Vehicle Purchases - Capital,Rayrigg Motors,"12,375.83"
202009,Jul,2.02009E+11,R2505,Gas,Flogas Britain Ltd,602.51
202009,Jul,2.02009E+11,R3120,Vehicle Maintenance - Parts Purchase,Volkswagen Group UK Ltd,"1,776.53"
202009,Jul,2.02009E+11,R2610,Estates Leases,Ulverston Properties Limited,820.83
202009,Jul,2.02009E+11,R2550,Metered Water,Castle Water Limited,"6,075.27"
202009,Jul,2.02009E+11,R2565,Sewerage & Environmental Services,Castle Water Limited,"7,956.84"
202009,Jul,2.02009E+11,R2550,Metered Water,Castle Water Limited,"1,672.26"
202009,Jul,2.02009E+11,R2565,Sewerage & Environmental Services,Castle Water Limited,"4,965.85"
202009,Jul,2.02009E+11,R2510,Electricity,EDF Energy,"2,524.63"
202009,Jul,2.02009E+11,R2510,Electricity,EDF Energy,"3,691.26"
202009,Jul,2.02009E+11,R2510,Electricity,EDF Energy,"2,326.75"
202009,Jul,2.02009E+11,R2510,Electricity,EDF Energy,"5,312.46"
202009,Jul,2.02009E+11,R2510,Electricity,EDF Energy,"14,155.92"
202009,Jul,2.02009E+11,R2530,Climate Change Levy,EDF Energy,921.27
202009,Jul,2.02009E+11,R2510,Electricity,EDF Energy,"10,561.22"
202009,Jul,2.02009E+11,R2530,Climate Change Levy,EDF Energy,689.47
202009,Jul,2.02009E+11,R2510,Electricity,EDF Energy,"10,976.64"
202009,Jul,2.02009E+11,R2510,Electricity,EDF Energy,"14,675.13"
202009,Jul,2.02009E+11,R2510,Electricity,EDF Energy,"1,904.74"
202009,Jul,2.02009E+11,R2510,Electricity,EDF Energy,"3,616.99"
202009,Jul,2.02009E+11,R2510,Electricity,EDF Energy,"5,783.15"
202009,Jul,2.02009E+11,R2284,Planned Servicing Electrical Equipment Testing (PAT),Lantei Ltd,"4,992.80"
202009,Jul,2.02009E+11,R3450,Accident Damage (Below Insurance Excess)),Enterprise Rent-a-car UK Limited,747.92
202009,Jul,2.02009E+11,R7006,North West Ambulance Service - Estates Management Collaboration,Countrywide Grounds Maintenance Ltd,700
202009,Jul,2.02009E+11,R3120,Vehicle Maintenance - Parts Purchase,Lloyd Motors Ltd,859.56
202009,Jul,2.02009E+11,R2505,Gas,Corona Energy,"1,455.28"
202009,Jul,2.02009E+11,R2505,Gas,Corona Energy,"1,221.02"
202009,Jul,2.02009E+11,R2505,Gas,Corona Energy,"1,316.64"
202009,Jul,2.02009E+11,R2505,Gas,Corona Energy,656.6
202009,Jul,2.02009E+11,C2720,Other Cleaning & Domestic Equipment,YPO,"1,446.45"
202009,Jul,2.02009E+11,R3510,Vehicle Fuel,Allstar Business Solutions Ltd,"1,443.66"
202009,Jul,2.02009E+11,R3510,Vehicle Fuel,Allstar Business Solutions Ltd,"2,724.17"
202009,Jul,2.02009E+11,R3510,Vehicle Fuel,Allstar Business Solutions Ltd,"1,355.26"
202009,Jul,2.02009E+11,R3510,Vehicle Fuel,Allstar Business Solutions Ltd,"51,574.85"
202009,Jul,2.02009E+11,R3510,Vehicle Fuel,Allstar Business Solutions Ltd,532.58
202009,Jul,2.02009E+11,R1128,Medical Equipment,P and A Medical Ltd,698
202009,Jul,2.02009E+11,R1118,Counselling ,Heather Pennefather,"1,100.00"
202009,Jul,2.02009E+11,R1120,Ergonomist,Green Ends Limited,"3,780.00"
202009,Jul,2.02009E+11,R1120,Ergonomist,Green Ends Limited,"2,520.00"
202009,Jul,2.02009E+11,R1120,Ergonomist,Green Ends Limited,"2,520.00"
202009,Jul,2.02009E+11,R1120,Ergonomist,Green Ends Limited,"2,520.00"
202009,Jul,2.02009E+11,R0500,Agency Staff,Comensura Ltd,686.88
202009,Jul,2.02009E+11,R0500,Agency Staff,Comensura Ltd,597.12
202009,Jul,2.02009E+11,R0500,Agency Staff,Comensura Ltd,"1,130.82"
202009,Jul,2.02009E+11,R0500,Agency Staff,Comensura Ltd,"2,219.45"
202009,Jul,2.02009E+11,R0500,Agency Staff,Comensura Ltd,"1,044.68"
202009,Jul,2.02009E+11,R0500,Agency Staff,Comensura Ltd,671.76
202009,Jul,2.02009E+11,R0500,Agency Staff,Comensura Ltd,"1,226.45"
202009,Jul,2.02009E+11,R0500,Agency Staff,Comensura Ltd,"2,219.45"
202009,Jul,2.02009E+11,R0500,Agency Staff,Comensura Ltd,"1,044.68"
202009,Jul,2.02009E+11,R0500,Agency Staff,Comensura Ltd,597.12
202009,Jul,2.02009E+11,R0500,Agency Staff,Comensura Ltd,"1,058.62"
202009,Jul,2.02009E+11,R0500,Agency Staff,Comensura Ltd,"2,219.45"
202009,Jul,2.02009E+11,R0500,Agency Staff,Comensura Ltd,"1,044.65"
202009,Jul,2.02009E+11,R0500,Agency Staff,Comensura Ltd,-867.69
202009,Jul,2.02009E+11,R0500,Agency Staff,Comensura Ltd,"-1,032.80"
202009,Jul,2.02009E+11,R0500,Agency Staff,Comensura Ltd,"-2,219.45"
202009,Jul,2.02009E+11,R0500,Agency Staff,Comensura Ltd,"-1,044.67"
202009,Jul,2.02009E+11,R0500,Agency Staff,Comensura Ltd,"1,027.10"
202009,Jul,2.02009E+11,R0500,Agency Staff,Comensura Ltd,"1,032.80"
202009,Jul,2.02009E+11,R0500,Agency Staff,Comensura Ltd,"2,219.45"
202009,Jul,2.02009E+11,R0500,Agency Staff,Comensura Ltd,"1,044.65"
202009,Jul,2.02009E+11,R1110,Force Doctor Fees,Comensura Ltd,"6,124.72"
202009,Jul,2.02009E+11,R0500,Agency Staff,Comensura Ltd,"1,055.76"
202009,Jul,2.02009E+11,R0500,Agency Staff,Comensura Ltd,"1,136.08"
202009,Jul,2.02009E+11,R0500,Agency Staff,Comensura Ltd,"2,219.45"
202009,Jul,2.02009E+11,R0500,Agency Staff,Comensura Ltd,"1,014.00"
202009,Jul,2.02009E+11,R5600,Postage Costs,Royal Mail,"1,451.53"
202009,Jul,2.02009E+11,R5600,Postage Costs,Royal Mail,"1,471.35"
202009,Jul,2.02009E+11,R5600,Postage Costs,Royal Mail,"1,590.82"
202009,Jul,2.02009E+11,R3660,The information is confidential or would attract an exemption under the Freedom of Information Act e.g. where disclosure could be prejudicial to the commercial interests of any person including the authority,Redacted,"1,815.00"
202009,Jul,2.02009E+11,R2600,Rent,Reed Rains,750
202009,Jul,2.02009E+11,R6785,Contributions - PCC Commissioning Services,Cumbria Alcohol & Drug Advisory Service (CADAS),"3,228.40"
202009,Jul,2.02009E+11,R4922,SARC Counselling Services,Safety Net UK,"33,306.25"
202009,Jul,2.02009E+11,R6785,Contributions - PCC Commissioning Services,Safety Net UK,"23,145.00"
202009,Jul,2.02009E+11,R0347,Police Staff Employers LGPS Past Service Costs,Cumbria County Council,"22,300.00"
202009,Jul,2.02009E+11,R6785,Contributions - PCC Commissioning Services,Cumbria County Council,"32,500.00"
202009,Jul,2.02009E+11,R2700,Cleaning Contract,North Cumbria Integrated care NHS Foundation Trust (NCIC NHS FT),743.47
202009,Jul,2.02009E+11,R2600,Rent,North Cumbria Integrated care NHS Foundation Trust (NCIC NHS FT),"1,400.00"
202009,Jul,2.02009E+11,R2700,Cleaning Contract,North Cumbria Integrated care NHS Foundation Trust (NCIC NHS FT),743.47
202009,Jul,2.02009E+11,R2600,Rent,North Cumbria Integrated care NHS Foundation Trust (NCIC NHS FT),"1,680.00"
202009,Jul,2.02009E+11,R6785,Contributions - PCC Commissioning Services,Penrith Cricket Sports & Social Club,"3,500.00"
202009,Jul,2.02009E+11,R6785,Contributions - PCC Commissioning Services,Cumbria Youth Alliance,"3,150.00"
202009,Jul,2.02009E+11,R6785,Contributions - PCC Commissioning Services,West Cumbria Domestic Violence Support,"34,267.00"
202009,Jul,2.02009E+11,R6785,Contributions - PCC Commissioning Services,Maryport Town Council,"3,000.00"
202009,Jul,2.02009E+11,R6785,Contributions - PCC Commissioning Services,Time to Change (West Cumbria) Project CIC,"10,604.00"
202009,Jul,2.02009E+11,R4920,SARC Doctors,G4S Health Services (UK) Ltd,"19,172.42"
202009,Jul,2.02009E+11,R4920,SARC Doctors,G4S Health Services (UK) Ltd,"19,172.42"
202009,Jul,2.02009E+11,R4920,SARC Doctors,G4S Health Services (UK) Ltd,"19,172.42"
202009,Jul,2.02009E+11,R4920,SARC Doctors,G4S Health Services (UK) Ltd,"19,172.42"
202009,Jul,2.02009E+11,R4920,SARC Doctors,G4S Health Services (UK) Ltd,"-19,172.62"
202009,Jul,2.02009E+11,R4920,SARC Doctors,G4S Health Services (UK) Ltd,"-19,172.62"
202009,Jul,2.02009E+11,R4920,SARC Doctors,G4S Health Services (UK) Ltd,-805.25
202009,Jul,2.02009E+11,R4920,SARC Doctors,G4S Health Services (UK) Ltd,"19,731.65"
202009,Jul,2.02009E+11,R4920,SARC Doctors,G4S Health Services (UK) Ltd,"19,731.65"
202009,Jul,2.02009E+11,R4920,SARC Doctors,G4S Health Services (UK) Ltd,"19,731.65"
202009,Jul,2.02009E+11,R6785,Contributions - PCC Commissioning Services,Victim Support,"73,369.42"
202009,Jul,2.02009E+11,R6785,Contributions - PCC Commissioning Services,Victim Support,"14,191.25"
202009,Jul,2.02009E+11,R6785,Contributions - PCC Commissioning Services,Victim Support,"52,103.82"
202009,Jul,2.02009E+11,R6785,Contributions - PCC Commissioning Services,The Well Communities C.I.C,"7,449.00"
202009,Jul,2.02009E+11,R6785,Contributions - PCC Commissioning Services,Milnthorpe Family Centre,"2,730.00"
202009,Jul,2.02009E+11,R4155,External Printing,42 Creative Thinking Ltd,"1,100.00"
202009,Jul,2.02009E+11,R6785,Contributions - PCC Commissioning Services,Right2Work CIC,"3,497.90"
202009,Jul,2.02009E+11,R6785,Contributions - PCC Commissioning Services,Springfield Domestic Abuse Support South Lakeland,"14,582.20"
202009,Jul,2.02009E+11,R6785,Contributions - PCC Commissioning Services,Cowran Training Ltd,"3,500.00"
202009,Jul,2.02009E+11,R6785,Contributions - PCC Commissioning Services,Womens Community Matters,"19,658.20"
202009,Jul,2.02009E+11,R6785,Contributions - PCC Commissioning Services,Womens Community Matters,"7,500.00"
202009,Jul,2.02009E+11,R6785,Contributions - PCC Commissioning Services,Womens Community Matters,"1,876.47"
202009,Jul,2.02009E+11,R6785,Contributions - PCC Commissioning Services,The Birchall Trust,"13,118.50"
202009,Jul,2.02009E+11,R6785,Contributions - PCC Commissioning Services,Signal Film and Media,"3,500.00"
202009,Jul,2.02009E+11,R6785,Contributions - PCC Commissioning Services,Drop Zone Youth Project,"3,500.00"
202009,Jul,2.02009E+11,R0500,Agency Staff,Comensura Ltd,877.68
202009,Jul,2.02009E+11,R0500,Agency Staff,Comensura Ltd,926.44
202009,Jul,2.02009E+11,R0500,Agency Staff,Comensura Ltd,908.16
202009,Jul,2.02009E+11,R0500,Agency Staff,Comensura Ltd,-926.44
202009,Jul,2.02009E+11,R0500,Agency Staff,Comensura Ltd,950.81
202009,Jul,2.02009E+11,R0500,Agency Staff,Comensura Ltd,902.06
202009,Jul,2.02009E+11,R6785,Contributions - PCC Commissioning Services,Restorative Solutions CIC,"5,000.00"
202009,Jul,2.02009E+11,R6785,Contributions - PCC Commissioning Services,Restorative Solutions CIC,"5,000.00"
202009,Jul,2.02009E+11,R7290,Other Third Party Payments,Sancus Solutions Ltd,"1,225.00"
202009,Jul,2.02009E+11,R6785,Contributions - PCC Commissioning Services,Remedi Restorative Services,"11,641.67"
202009,Jul,2.02009E+11,R6785,Contributions - PCC Commissioning Services,Remedi Restorative Services,"11,641.67"
202009,Jul,2.02009E+11,B2302,Inventories/Stocks - General / Admin Equipment - Purchases,Arrow County Supplies,735.3
202009,Jul,2.02009E+11,B2302,Inventories/Stocks - General / Admin Equipment - Purchases,Arrow County Supplies,768.22
202009,Jul,2.02009E+11,B2302,Inventories/Stocks - General / Admin Equipment - Purchases,Arrow County Supplies,619.4
202009,Jul,2.02009E+11,R4005,Office Equipment - Maintenance,Nationwide Franking Sense Ltd,611.25
202009,Jul,2.02009E+11,R4400,Books & Publications,Hills Books,"1,428.00"
202009,Jul,2.02009E+11,B2302,Inventories/Stocks - General / Admin Equipment - Purchases,Scenesafe,786.3
202009,Jul,2.02009E+11,B2302,Inventories/Stocks - General / Admin Equipment - Purchases,Scenesafe,"1,958.03"
202009,Jul,2.02009E+11,B2312,Inventories/Stocks - Uniforms - Purchases,Endura Ltd,"1,050.50"
202009,Jul,2.02009E+11,B2312,Inventories/Stocks - Uniforms - Purchases,Endura Ltd,"9,350.00"
202009,Jul,2.02009E+11,B2312,Inventories/Stocks - Uniforms - Purchases,Endura Ltd,"1,929.10"
202009,Jul,2.02009E+11,B2312,Inventories/Stocks - Uniforms - Purchases,Endura Ltd,955
202009,Jul,2.02009E+11,B2312,Inventories/Stocks - Uniforms - Purchases,Keela International Ltd,"1,003.50"
202009,Jul,2.02009E+11,R4300,Furniture - General,Centric Office Solutions Limited,636.3
202009,Jul,2.02009E+11,B2302,Inventories/Stocks - General / Admin Equipment - Purchases,Cromwell Group Ltd,"1,813.00"
202009,Jul,2.02009E+11,B2312,Inventories/Stocks - Uniforms - Purchases,Turner Virr  Co Ltd,"2,380.48"
202009,Jul,2.02009E+11,B2312,Inventories/Stocks - Uniforms - Purchases,Mehler Vario System GmbH,"1,227.20"
202009,Jul,2.02009E+11,B2312,Inventories/Stocks - Uniforms - Purchases,Mehler Vario System GmbH,"1,231.30"
202009,Jul,2.02009E+11,B2312,Inventories/Stocks - Uniforms - Purchases,Mehler Vario System GmbH,"1,678.60"
202009,Jul,2.02009E+11,B2312,Inventories/Stocks - Uniforms - Purchases,Mehler Vario System GmbH,"1,726.20"
202009,Jul,2.02009E+11,B2312,Inventories/Stocks - Uniforms - Purchases,Mehler Vario System GmbH,"1,726.20"
202009,Jul,2.02009E+11,B2312,Inventories/Stocks - Uniforms - Purchases,Mehler Vario System GmbH,980.8
202009,Jul,2.02009E+11,B2312,Inventories/Stocks - Uniforms - Purchases,SBI TacPro,"1,520.40"
202009,Jul,2.02009E+11,B2312,Inventories/Stocks - Uniforms - Purchases,SBI TacPro,"1,520.40"
202009,Jul,2.02009E+11,B2312,Inventories/Stocks - Uniforms - Purchases,SBI TacPro,551.95
202009,Jul,2.02009E+11,B2312,Inventories/Stocks - Uniforms - Purchases,SBI TacPro,"1,299.36"
202009,Jul,2.02009E+11,R5320,Computer Software - Purchase,SCC (Specialist Computer Centre),"1,367.19"
202009,Jul,2.02009E+11,R5110,Networks Hardware Purchase,Scan International,740.88
202009,Jul,2.02009E+11,C5210,Radio / Airwave Equipment - Purchases,Sepura PLC,"47,508.00"
202009,Jul,2.02009E+11,R7105,PND Costs,Police and Crime Commissioner for Durham Constabulary,"2,081.45"
202009,Jul,2.02009E+11,R5215,Radio / Airwave Equipment - Maintenance,Police and Crime Commissioner for Merseyside,"4,000.00"
202009,Jul,2.02009E+11,R6755,Consultants Fees - ICT,Comensura Ltd,"1,501.00"
202009,Jul,2.02009E+11,R6755,Consultants Fees - ICT,Comensura Ltd,"1,501.00"
202009,Jul,2.02009E+11,R6755,Consultants Fees - ICT,Comensura Ltd,"1,501.00"
202009,Jul,2.02009E+11,R6755,Consultants Fees - ICT,Comensura Ltd,"1,501.00"
202009,Jul,2.02009E+11,R6755,Consultants Fees - ICT,Comensura Ltd,"1,501.00"
202009,Jul,2.02009E+11,R5325,Computer Software - Maintenance,eSafe Global Limited,"5,000.00"
202009,Jul,2.02009E+11,R5325,Computer Software - Maintenance,Softcat PLC,"7,160.00"
202009,Jul,2.02009E+11,R5325,Computer Software - Maintenance,Softcat PLC,"1,790.00"
202009,Jul,2.02009E+11,R5325,Computer Software - Maintenance,Softcat PLC,"1,790.00"
202009,Jul,2.02009E+11,R5325,Computer Software - Maintenance,Softcat PLC,"1,790.00"
202009,Jul,2.02009E+11,R5325,Computer Software - Maintenance,Softcat PLC,"1,790.00"
202009,Jul,2.02009E+11,R5325,Computer Software - Maintenance,Softcat PLC,"1,790.00"
202009,Jul,2.02009E+11,R5325,Computer Software - Maintenance,Softcat PLC,"1,790.00"
202009,Jul,2.02009E+11,R5120,Networks Private Circuits,Insight Direct (UK) Ltd,"3,791.12"
202009,Jul,2.02009E+11,R5120,Networks Private Circuits,Vodafone Limited,"11,876.21"
202009,Jul,2.02009E+11,R5315,Computer Hardware - Maintenance,Specialised Equipment Cleaning,595
202009,Jul,2.02009E+11,R5010,Telephone Charges - Landlines,TalkTalk,"2,792.90"
202009,Jul,2.02009E+11,R5325,Computer Software - Maintenance,Magnet Forensics,"6,578.13"
202009,Jul,2.02009E+11,R5325,Computer Software - Maintenance,ABM Intelligence Limited,"1,231.41"
202009,Jul,2.02009E+11,R6750,Consultants Fees - Other,MHR International UK LTD,"2,696.94"
202009,Jul,2.02009E+11,R6750,Consultants Fees - Other,MHR International UK LTD,"3,876.96"
202009,Jul,2.02009E+11,R5325,Computer Software - Maintenance,MHR International UK LTD,"1,104.00"
202009,Jul,2.02009E+11,R6750,Consultants Fees - Other,MHR International UK LTD,898.98
202009,Jul,2.02009E+11,R5120,Networks Private Circuits,Vodafone Limited,"1,776.00"
202009,Jul,2.02009E+11,R5340,Computer Sundry Purchases,CPC Plc,836.22
202009,Jul,2.02009E+11,R5315,Computer Hardware - Maintenance,Oracle Corporation UK Limited,"4,497.23"
202009,Jul,2.02009E+11,R5315,Computer Hardware - Maintenance,Oracle Corporation UK Limited,"23,464.46"
202009,Jul,2.02009E+11,R5215,Radio / Airwave Equipment - Maintenance,Airwave Solutions Limited (Subsidiary:- Kelvin Connect),"77,998.63"
202009,Jul,2.02009E+11,R5210,Radio / Airwave Equipment - Purchases,Motorola Solutions UK Ltd,572.92
202009,Jul,2.02009E+11,R7110,National Police ICT Service Charges,Mayors Office for Policing and Crime,"7,750.95"
202009,Jul,2.02009E+11,R5325,Computer Software - Maintenance,Phoenix Software Ltd,"6,633.60"
202009,Jul,2.02009E+11,Z2123,Returned Payments - Clearance in the Year (Expenditure),BNP Paribas Leasing Solutions Ltd,623.99
202009,Jul,2.02009E+11,Z2123,Returned Payments - Clearance in the Year (Expenditure),BNP Paribas Leasing Solutions Ltd,623.99
202009,Jul,2.02009E+11,Z2123,Returned Payments - Clearance in the Year (Expenditure),BNP Paribas Leasing Solutions Ltd,623.99
202009,Jul,2.02009E+11,Z2123,Returned Payments - Clearance in the Year (Expenditure),BNP Paribas Leasing Solutions Ltd,623.99
202009,Jul,2.02009E+11,R6710,Subscriptions,Cumbria County Council,"1,568.18"
202009,Jul,2.02009E+11,R4880,Ex-Gratia Payments,Exgratia Payments,872
202009,Jul,2.02009E+11,R1720,Other Support Function Training,Government Actuary's Department,"6,200.00"
202009,Jul,2.02009E+11,R7380,Settlement of 3rd Party Claims for damage to property / vehicles,Gallagher Bassett,"6,842.25"
202009,Jul,2.02009E+11,R7380,Settlement of 3rd Party Claims for damage to property / vehicles,Gallagher Bassett,"2,647.54"
202009,Jul,2.02009E+11,R6824,NatWest Corporate Card Payments,Natwest Corporate Card,915.06
202009,Jul,2.02009E+11,R6824,NatWest Corporate Card Payments,Natwest Corporate Card,"3,448.25"
202009,Jul,2.02009E+11,R6830,External Audit Fee,Grant Thornton UK LLP,"2,300.00"
202009,Jul,2.02009E+11,R6830,External Audit Fee,Grant Thornton UK LLP,"2,887.00"
202009,Jul,2.02009E+11,R7042,Pension Services,XPS Administration Limited T/A XPS Administration,"8,911.17"
202009,Jul,2.02009E+11,R1265,Employee Insurance - Supt. Association,Police Superintendents Association Ltd,"8,970.00"
202009,Jul,2.02009E+11,R7090,Other Collaboration Payments,Police and Crime Commissioner for Cheshire,"6,293.82"
202009,Jul,2.02009E+11,R7090,Other Collaboration Payments,Police and Crime Commissioner for Merseyside,"6,866.05"
202009,Jul,2.02009E+11,R7090,Other Collaboration Payments,Police and Crime Commissioner for Leicestershire,"1,337.00"
202009,Jul,2.02009E+11,R6710,Subscriptions,CPOSA,"3,074.00"
202009,Jul,2.02009E+11,R5810,Operational Equipment - DNA,Scenesafe,763
202009,Jul,2.02009E+11,R4780,CSI Consumables,Scenesafe,669.29
202009,Jul,2.02009E+11,R5810,Operational Equipment - DNA,Scenesafe,601.5
202009,Jul,2.02009E+11,R4710,Forensic Analysis - Serious Crime,Key Forensic Services Ltd (Orange UK Holdings Ltd),"1,822.35"
202009,Jul,2.02009E+11,R4710,Forensic Analysis - Serious Crime,Key Forensic Services Ltd (Orange UK Holdings Ltd),"1,835.60"
202009,Jul,2.02009E+11,R4705,Forensic Analysis - Over Prescribed Limit,Key Forensic Services Ltd (Orange UK Holdings Ltd),"1,261.50"
202009,Jul,2.02009E+11,R4705,Forensic Analysis - Over Prescribed Limit,Key Forensic Services Ltd (Orange UK Holdings Ltd),905.53
202009,Jul,2.02009E+11,R4705,Forensic Analysis - Over Prescribed Limit,Key Forensic Services Ltd (Orange UK Holdings Ltd),"2,065.53"
202009,Jul,2.02009E+11,R4710,Forensic Analysis - Serious Crime,Key Forensic Services Ltd (Orange UK Holdings Ltd),"3,085.60"
202009,Jul,2.02009E+11,R4710,Forensic Analysis - Serious Crime,Key Forensic Services Ltd (Orange UK Holdings Ltd),"2,342.65"
202009,Jul,2.02009E+11,R4710,Forensic Analysis - Serious Crime,Key Forensic Services Ltd (Orange UK Holdings Ltd),"1,188.10"
202009,Jul,2.02009E+11,R4705,Forensic Analysis - Over Prescribed Limit,Key Forensic Services Ltd (Orange UK Holdings Ltd),"1,740.00"
202009,Jul,2.02009E+11,R4705,Forensic Analysis - Over Prescribed Limit,Key Forensic Services Ltd (Orange UK Holdings Ltd),862.03
202009,Jul,2.02009E+11,R4705,Forensic Analysis - Over Prescribed Limit,Key Forensic Services Ltd (Orange UK Holdings Ltd),"1,558.03"
202009,Jul,2.02009E+11,R4710,Forensic Analysis - Serious Crime,Key Forensic Services Ltd (Orange UK Holdings Ltd),717.75
202009,Jul,2.02009E+11,R4715,Forensic Analysis - Volume Crime,Key Forensic Services Ltd (Orange UK Holdings Ltd),581.1
202009,Jul,2.02009E+11,R4715,Forensic Analysis - Volume Crime,Key Forensic Services Ltd (Orange UK Holdings Ltd),804.6
202009,Jul,2.02009E+11,R4710,Forensic Analysis - Serious Crime,Key Forensic Services Ltd (Orange UK Holdings Ltd),"1,078.80"
202009,Jul,2.02009E+11,R7065,TITAN - North West Collaboration,Police and Crime Commissioner for Merseyside,"150,659.72"
202009,Jul,2.02009E+11,R5950,Disclosure of information would breach the Data Protection Act 1998 ,Redacted,694.86
202009,Jul,2.02009E+11,R4700,Disclosure of information would breach the Data Protection Act 1998 ,Redacted,"2,631.80"
202009,Jul,2.02009E+11,R4735,Communication Auto Services - OS,Home Office,"18,890.25"
202009,Jul,2.02009E+11,R4735,Communication Auto Services - OS,Home Office,"18,890.25"
202009,Jul,2.02009E+11,R4725,Photographic & Imaging,Wex Photo Video,584.46
202009,Jul,2.02009E+11,R4710,Forensic Analysis - Serious Crime,Orchid Cellmark Ltd,"1,251.35"
202009,Jul,2.02009E+11,R4700,Disclosure of information would breach the Data Protection Act 1998 ,Redacted,"2,698.02"
202009,Jul,2.02009E+11,R4700,Disclosure of information would breach the Data Protection Act 1998 ,Redacted,"2,851.02"
202009,Jul,2.02009E+11,R4700,Disclosure of information would breach the Data Protection Act 1998 ,Redacted,"2,751.02"
202009,Jul,2.02009E+11,R4700,Disclosure of information would breach the Data Protection Act 1998 ,Redacted,"2,704.00"
202009,Jul,2.02009E+11,R4700,Disclosure of information would breach the Data Protection Act 1998 ,Redacted,"2,704.00"
202009,Jul,2.02009E+11,R1610,CID Training,Dave Marshall Consultancy Ltd,"4,200.00"
202009,Jul,2.02009E+11,R4715,Forensic Analysis - Volume Crime,Eurofins Forensic Services Ltd,929.42
202009,Jul,2.02009E+11,R4720,Forensic Analysis - PACE / DNA,Eurofins Forensic Services Ltd,"1,412.73"
202009,Jul,2.02009E+11,R4720,Forensic Analysis - PACE / DNA,Eurofins Forensic Services Ltd,"1,596.54"
202009,Jul,2.02009E+11,R5865,Operational Equipment - Other,Berla Corporation,"6,013.73"
202009,Jul,2.02009E+11,R5912,Police Dogs - Feed,Royal Canin,939.25
202009,Jul,2.02009E+11,R5912,Police Dogs - Feed,Royal Canin,"1,017.95"
202009,Jul,2.02009E+11,R4630,Detained Persons - Appropriate Adult Services,Child Action Northwest,"9,692.34"
202009,Jul,2.02009E+11,R1630,Other Operational Training,Peter Fulton Training Associates,"1,081.00"
202009,Jul,2.02009E+11,R1630,Other Operational Training,Peter Fulton Training Associates,540.5
202009,Jul,2.02009E+11,R1630,Other Operational Training,Peter Fulton Training Associates,540.5
202009,Jul,2.02009E+11,R5916,Police Dogs - Vets Fees,Frame Swift and Partners LLP,948.94
202009,Jul,2.02009E+11,R4625,Detained Persons - Laundry,Shortridge Ltd,862.79
202009,Jul,2.02009E+11,R4625,Detained Persons - Laundry,Shortridge Ltd,671.1
202009,Jul,2.02009E+11,R4625,Detained Persons - Laundry,Shortridge Ltd,535.5
202009,Jul,2.02009E+11,R6702,Confiscated Animal Costs,Whinmill Farm Canine Centre,"2,700.00"
202009,Jul,2.02009E+11,R5965,Crime Prevention - Labour Costs / Fitting,Mark Tubman (Locksmith & Joinery),750
202009,Jul,2.02009E+11,R4900,Custody Medical Contract,G4S Health Services (UK) Ltd,"107,330.20"
202009,Jul,2.02009E+11,R4900,Custody Medical Contract,G4S Health Services (UK) Ltd,"-29,160.00"
202009,Jul,2.02009E+11,R4900,Custody Medical Contract,G4S Health Services (UK) Ltd,"110,460.80"
202009,Jul,2.02009E+11,R4900,Custody Medical Contract,G4S Health Services (UK) Ltd,"110,460.80"
202009,Jul,2.02009E+11,R4900,Custody Medical Contract,G4S Health Services (UK) Ltd,"110,460.80"
202009,Jul,2.02009E+11,R5865,Operational Equipment - Other,Spanset Ltd,"4,007.20"
202009,Jul,2.02009E+11,R4625,Detained Persons - Laundry,Shortridge Ltd,"1,595.00"
202009,Jul,2.02009E+11,R6610,Vehicle Recovery Costs,FMG Support (RRRM) Ltd,"1,228.00"
202009,Jul,2.02009E+11,R5980,Firearms Equipment,Viking Arms Ltd,"1,028.62"
202009,Jul,2.02009E+11,R1610,CID Training,SOA Safety Ltd,800
202009,Jul,2.02009E+11,R1620,Public Order Training,Police and Crime Commissioner for Greater Manchester,"1,704.00"
202009,Jul,2.02009E+11,R4600,Detained Persons - Meals / Refreshments,Bidfood,685.2
202009,Jul,2.02009E+11,R5980,Firearms Equipment,Deenside Ltd,819.8
202009,Jul,2.02009E+11,R4950,Interpreters Fees - Face to Face,Capita Translation and Interpreting (Applied Language Solutions Ltd),"1,782.69"
202009,Jul,2.02009E+11,R4955,Interpreters Fees - Telephone,Capita Translation and Interpreting (Applied Language Solutions Ltd),791.53
202009,Jul,2.02009E+11,R4960,Interpreters Fees - Translation (Written),Capita Translation and Interpreting (Applied Language Solutions Ltd),"2,928.00"
202009,Jul,2.02009E+11,R5835,Operational Equipment - Testing Kits & Consumables,D.Tec International Ltd,"1,706.00"
202009,Jul,2.02009E+11,R5835,Operational Equipment - Testing Kits & Consumables,D.Tec International Ltd,"1,706.00"
202009,Jul,2.02009E+11,R5835,Operational Equipment - Testing Kits & Consumables,D.Tec International Ltd,"1,706.00"
202009,Jul,2.02009E+11,R5760,Operational Equipment - TASER,Niton Equipment Ltd,"1,663.00"
202009,Jul,2.02009E+11,R5760,Operational Equipment - TASER,Edgar Brothers,700
202009,Jul,2.02009E+11,R4940,First Aid Equipment / Consumables,S P Services UK Ltd,510
202009,Jul,2.02009E+11,R6750,Consultants Fees - Other,Tellemachus Limited,"3,770.14"
202009,Jul,2.02009E+11,R5865,Operational Equipment - Other,Safariland UK,"1,300.00"
202009,Jul,2.02009E+11,R5980,Firearms Equipment,Safariland UK,"4,260.00"
202009,Jul,2.02009E+11,R6660,Counsel Fees,Trinity Chambers (Newcastle-upon-Tyne),980
202009,Jul,2.02009E+11,R6660,Counsel Fees,Trinity Chambers (Newcastle-upon-Tyne),525
202009,Jul,2.02009E+11,B4053,Provision for Legal Claims - Drawdown from Provision,Plexus Law,899
202009,Jul,2.02009E+11,B4003,Disclosure of information would breach the Data Protection Act 1998 ,Redacted,"3,750.00"
202009,Jul,2.02009E+11,B4004,Disclosure of information would breach the Data Protection Act 1998 ,Redacted,600
202009,Jul,2.02009E+11,B4007,Disclosure of information would breach the Data Protection Act 1998 ,Redacted,525
202009,Jul,2.02009E+11,R5600,Postage Costs,Pitney Bowes Ltd,"3,663.17"
202009,Jul,2.02009E+11,R4090,The information is confidential or would attract an exemption under the Freedom of Information Act e.g. where disclosure could be prejudicial to the commercial interests of any person including the authority,Redacted,804.81
202009,Jul,2.02009E+11,R4090,The information is confidential or would attract an exemption under the Freedom of Information Act e.g. where disclosure could be prejudicial to the commercial interests of any person including the authority,Redacted,503.4
202009,Jul,2.02009E+11,R4090,The information is confidential or would attract an exemption under the Freedom of Information Act e.g. where disclosure could be prejudicial to the commercial interests of any person including the authority,Redacted,583.56
202009,Jul,2.02009E+11,R4090,The information is confidential or would attract an exemption under the Freedom of Information Act e.g. where disclosure could be prejudicial to the commercial interests of any person including the authority,Redacted,550.74
202009,Jul,2.02009E+11,R6850,Hotel Accommodation - Training,Capita Travel and Events,650
202009,Jul,2.02009E+11,R3745,Travel - Public Transport,Capita Travel and Events,"1,109.00"
202009,Jul,2.02009E+11,R6850,Hotel Accommodation - Training,Capita Travel and Events,600
202009,Jul,2.02009E+11,R6850,Hotel Accommodation - Training,Capita Travel and Events,900
202009,Jul,2.02009E+11,R3670,Vehicle Hire - Car Share Scheme,Enterprise Car Club,"3,720.00"
202009,Jul,2.02009E+11,R3605,Vehicle Hire - Training,Enterprise Rent-a-car UK Limited,502.72
202009,Aug,2.02009E+11,R2730,Refuse,Cumbria Waste Recycling Ltd,705
202009,Aug,2.02009E+11,R2410,Minor Works,Grafix Signmakers Ltd,"4,190.00"
202009,Aug,2.02009E+11,R4940,First Aid Equipment / Consumables,Thomas Graham and Sons Limited,"17,000.00"
202009,Aug,2.02009E+11,R2700,Cleaning Contract,West Cumbria Estates Management Limited,"1,053.12"
202009,Aug,2.02009E+11,R5865,Operational Equipment - Other,Centric Office Solutions Limited,"2,000.00"
202009,Aug,2.02009E+11,R3010,Workshop Equipment & Tools - Purchases,Varitech Systems Limited,"2,833.32"
202009,Aug,2.02009E+11,R4715,Forensic Analysis - Volume Crime,Eurofins Forensic Services Ltd,"2,095.08"
202009,Aug,2.02009E+11,R1740,Leadership Training,Centre for Leadership Performance,"5,640.00"
202009,Aug,2.02009E+11,R5350,Web Design & Running Costs,SocialSignin Ltd T A Orlo,"1,249.95"
202009,Aug,2.02009E+11,R6750,Consultants Fees - Other,SMSR Ltd,700
202009,Aug,2.02009E+11,R6750,Consultants Fees - Other,University of Leeds,"8,500.00"
202009,Aug,2.02009E+11,R6730,Non-Staff Advertising,Newsquest Media Group,"9,000.00"
202009,Aug,2.02009E+11,R6730,Non-Staff Advertising,Getty Images UK Limited,"2,628.00"
202009,Aug,2.02009E+11,R6730,Non-Staff Advertising,Global Radio Services Limited,"1,060.26"
202009,Aug,2.02009E+11,R5350,Web Design & Running Costs,Corporate Project Solutions,"4,074.00"
202009,Aug,2.02009E+11,R2720,Other Cleaning & Domestic Equipment,Arrow County Supplies,"1,394.80"
202009,Aug,2.02009E+11,R2720,Other Cleaning & Domestic Equipment,Arrow County Supplies,619.4
202009,Aug,2.02009E+11,R3110,Vehicle Maintenance - Tyres & Tubes,Goodyear Dunlop Tyres UK Limited,"10,714.44"
202009,Aug,2.02009E+11,R3450,Accident Damage (Below Insurance Excess)),National Windscreens,574.05
202009,Aug,2.02009E+11,R3450,Accident Damage (Below Insurance Excess)),National Windscreens,507.6
202009,Aug,2.02009E+11,R3510,Vehicle Fuel,Allstar Business Solutions Ltd,"1,788.31"
202009,Aug,2.02009E+11,R3460,Accident Damage (Below Insurance Threshold),James Alpe Ltd,811.61
202009,Aug,2.02009E+11,R3460,Accident Damage (Below Insurance Threshold),James Alpe Ltd,"1,000.00"
202009,Aug,2.02009E+11,R2700,Cleaning Contract,Bulloughs Cleaning Services Ltd,"13,867.44"
202009,Aug,2.02009E+11,R2700,Cleaning Contract,Bulloughs Cleaning Services Ltd,"4,167.26"
202009,Aug,2.02009E+11,R2700,Cleaning Contract,Bulloughs Cleaning Services Ltd,634.03
202009,Aug,2.02009E+11,R2700,Cleaning Contract,Bulloughs Cleaning Services Ltd,"5,671.75"
202009,Aug,2.02009E+11,R2700,Cleaning Contract,Bulloughs Cleaning Services Ltd,"2,797.21"
202009,Aug,2.02009E+11,R2700,Cleaning Contract,Bulloughs Cleaning Services Ltd,"3,924.69"
202009,Aug,2.02009E+11,R2700,Cleaning Contract,Bulloughs Cleaning Services Ltd,"1,585.06"
202009,Aug,2.02009E+11,R2700,Cleaning Contract,Bulloughs Cleaning Services Ltd,507.22
202009,Aug,2.02009E+11,R2700,Cleaning Contract,Bulloughs Cleaning Services Ltd,634.02
202009,Aug,2.02009E+11,R2700,Cleaning Contract,Bulloughs Cleaning Services Ltd,"2,897.94"
202009,Aug,2.02009E+11,R2700,Cleaning Contract,Bulloughs Cleaning Services Ltd,"1,585.06"
202009,Aug,2.02009E+11,R4540,Canteen - Hot Drink Machines,Rijo 42 Ingredients Ltd,845.36
202009,Aug,2.02009E+11,R4540,Canteen - Hot Drink Machines,Rijo 42 Ingredients Ltd,886.46
202009,Aug,2.02009E+11,R2130,Unplanned Building Maintenance Safety Works,BID Group Ltd,"4,800.00"
202009,Aug,2.02009E+11,R4535,Canteen - Consumables,Planglow Ltd,715.4
202009,Aug,2.02009E+11,R4540,Canteen - Hot Drink Machines,BNP Paribas Leasing Solutions Ltd,559.99
202009,Aug,2.02009E+11,R4520,Canteen - Purchase of Food / Ingredients,Pioneer Foodservice,882.66
202009,Aug,2.02009E+11,R4520,Canteen - Purchase of Food / Ingredients,Pioneer Foodservice,529.03
202009,Aug,2.02009E+11,R3450,Accident Damage (Below Insurance Excess)),Thompson Accident Repair Centre Ltd,911.21
202009,Aug,2.02009E+11,R7006,North West Ambulance Service - Estates Management Collaboration,Dawson Electrical Services Ltd,"2,210.00"
202009,Aug,2.02009E+11,R7006,North West Ambulance Service - Estates Management Collaboration,Dawson Electrical Services Ltd,"1,640.00"
202009,Aug,2.02009E+11,R7006,North West Ambulance Service - Estates Management Collaboration,Cumbria Mechanical and Plumbing Ltd,503.45
202009,Aug,2.02009E+11,R2060,Unplanned Building Services Environmental Services/Plumbing,Cumbria Mechanical and Plumbing Ltd,596.15
202009,Aug,2.02009E+11,R2050,Unplanned Building Services Electrics,JJ Group (Contracting) Ltd,654.22
202009,Aug,2.02009E+11,R2050,Unplanned Building Services Electrics,JJ Group (Contracting) Ltd,751.7
202009,Aug,2.02009E+11,R2140,Unplanned Building Maintenance Internal Maintenance,Cumbria Mechanical and Plumbing Ltd,"1,425.14"
202009,Aug,2.02009E+11,R2260,Planned Servicing Boiler & Heating Plant,Cumbria Mechanical and Plumbing Ltd,560
202009,Aug,2.02009E+11,R2205,Planned Survey Non Structural Maintenance,JJ Group (Contracting) Ltd,"5,177.00"
202009,Aug,2.02009E+11,R2230,Planned Survey Electrics,JJ Group (Contracting) Ltd,750
202009,Aug,2.02009E+11,R2235,Planned Survey Environmental Services/Plumbing,Cumbria Mechanical and Plumbing Ltd,675
202009,Aug,2.02009E+11,R3120,Vehicle Maintenance - Parts Purchase,Borders Automobile Co Ltd,521.68
202009,Aug,2.02009E+11,R2610,Estates Leases,Cumbria County Council,"1,706.25"
202009,Aug,2.02009E+11,R2460,Grounds Maintenance - Contract,S Nicholson Grounds Maintenance,700
202009,Aug,2.02009E+11,R2660,Business Rates,Eden District Council,910
202009,Aug,2.02009E+11,R7006,North West Ambulance Service - Estates Management Collaboration,John Sandelands Limited,808.86
202009,Aug,2.02009E+11,R2610,Estates Leases,Frederick Potts and Sons Ltd,787.5
202009,Aug,2.02009E+11,R7006,North West Ambulance Service - Estates Management Collaboration,Frederick Potts and Sons Ltd,"1,890.25"
202009,Aug,2.02009E+11,R2246,Planned External Painting,Frederick Potts and Sons Ltd,"3,500.00"
202009,Aug,2.02009E+11,R2150,Unplanned Building Maintenance Electrics,Margrange Ltd,582
202009,Aug,2.02009E+11,R2230,Planned Survey Electrics,Margrange Ltd,890
202009,Aug,2.02009E+11,C3905,Vehicle Adaptations - Capital,Wurth UK Ltd,579.16
202009,Aug,2.02009E+11,R2680,PFI Occupancy Charges,West Cumbria Estates Management Limited,"105,000.00"
202009,Aug,2.02009E+11,R3020,Workshop Equipment & Tools - Servicing / Repairs,Autoparts Garage Services,950
202009,Aug,2.02009E+11,R3020,Workshop Equipment & Tools - Servicing / Repairs,Autoparts Garage Services,950
202009,Aug,2.02009E+11,R3020,Workshop Equipment & Tools - Servicing / Repairs,Autoparts Garage Services,595.01
202009,Aug,2.02009E+11,R3120,Vehicle Maintenance - Parts Purchase,Arnold Clark Automobiles Ltd,612.72
202009,Aug,2.02009E+11,R2510,Electricity,British Gas Trading,"7,323.18"
202009,Aug,2.02009E+11,R2510,Electricity,British Gas Trading,"5,586.31"
202009,Aug,2.02009E+11,R2510,Electricity,British Gas Trading,595.19
202009,Aug,2.02009E+11,R2510,Electricity,British Gas Trading,"5,214.86"
202009,Aug,2.02009E+11,R2510,Electricity,British Gas Trading,"5,176.54"
202009,Aug,2.02009E+11,R2510,Electricity,British Gas Trading,"10,170.58"
202009,Aug,2.02009E+11,R2530,Climate Change Levy,British Gas Trading,578.65
202009,Aug,2.02009E+11,R2510,Electricity,British Gas Trading,"3,228.44"
202009,Aug,2.02009E+11,R2510,Electricity,British Gas Trading,"4,350.07"
202009,Aug,2.02009E+11,R2510,Electricity,British Gas Trading,"5,260.92"
202009,Aug,2.02009E+11,R3210,Police Vehicle Recovery & Transport,FMG Support (RRRM) Ltd,"4,129.00"
202009,Aug,2.02009E+11,C3900,Vehicle Purchases - Capital,Toyota GB PLC,"18,535.60"
202009,Aug,2.02009E+11,R7006,North West Ambulance Service - Estates Management Collaboration,FTS Fire and  Security Ltd,801.93
202009,Aug,2.02009E+11,R2265,Planned Servicing Fire Systems,FTS Fire and  Security Ltd,"1,146.24"
202009,Aug,2.02009E+11,R2240,Planned Survey Safety Works,FTS Fire and  Security Ltd,968
202009,Aug,2.02009E+11,R2265,Planned Servicing Fire Systems,FTS Fire and  Security Ltd,757
202009,Aug,2.02009E+11,R2205,Planned Survey Non Structural Maintenance,FTS Fire and  Security Ltd,946
202009,Aug,2.02009E+11,R3460,Accident Damage (Below Insurance Threshold),Guy Perry Ltd,"1,000.00"
202009,Aug,2.02009E+11,R3030,Workshop Consumables & Sundries,Gaslow International Ltd,"6,200.50"
202009,Aug,2.02009E+11,R3120,Vehicle Maintenance - Parts Purchase,Volkswagen Group UK Ltd,"1,346.46"
202009,Aug,2.02009E+11,R3450,Accident Damage (Below Insurance Excess)),Volkswagen Group UK Ltd,514.91
202009,Aug,2.02009E+11,R2275,Planned Servicing HVAC System,HSB Haughton Engineering Limited,560
202009,Aug,2.02009E+11,R2740,Destruction of Confidential Waste,Shred it,640
202009,Aug,2.02009E+11,R2610,Estates Leases,Ulverston Properties Limited,820.83
202009,Aug,2.02009E+11,R2555,Water Rates,Castle Water Limited,"1,409.49"
202009,Aug,2.02009E+11,R2565,Sewerage & Environmental Services,Castle Water Limited,"4,623.93"
202009,Aug,2.02009E+11,R2550,Metered Water,Castle Water Limited,"1,791.52"
202009,Aug,2.02009E+11,R2565,Sewerage & Environmental Services,Castle Water Limited,"5,179.40"
202009,Aug,2.02009E+11,R2510,Electricity,EDF Energy,"14,442.52"
202009,Aug,2.02009E+11,R2530,Climate Change Levy,EDF Energy,935.89
202009,Aug,2.02009E+11,R2510,Electricity,EDF Energy,"1,947.65"
202009,Aug,2.02009E+11,R2510,Electricity,EDF Energy,"5,475.38"
202009,Aug,2.02009E+11,R2510,Electricity,EDF Energy,"3,352.56"
202009,Aug,2.02009E+11,R2510,Electricity,EDF Energy,"10,799.02"
202009,Aug,2.02009E+11,R2530,Climate Change Levy,EDF Energy,705.1
202009,Aug,2.02009E+11,R2284,Planned Servicing Electrical Equipment Testing (PAT),Lantei Ltd,"1,681.60"
202009,Aug,2.02009E+11,C3900,Vehicle Purchases - Capital,Volkswagen Group UK Ltd,"38,230.39"
202009,Aug,2.02009E+11,C3900,Vehicle Purchases - Capital,Volkswagen Group UK Ltd,"38,230.39"
202009,Aug,2.02009E+11,R2505,Gas,Corona Energy,"15,173.13"
202009,Aug,2.02009E+11,R2530,Climate Change Levy,Corona Energy,"1,724.40"
202009,Aug,2.02009E+11,R3510,Vehicle Fuel,Allstar Business Solutions Ltd,"57,974.09"
202009,Aug,2.02009E+11,R3510,Vehicle Fuel,Allstar Business Solutions Ltd,573.25
202009,Aug,2.02009E+11,R3510,Vehicle Fuel,Allstar Business Solutions Ltd,833.46
202009,Aug,2.02009E+11,R3510,Vehicle Fuel,Allstar Business Solutions Ltd,"3,269.66"
202009,Aug,2.02009E+11,R3510,Vehicle Fuel,Allstar Business Solutions Ltd,597.5
202009,Aug,2.02009E+11,R3510,Vehicle Fuel,Allstar Business Solutions Ltd,"2,216.62"
202009,Aug,2.02009E+11,R1340,Added Years Qtrly - LGPS,Cumbria County Council,"16,356.97"
202009,Aug,2.02009E+11,R1340,Added Years Qtrly - LGPS,Cumbria County Council,"16,191.45"
202009,Aug,2.02009E+11,R0500,Agency Staff,Comensura Ltd,606.45
202009,Aug,2.02009E+11,R0500,Agency Staff,Comensura Ltd,929.52
202009,Aug,2.02009E+11,R0500,Agency Staff,Comensura Ltd,"2,219.45"
202009,Aug,2.02009E+11,R0500,Agency Staff,Comensura Ltd,840.18
202009,Aug,2.02009E+11,R0500,Agency Staff,Comensura Ltd,"1,253.14"
202009,Aug,2.02009E+11,R0500,Agency Staff,Comensura Ltd,"1,091.79"
202009,Aug,2.02009E+11,R0500,Agency Staff,Comensura Ltd,"2,219.45"
202009,Aug,2.02009E+11,R0500,Agency Staff,Comensura Ltd,"1,013.99"
202009,Aug,2.02009E+11,R0500,Agency Staff,Comensura Ltd,879.12
202009,Aug,2.02009E+11,R0500,Agency Staff,Comensura Ltd,"1,290.59"
202009,Aug,2.02009E+11,R0500,Agency Staff,Comensura Ltd,"1,032.80"
202009,Aug,2.02009E+11,R0500,Agency Staff,Comensura Ltd,"2,219.45"
202009,Aug,2.02009E+11,R0500,Agency Staff,Comensura Ltd,"1,013.99"
202009,Aug,2.02009E+11,R1110,Force Doctor Fees,Comensura Ltd,"3,062.36"
202009,Aug,2.02009E+11,R1138,Psychological Screening,NTA Psychological Screening Ltd,760
202009,Aug,2.02009E+11,R5600,Postage Costs,Royal Mail,"1,802.46"
202009,Aug,2.02009E+11,R5600,Postage Costs,Royal Mail,923
202009,Aug,2.02009E+11,R5600,Postage Costs,Royal Mail,"1,306.63"
202009,Aug,2.02009E+11,R5867,Operational Equipment - Maintenance,Truvelo (UK) Limited,"2,772.00"
202009,Aug,2.02009E+11,R3660,The information is confidential or would attract an exemption under the Freedom of Information Act e.g. where disclosure could be prejudicial to the commercial interests of any person including the authority,Redacted,"2,217.25"
202009,Aug,2.02009E+11,R2600,Rent,Reed Rains,750
202009,Aug,2.02009E+11,R6835,Internal Audit Fee,Cumbria County Council,"5,805.53"
202009,Aug,2.02009E+11,R6785,Contributions - PCC Commissioning Services,Brampton Parish Council,"3,000.00"
202009,Aug,2.02009E+11,R6785,Contributions - PCC Commissioning Services,Triple A Project (All About Autism),"3,500.00"
202009,Aug,2.02009E+11,R2700,Cleaning Contract,North Cumbria Integrated care NHS Foundation Trust (NCIC NHS FT),743.47
202009,Aug,2.02009E+11,R6785,Contributions - PCC Commissioning Services,Allerdale Borough Council,"50,000.00"
202009,Aug,2.02009E+11,R6785,Contributions - PCC Commissioning Services,Egremont Youth Partnership,"3,500.00"
202009,Aug,2.02009E+11,R6785,Contributions - PCC Commissioning Services,Wath Brow Hornets ARLFC Youth Section,"3,500.00"
202009,Aug,2.02009E+11,R6785,Contributions - PCC Commissioning Services,Samaritans of West Cumbria,"2,800.00"
202009,Aug,2.02009E+11,R4920,SARC Doctors,G4S Health Services (UK) Ltd,"19,731.65"
202009,Aug,2.02009E+11,R6785,Contributions - PCC Commissioning Services,Victim Support,"73,369.42"
202009,Aug,2.02009E+11,R6785,Contributions - PCC Commissioning Services,Victim Support,"14,191.25"
202009,Aug,2.02009E+11,R6785,Contributions - PCC Commissioning Services,Resource Creatives Enterprises Ltd,"3,500.00"
202009,Aug,2.02009E+11,R6785,Contributions - PCC Commissioning Services,Around The Combe,"3,493.00"
202009,Aug,2.02009E+11,R0500,Agency Staff,Comensura Ltd,902.06
202009,Aug,2.02009E+11,R0500,Agency Staff,Comensura Ltd,950.82
202009,Aug,2.02009E+11,R0500,Agency Staff,Comensura Ltd,969.1
202009,Aug,2.02009E+11,R6660,Counsel Fees,Lincoln House Chambers,532
202009,Aug,2.02009E+11,R7290,Other Third Party Payments,Sancus Solutions Ltd,"1,575.00"
202009,Aug,2.02009E+11,R6785,Contributions - PCC Commissioning Services,Remedi Restorative Services,"11,641.67"
202009,Aug,2.02009E+11,R6785,Contributions - PCC Commissioning Services,Crimestoppers Trust,"2,062.50"
202009,Aug,2.02009E+11,B2302,Inventories/Stocks - General / Admin Equipment - Purchases,Arrow County Supplies,697.4
202009,Aug,2.02009E+11,B2302,Inventories/Stocks - General / Admin Equipment - Purchases,Arrow County Supplies,"1,281.26"
202009,Aug,2.02009E+11,B2312,Inventories/Stocks - Uniforms - Purchases,Sonic Communications Int Ltd,"2,160.00"
202009,Aug,2.02009E+11,R4300,Furniture - General,Senator International,"1,119.00"
202009,Aug,2.02009E+11,B2302,Inventories/Stocks - General / Admin Equipment - Purchases,Scenesafe,"1,000.00"
202009,Aug,2.02009E+11,B2312,Inventories/Stocks - Uniforms - Purchases,Endura Ltd,735.35
202009,Aug,2.02009E+11,B2312,Inventories/Stocks - Uniforms - Purchases,Yaffy (MWUK Ltd),"8,100.00"
202009,Aug,2.02009E+11,B2312,Inventories/Stocks - Uniforms - Purchases,Keela International Ltd,611.7
202009,Aug,2.02009E+11,B2302,Inventories/Stocks - General / Admin Equipment - Purchases,Kays Medical Limited,905
202009,Aug,2.02009E+11,B2312,Inventories/Stocks - Uniforms - Purchases,Ioma Clothing Co Ltd,760.03
202009,Aug,2.02009E+11,B2312,Inventories/Stocks - Uniforms - Purchases,Bennett Safetywear Ltd,"1,195.00"
202009,Aug,2.02009E+11,B2312,Inventories/Stocks - Uniforms - Purchases,Turner Virr  Co Ltd,"2,090.80"
202009,Aug,2.02009E+11,B2312,Inventories/Stocks - Uniforms - Purchases,Turner Virr  Co Ltd,"2,320.10"
202009,Aug,2.02009E+11,B2312,Inventories/Stocks - Uniforms - Purchases,Mehler Vario System GmbH,717
202009,Aug,2.02009E+11,B2312,Inventories/Stocks - Uniforms - Purchases,SBI TacPro,"3,248.40"
202009,Aug,2.02009E+11,B2302,Inventories/Stocks - General / Admin Equipment - Purchases,Banner Group Limited,520.8
202009,Aug,2.02009E+11,R5015,Telephone Charges - Mobile Phones,EE Limited,"7,974.60"
202009,Aug,2.02009E+11,R5015,Telephone Charges - Mobile Phones,EE Limited,"7,972.10"
202009,Aug,2.02009E+11,R5325,Computer Software - Maintenance,Capita Secure Information Solutions Ltd,"4,429.94"
202009,Aug,2.02009E+11,R6755,Consultants Fees - ICT,Civica UK Ltd,"1,840.00"
202009,Aug,2.02009E+11,R5325,Computer Software - Maintenance,Saadian Technologies UK Ltd,"9,999.00"
202009,Aug,2.02009E+11,R5320,Computer Software - Purchase,The Police ICT Company Ltd,"2,625.79"
202009,Aug,2.02009E+11,R6755,Consultants Fees - ICT,Comensura Ltd,"1,501.00"
202009,Aug,2.02009E+11,R6755,Consultants Fees - ICT,Comensura Ltd,"1,501.00"
202009,Aug,2.02009E+11,R6755,Consultants Fees - ICT,Comensura Ltd,"1,501.00"
202009,Aug,2.02009E+11,C6755,Consultants Fees - ICT,Phase 3 Consulting Limited,900
202009,Aug,2.02009E+11,R5325,Computer Software - Maintenance,Softcat PLC,"65,190.00"
202009,Aug,2.02009E+11,R5120,Networks Private Circuits,Vodafone Limited,"3,958.16"
202009,Aug,2.02009E+11,R5120,Networks Private Circuits,Vodafone Limited,"3,958.16"
202009,Aug,2.02009E+11,R5315,Computer Hardware - Maintenance,Specialised Equipment Cleaning,537.5
202009,Aug,2.02009E+11,R5010,Telephone Charges - Landlines,TalkTalk,"2,651.47"
202009,Aug,2.02009E+11,R5325,Computer Software - Maintenance,Nevis Systems Ltd,604.42
202009,Aug,2.02009E+11,R5320,Computer Software - Purchase,MHR International UK LTD,"1,500.00"
202009,Aug,2.02009E+11,R5010,Telephone Charges - Landlines,British Telecom,"10,515.36"
202009,Aug,2.02009E+11,R5120,Networks Private Circuits,British Telecom,619.6
202009,Aug,2.02009E+11,C5210,Radio / Airwave Equipment - Purchases,Motorola Solutions UK Ltd,"1,048.25"
202009,Aug,2.02009E+11,R5345,Computer & Printer Consumables,Xerox UK Ltd,622.62
202009,Aug,2.02009E+11,R5345,Computer & Printer Consumables,Xerox UK Ltd,"3,433.95"
202009,Aug,2.02009E+11,R6835,Internal Audit Fee,Cumbria County Council,"4,244.88"
202009,Aug,2.02009E+11,R7290,Other Third Party Payments,Cumbria County Council,"1,125.00"
202009,Aug,2.02009E+11,Z2123,Returned Payments - Clearance in the Year (Expenditure),Road Safety Support Ltd,558
202009,Aug,2.02009E+11,Z2123,Returned Payments - Clearance in the Year (Expenditure),Granicus,"1,308.00"
202009,Aug,2.02009E+11,Z2123,Returned Payments - Clearance in the Year (Expenditure),Granicus,"1,050.00"
202009,Aug,2.02009E+11,Z2123,Returned Payments - Clearance in the Year (Expenditure),Granicus,"5,174.00"
202009,Aug,2.02009E+11,R4880,Ex-Gratia Payments,Riverside,582.41
202009,Aug,2.02009E+11,R6990,Other Miscellaneous Expenditure,Police Sport UK,"1,184.00"
202009,Aug,2.02009E+11,R7380,Settlement of 3rd Party Claims for damage to property / vehicles,Gallagher Bassett,"10,945.06"
202009,Aug,2.02009E+11,Z2123,Returned Payments - Clearance in the Year (Expenditure),HSB Haughton Engineering Limited,672
202009,Aug,2.02009E+11,R6824,NatWest Corporate Card Payments,Natwest Corporate Card,"1,898.36"
202009,Aug,2.02009E+11,R7042,Pension Services,XPS Administration Limited T/A XPS Administration,"4,410.00"
202009,Aug,2.02009E+11,R7042,Pension Services,XPS Administration Limited T/A XPS Administration,"8,911.17"
202009,Aug,2.02009E+11,R7090,Other Collaboration Payments,Police and Crime Commissioner for Cheshire,"5,054.76"
202009,Aug,2.02009E+11,R7008,CCC - Safeguarding Vulnerable People,Cumbria County Council,"10,000.00"
202009,Aug,2.02009E+11,R5950,Disclosure of information would breach the Data Protection Act 1998 ,Redacted,619.82
202009,Aug,2.02009E+11,R5950,Disclosure of information would breach the Data Protection Act 1998 ,Redacted,677.4
202009,Aug,2.02009E+11,R4845,Expert Witness Testimony / Reports,Infra Tech Forensics Audio Ltd,760
202009,Aug,2.02009E+11,R4710,Forensic Analysis - Serious Crime,Key Forensic Services Ltd (Orange UK Holdings Ltd),"1,076.45"
202009,Aug,2.02009E+11,R4715,Forensic Analysis - Volume Crime,Key Forensic Services Ltd (Orange UK Holdings Ltd),518.7
202009,Aug,2.02009E+11,R4715,Forensic Analysis - Volume Crime,Key Forensic Services Ltd (Orange UK Holdings Ltd),"1,213.61"
202009,Aug,2.02009E+11,R4705,Forensic Analysis - Over Prescribed Limit,Key Forensic Services Ltd (Orange UK Holdings Ltd),"2,623.78"
202009,Aug,2.02009E+11,R4705,Forensic Analysis - Over Prescribed Limit,Key Forensic Services Ltd (Orange UK Holdings Ltd),905.53
202009,Aug,2.02009E+11,R4705,Forensic Analysis - Over Prescribed Limit,Key Forensic Services Ltd (Orange UK Holdings Ltd),"2,493.28"
202009,Aug,2.02009E+11,R4710,Forensic Analysis - Serious Crime,Key Forensic Services Ltd (Orange UK Holdings Ltd),"6,903.80"
202009,Aug,2.02009E+11,R4715,Forensic Analysis - Volume Crime,Key Forensic Services Ltd (Orange UK Holdings Ltd),"1,067.20"
202009,Aug,2.02009E+11,R4705,Forensic Analysis - Over Prescribed Limit,Key Forensic Services Ltd (Orange UK Holdings Ltd),"2,153.25"
202009,Aug,2.02009E+11,R4705,Forensic Analysis - Over Prescribed Limit,Key Forensic Services Ltd (Orange UK Holdings Ltd),905.53
202009,Aug,2.02009E+11,R4705,Forensic Analysis - Over Prescribed Limit,Key Forensic Services Ltd (Orange UK Holdings Ltd),"1,500.75"
202009,Aug,2.02009E+11,R4710,Forensic Analysis - Serious Crime,Key Forensic Services Ltd (Orange UK Holdings Ltd),"3,802.65"
202009,Aug,2.02009E+11,R5950,Disclosure of information would breach the Data Protection Act 1998 ,Redacted,900.97
202009,Aug,2.02009E+11,R4735,Communication Auto Services - OS,British Telecom,560
202009,Aug,2.02009E+11,R6750,Consultants Fees - Other,The Chartered Society of Forensic Sciences,"6,000.00"
202009,Aug,2.02009E+11,R5865,Operational Equipment - Other,Centric Office Solutions Limited,"1,400.00"
202009,Aug,2.02009E+11,R4710,Forensic Analysis - Serious Crime,Orchid Cellmark Ltd,"1,299.20"
202009,Aug,2.02009E+11,R4710,Forensic Analysis - Serious Crime,Orchid Cellmark Ltd,649.6
202009,Aug,2.02009E+11,R4705,Forensic Analysis - Over Prescribed Limit,Orchid Cellmark Ltd,601.75
202009,Aug,2.02009E+11,R4710,Forensic Analysis - Serious Crime,Orchid Cellmark Ltd,"1,948.80"
202009,Aug,2.02009E+11,R4725,Photographic & Imaging,Nightsearcher Ltd,624.72
202009,Aug,2.02009E+11,R4700,Disclosure of information would breach the Data Protection Act 1998 ,Redacted,"2,851.02"
202009,Aug,2.02009E+11,R4700,Disclosure of information would breach the Data Protection Act 1998 ,Redacted,"2,725.09"
202009,Aug,2.02009E+11,R4700,Disclosure of information would breach the Data Protection Act 1998 ,Redacted,"2,777.51"
202009,Aug,2.02009E+11,R4700,Disclosure of information would breach the Data Protection Act 1998 ,Redacted,"2,851.02"
202009,Aug,2.02009E+11,R4720,Forensic Analysis - PACE / DNA,Eurofins Forensic Services Ltd,"2,322.69"
202009,Aug,2.02009E+11,R6750,Consultants Fees - Other,United Kingdom Accreditation Service,"5,682.00"
202009,Aug,2.02009E+11,R5867,Operational Equipment - Maintenance,Foster and  Freeman Ltd,"2,871.63"
202009,Aug,2.02009E+11,R4845,Expert Witness Testimony / Reports,J P French Associates Limited,"2,200.00"
202009,Aug,2.02009E+11,R4630,Detained Persons - Appropriate Adult Services,Child Action Northwest,"12,567.80"
202009,Aug,2.02009E+11,R5916,Police Dogs - Vets Fees,Frame Swift and Partners LLP,"1,264.18"
202009,Aug,2.02009E+11,R6702,Confiscated Animal Costs,Whinmill Farm Canine Centre,"3,030.00"
202009,Aug,2.02009E+11,R4900,Custody Medical Contract,G4S Health Services (UK) Ltd,"110,460.80"
202009,Aug,2.02009E+11,R4900,Custody Medical Contract,G4S Health Services (UK) Ltd,"110,460.80"
202009,Aug,2.02009E+11,R4900,Custody Medical Contract,G4S Health Services (UK) Ltd,"107,330.20"
202009,Aug,2.02009E+11,R4625,Detained Persons - Laundry,Shortridge Ltd,648.86
202009,Aug,2.02009E+11,R4605,Detained Persons - Clothing,Charles Fellows Supplies Limited,574.4
202009,Aug,2.02009E+11,R6610,Vehicle Recovery Costs,FMG Support (RRRM) Ltd,687
202009,Aug,2.02009E+11,R5980,Firearms Equipment,Riflecraft Limited,"1,538.19"
202009,Aug,2.02009E+11,R5865,Operational Equipment - Other,Centric Office Solutions Limited,900
202009,Aug,2.02009E+11,R1620,Public Order Training,Police and Crime Commissioner for Greater Manchester,-882.28
202009,Aug,2.02009E+11,R1630,Other Operational Training,Police and Crime Commissioner for Greater Manchester,"1,071.00"
202009,Aug,2.02009E+11,R4950,Interpreters Fees - Face to Face,Capita Translation and Interpreting (Applied Language Solutions Ltd),"2,254.89"
202009,Aug,2.02009E+11,R4955,Interpreters Fees - Telephone,Capita Translation and Interpreting (Applied Language Solutions Ltd),644.18
202009,Aug,2.02009E+11,R5835,Operational Equipment - Testing Kits & Consumables,D.Tec International Ltd,"1,723.00"
202009,Aug,2.02009E+11,R5835,Operational Equipment - Testing Kits & Consumables,D.Tec International Ltd,"1,723.00"
202009,Aug,2.02009E+11,R5835,Operational Equipment - Testing Kits & Consumables,D.Tec International Ltd,"1,723.00"
202009,Aug,2.02009E+11,R5980,Firearms Equipment,Edgar Brothers,"1,150.00"
202009,Aug,2.02009E+11,R4940,First Aid Equipment / Consumables,S P Services UK Ltd,"2,333.73"
202009,Aug,2.02009E+11,R6660,Counsel Fees,Trinity Chambers (Newcastle-upon-Tyne),"1,008.00"
202009,Aug,2.02009E+11,B4006,Disclosure of information would breach the Data Protection Act 1998 ,Redacted,"2,880.00"
202009,Aug,2.02009E+11,R6660,Disclosure of information would breach the Data Protection Act 1998 ,Redacted,"1,000.00"
202009,Aug,2.02009E+11,R6660,Counsel Fees,5 Essex Court,"1,200.00"
202009,Aug,2.02009E+11,R5630,Courier Services - Internal Deliveries,Cumbria County Council,"3,325.89"
202009,Aug,2.02009E+11,R4090,The information is confidential or would attract an exemption under the Freedom of Information Act e.g. where disclosure could be prejudicial to the commercial interests of any person including the authority,Redacted,514.8
202009,Aug,2.02009E+11,R4090,The information is confidential or would attract an exemption under the Freedom of Information Act e.g. where disclosure could be prejudicial to the commercial interests of any person including the authority,Redacted,530.43
202009,Aug,2.02009E+11,R4090,The information is confidential or would attract an exemption under the Freedom of Information Act e.g. where disclosure could be prejudicial to the commercial interests of any person including the authority,Redacted,587.76
202009,Aug,2.02009E+11,R4090,The information is confidential or would attract an exemption under the Freedom of Information Act e.g. where disclosure could be prejudicial to the commercial interests of any person including the authority,Redacted,786.96
202009,Aug,2.02009E+11,R3670,Vehicle Hire - Car Share Scheme,Enterprise Car Club,"3,720.00"
202009,Aug,2.02009E+11,R6850,Hotel Accommodation - Training,Primary Care Commisioning Community Interest Company,"2,235.00"
202009,Sep,2.02009E+11,R2700,Cleaning Contract,Bulloughs Cleaning Services Ltd,"6,207.08"
202009,Sep,2.02009E+11,R2700,Cleaning Contract,Bulloughs Cleaning Services Ltd,"3,325.24"
202009,Sep,2.02009E+11,R2865,Premises Signage,B K Screenprint,"4,125.40"
202009,Sep,2.02009E+11,R4555,Protective Clothing,Thomas Graham and Sons Limited,"9,504.00"
202009,Sep,2.02009E+11,R4555,Protective Clothing,Thomas Graham and Sons Limited,"9,676.80"
202009,Sep,2.02009E+11,R2410,Minor Works,R B Loveridge & Son Ltd,"1,065.79"
202009,Sep,2.02009E+11,R2140,Unplanned Building Maintenance Internal Maintenance,Frederick Potts and Sons Ltd,778
202009,Sep,2.02009E+11,R5965,Crime Prevention - Labour Costs / Fitting,Solon Security Limited,581.01
202009,Sep,2.02009E+11,R1610,CID Training,Alex Preston,850
202009,Sep,2.02009E+11,R4175,Print Unit - Digital Copier Click Charges,Xerox UK Ltd,903.66
202009,Sep,2.02009E+11,R6730,Non-Staff Advertising,Brilliant Trees Media,727.5
202009,Sep,2.02009E+11,R6730,Non-Staff Advertising,Brilliant Trees Media,727.5
202009,Sep,2.02009E+11,R2720,Other Cleaning & Domestic Equipment,Arrow County Supplies,"1,238.80"
202009,Sep,2.02009E+11,R2720,Other Cleaning & Domestic Equipment,Arrow County Supplies,"1,393.48"
202009,Sep,2.02009E+11,R2170,Unplanned Building Maintenance External Maintenance,HCL Safety Ltd,"1,460.87"
202009,Sep,2.02009E+11,R3110,Vehicle Maintenance - Tyres & Tubes,Goodyear Dunlop Tyres UK Limited,"10,991.93"
202009,Sep,2.02009E+11,R3450,Accident Damage (Below Insurance Excess)),National Windscreens,588.2
202009,Sep,2.02009E+11,R3510,Vehicle Fuel,Allstar Business Solutions Ltd,"1,360.43"
202009,Sep,2.02009E+11,R3120,Vehicle Maintenance - Parts Purchase,Ciceley Commercials,"1,036.64"
202009,Sep,2.02009E+11,R3460,Accident Damage (Below Insurance Threshold),James Alpe Ltd,"1,430.27"
202009,Sep,2.02009E+11,R3460,Accident Damage (Below Insurance Threshold),James Alpe Ltd,"1,000.00"
202009,Sep,2.02009E+11,R3460,Accident Damage (Below Insurance Threshold),James Alpe Ltd,"1,000.00"
202009,Sep,2.02009E+11,R3460,Accident Damage (Below Insurance Threshold),James Alpe Ltd,"1,000.00"
202009,Sep,2.02009E+11,R3460,Accident Damage (Below Insurance Threshold),James Alpe Ltd,868.21
202009,Sep,2.02009E+11,R3460,Accident Damage (Below Insurance Threshold),James Alpe Ltd,"1,000.00"
202009,Sep,2.02009E+11,R2700,Cleaning Contract,Bulloughs Cleaning Services Ltd,"13,867.44"
202009,Sep,2.02009E+11,R2700,Cleaning Contract,Bulloughs Cleaning Services Ltd,"4,167.26"
202009,Sep,2.02009E+11,R2700,Cleaning Contract,Bulloughs Cleaning Services Ltd,634.03
202009,Sep,2.02009E+11,R2700,Cleaning Contract,Bulloughs Cleaning Services Ltd,"5,628.91"
202009,Sep,2.02009E+11,R2700,Cleaning Contract,Bulloughs Cleaning Services Ltd,"2,775.79"
202009,Sep,2.02009E+11,R2700,Cleaning Contract,Bulloughs Cleaning Services Ltd,"3,867.57"
202009,Sep,2.02009E+11,R2700,Cleaning Contract,Bulloughs Cleaning Services Ltd,"1,585.06"
202009,Sep,2.02009E+11,R2700,Cleaning Contract,Bulloughs Cleaning Services Ltd,507.22
202009,Sep,2.02009E+11,R2700,Cleaning Contract,Bulloughs Cleaning Services Ltd,634.02
202009,Sep,2.02009E+11,R2700,Cleaning Contract,Bulloughs Cleaning Services Ltd,"2,897.94"
202009,Sep,2.02009E+11,R2700,Cleaning Contract,Bulloughs Cleaning Services Ltd,"1,585.06"
202009,Sep,2.02009E+11,R4540,Canteen - Hot Drink Machines,Rijo 42 Ingredients Ltd,509.94
202009,Sep,2.02009E+11,R2080,Unplanned Building Services External Other,BID Group Ltd,552
202009,Sep,2.02009E+11,R7006,North West Ambulance Service - Estates Management Collaboration,BID Group Ltd,"1,144.00"
202009,Sep,2.02009E+11,R7006,North West Ambulance Service - Estates Management Collaboration,BID Group Ltd,539.25
202009,Sep,2.02009E+11,R7006,North West Ambulance Service - Estates Management Collaboration,BID Group Ltd,525
202009,Sep,2.02009E+11,R2750,Temporary Toilet Units / Washing Facilities,Borderloos and Event Hire,"1,771.43"
202009,Sep,2.02009E+11,R4540,Canteen - Hot Drink Machines,BNP Paribas Leasing Solutions Ltd,559.99
202009,Sep,2.02009E+11,R4540,Canteen - Hot Drink Machines,BNP Paribas Leasing Solutions Ltd,559.99
202009,Sep,2.02009E+11,R4540,Canteen - Hot Drink Machines,BNP Paribas Leasing Solutions Ltd,559.99
202009,Sep,2.02009E+11,R4520,Canteen - Purchase of Food / Ingredients,Pioneer Foodservice,527.61
202009,Sep,2.02009E+11,R4520,Canteen - Purchase of Food / Ingredients,Pioneer Foodservice,"1,083.45"
202009,Sep,2.02009E+11,R4520,Canteen - Purchase of Food / Ingredients,Pioneer Foodservice,547.04
202009,Sep,2.02009E+11,R4520,Canteen - Purchase of Food / Ingredients,Pioneer Foodservice,507.34
202009,Sep,2.02009E+11,R3450,Accident Damage (Below Insurance Excess)),Thompson Accident Repair Centre Ltd,657.82
202009,Sep,2.02009E+11,R2080,Unplanned Building Services External Other,D Brown Building and Joinery Limited,740
202009,Sep,2.02009E+11,R2070,Unplanned Building Services Internal Other,S M Flooring Ltd,670
202009,Sep,2.02009E+11,R2205,Planned Survey Non Structural Maintenance,Refrigeration (Mitton) Ltd,"13,627.00"
202009,Sep,2.02009E+11,R2830,Professional Fees,Unwin Jones Partnership,800
202009,Sep,2.02009E+11,R2140,Unplanned Building Maintenance Internal Maintenance,Carlisle Refrigeration Limited,"1,114.57"
202009,Sep,2.02009E+11,R2140,Unplanned Building Maintenance Internal Maintenance,Carlisle Refrigeration Limited,"2,302.09"
202009,Sep,2.02009E+11,R3120,Vehicle Maintenance - Parts Purchase,Lloyd Motorrad,584.34
202009,Sep,2.02009E+11,R3120,Vehicle Maintenance - Parts Purchase,K and S McKenzie  Ltd,799.96
202009,Sep,2.02009E+11,R3120,Vehicle Maintenance - Parts Purchase,K and S McKenzie  Ltd,-960
202009,Sep,2.02009E+11,R2160,Unplanned Building Maintenance Environmental Services/Plumbing,Cumbria Mechanical and Plumbing Ltd,614.41
202009,Sep,2.02009E+11,R2160,Unplanned Building Maintenance Environmental Services/Plumbing,Cumbria Mechanical and Plumbing Ltd,668.72
202009,Sep,2.02009E+11,R7006,North West Ambulance Service - Estates Management Collaboration,Cumbria Mechanical and Plumbing Ltd,"7,415.00"
202009,Sep,2.02009E+11,R7006,North West Ambulance Service - Estates Management Collaboration,Lambert-gill Ltd,"6,142.50"
202009,Sep,2.02009E+11,R2150,Unplanned Building Maintenance Electrics,JJ Group (Contracting) Ltd,"2,475.00"
202009,Sep,2.02009E+11,R3120,Vehicle Maintenance - Parts Purchase,Arnold Clark Automobiles Ltd,555.64
202009,Sep,2.02009E+11,R2600,Rent,Walton Goodland Limited,"1,750.00"
202009,Sep,2.02009E+11,R2660,Business Rates,Carlisle City Council,"273,920.00"
202009,Sep,2.02009E+11,R2660,Business Rates,Carlisle City Council,"17,839.25"
202009,Sep,2.02009E+11,R7006,North West Ambulance Service - Estates Management Collaboration,Andidrain Ltd,524
202009,Sep,2.02009E+11,R2610,Estates Leases,Cumbria County Council,"1,706.25"
202009,Sep,2.02009E+11,R2460,Grounds Maintenance - Contract,S Nicholson Grounds Maintenance,700
202009,Sep,2.02009E+11,R2660,Business Rates,Eden District Council,"28,502.13"
202009,Sep,2.02009E+11,R2660,Business Rates,Eden District Council,"22,704.50"
202009,Sep,2.02009E+11,R2660,Business Rates,Eden District Council,"224,000.00"
202009,Sep,2.02009E+11,R2730,Refuse,Enterprise Managed Services Ltd,"1,159.60"
202009,Sep,2.02009E+11,R7006,North West Ambulance Service - Estates Management Collaboration,R B Loveridge & Son Ltd,"1,343.97"
202009,Sep,2.02009E+11,R2060,Unplanned Building Services Environmental Services/Plumbing,R B Loveridge & Son Ltd,857.73
202009,Sep,2.02009E+11,R7006,North West Ambulance Service - Estates Management Collaboration,R B Loveridge & Son Ltd,"2,504.59"
202009,Sep,2.02009E+11,R7006,North West Ambulance Service - Estates Management Collaboration,R B Loveridge & Son Ltd,638.12
202009,Sep,2.02009E+11,R7006,North West Ambulance Service - Estates Management Collaboration,John Sandelands Limited,820
202009,Sep,2.02009E+11,R2660,Business Rates,Allerdale Borough Council,"16,217.50"
202009,Sep,2.02009E+11,R2160,Unplanned Building Maintenance Environmental Services/Plumbing,Thomas Armstrong Construction Ltd,"3,376.83"
202009,Sep,2.02009E+11,R7006,North West Ambulance Service - Estates Management Collaboration,Frederick Potts and Sons Ltd,"1,185.00"
202009,Sep,2.02009E+11,R2080,Unplanned Building Services External Other,Frederick Potts and Sons Ltd,734.6
202009,Sep,2.02009E+11,R2170,Unplanned Building Maintenance External Maintenance,Frederick Potts and Sons Ltd,"1,463.39"
202009,Sep,2.02009E+11,R2220,Planned Survey Internal Maintenance,Frederick Potts and Sons Ltd,"2,093.00"
202009,Sep,2.02009E+11,R2210,Planned Survey External Maintenance,Frederick Potts and Sons Ltd,"4,162.00"
202009,Sep,2.02009E+11,R2660,Business Rates,Copeland Borough Council,"53,760.00"
202009,Sep,2.02009E+11,C2220,Planned Survey Internal Works,Margrange Ltd,"22,652.00"
202009,Sep,2.02009E+11,C2220,Planned Survey Internal Works,Margrange Ltd,"3,500.00"
202009,Sep,2.02009E+11,R2680,PFI Occupancy Charges,West Cumbria Estates Management Limited,"105,000.00"
202009,Sep,2.02009E+11,R2500,Oil,Certas Energy Limited,"4,165.08"
202009,Sep,2.02009E+11,R2500,Oil,Certas Energy Limited,"2,954.52"
202009,Sep,2.02009E+11,R3120,Vehicle Maintenance - Parts Purchase,Arnold Clark Automobiles Ltd,603.84
202009,Sep,2.02009E+11,R3120,Vehicle Maintenance - Parts Purchase,Arnold Clark Automobiles Ltd,545.28
202009,Sep,2.02009E+11,R3120,Vehicle Maintenance - Parts Purchase,Arnold Clark Automobiles Ltd,537.31
202009,Sep,2.02009E+11,R3120,Vehicle Maintenance - Parts Purchase,The Turbo Guy,507.5
202009,Sep,2.02009E+11,R2510,Electricity,British Gas Trading,"2,743.06"
202009,Sep,2.02009E+11,R3210,Police Vehicle Recovery & Transport,FMG Support (RRRM) Ltd,"5,265.00"
202009,Sep,2.02009E+11,R2730,Refuse,Biffa Waste Services Limited,610.08
202009,Sep,2.02009E+11,R2730,Refuse,Biffa Waste Services Limited,513.6
202009,Sep,2.02009E+11,R2730,Refuse,Biffa Waste Services Limited,754.8
202009,Sep,2.02009E+11,R2265,Planned Servicing Fire Systems,FTS Fire and  Security Ltd,600
202009,Sep,2.02009E+11,R3450,Accident Damage (Below Insurance Excess)),Long Lane Garage,980.3
202009,Sep,2.02009E+11,R2660,Business Rates,Barrow Borough Council,"171,520.00"
202009,Sep,2.02009E+11,R3120,Vehicle Maintenance - Parts Purchase,D Stoker Group Ltd,987.18
202009,Sep,2.02009E+11,R3120,Vehicle Maintenance - Parts Purchase,Guy Perry Ltd,539.87
202009,Sep,2.02009E+11,R2600,Rent,Dalton Community Association,"1,100.00"
202009,Sep,2.02009E+11,R2740,Destruction of Confidential Waste,Shred it,711
202009,Sep,2.02009E+11,R2610,Estates Leases,Ulverston Properties Limited,820.83
202009,Sep,2.02009E+11,R3120,Vehicle Maintenance - Parts Purchase,Ford Motor Co Ltd T/A Parts Plus,526.15
202009,Sep,2.02009E+11,R3120,Vehicle Maintenance - Parts Purchase,Ford Motor Co Ltd T/A Parts Plus,526.15
202009,Sep,2.02009E+11,R2510,Electricity,EDF Energy,"1,663.75"
202009,Sep,2.02009E+11,R2510,Electricity,EDF Energy,"5,695.79"
202009,Sep,2.02009E+11,R2510,Electricity,EDF Energy,"3,335.45"
202009,Sep,2.02009E+11,R2510,Electricity,EDF Energy,"14,340.43"
202009,Sep,2.02009E+11,R2530,Climate Change Levy,EDF Energy,931.32
202009,Sep,2.02009E+11,R2510,Electricity,EDF Energy,"11,030.91"
202009,Sep,2.02009E+11,R2530,Climate Change Levy,EDF Energy,721.78
202009,Sep,2.02009E+11,R2150,Unplanned Building Maintenance Electrics,W S Controls Ltd,"1,986.00"
202009,Sep,2.02009E+11,R2020,Unplanned Building Services HVAC System,W S Controls Ltd,560
202009,Sep,2.02009E+11,R2555,Water Rates,Water Plus Ltd,"-1,847.19"
202009,Sep,2.02009E+11,R2565,Sewerage & Environmental Services,Water Plus Ltd,"42,208.74"
202009,Sep,2.02009E+11,R3120,Vehicle Maintenance - Parts Purchase,Castrol (UK) Ltd,513.76
202009,Sep,2.02009E+11,R3120,Vehicle Maintenance - Parts Purchase,Castrol (UK) Ltd,524.16
202009,Sep,2.02009E+11,R3120,Vehicle Maintenance - Parts Purchase,Lloyd Motors Ltd,510.33
202009,Sep,2.02009E+11,R3120,Vehicle Maintenance - Parts Purchase,Lloyd Motors Ltd,530.14
202009,Sep,2.02009E+11,R3120,Vehicle Maintenance - Parts Purchase,Lloyd Motors Ltd,870.45
202009,Sep,2.02009E+11,R3120,Vehicle Maintenance - Parts Purchase,Lloyd Motors Ltd,"1,040.98"
202009,Sep,2.02009E+11,R2286,Planned Servicing Generators/UPS,Burtonwood Generator & Switchgear Services Limited,744
202009,Sep,2.02009E+11,R2286,Planned Servicing Generators/UPS,Burtonwood Generator & Switchgear Services Limited,547
202009,Sep,2.02009E+11,R2286,Planned Servicing Generators/UPS,Burtonwood Generator & Switchgear Services Limited,547
202009,Sep,2.02009E+11,R2286,Planned Servicing Generators/UPS,Burtonwood Generator & Switchgear Services Limited,547
202009,Sep,2.02009E+11,R2505,Gas,Corona Energy,"5,984.72"
202009,Sep,2.02009E+11,R2530,Climate Change Levy,Corona Energy,682.55
202009,Sep,2.02009E+11,R2505,Gas,Corona Energy,"5,272.78"
202009,Sep,2.02009E+11,R2530,Climate Change Levy,Corona Energy,523.67
202009,Sep,2.02009E+11,R2505,Gas,Corona Energy,"7,224.34"
202009,Sep,2.02009E+11,R2530,Climate Change Levy,Corona Energy,935.95
202009,Sep,2.02009E+11,R3510,Vehicle Fuel,Allstar Business Solutions Ltd,587.09
202009,Sep,2.02009E+11,R3510,Vehicle Fuel,Allstar Business Solutions Ltd,"55,489.33"
202009,Sep,2.02009E+11,R3510,Vehicle Fuel,Allstar Business Solutions Ltd,"1,049.76"
202009,Sep,2.02009E+11,R3510,Vehicle Fuel,Allstar Business Solutions Ltd,"2,926.56"
202009,Sep,2.02009E+11,R3510,Vehicle Fuel,Allstar Business Solutions Ltd,"1,008.91"
202009,Sep,2.02009E+11,R3510,Vehicle Fuel,Allstar Business Solutions Ltd,"2,613.97"
202009,Sep,2.02009E+11,C3905,Vehicle Adaptations - Capital,Hampson Group Ltd T/A Seatskin2 uk,"1,019.80"
202009,Sep,2.02009E+11,C3905,Vehicle Adaptations - Capital,RSG Engineering Ltd,"3,963.15"
202009,Sep,2.02009E+11,R2730,Refuse,City Electrical Factors Ltd,"1,877.56"
202009,Sep,2.02009E+11,R1120,Ergonomist,Green Ends Limited,"2,520.00"
202009,Sep,2.02009E+11,R1120,Ergonomist,Green Ends Limited,"2,520.00"
202009,Sep,2.02009E+11,R0500,Agency Staff,Comensura Ltd,"1,032.80"
202009,Sep,2.02009E+11,R0500,Agency Staff,Comensura Ltd,"2,219.45"
202009,Sep,2.02009E+11,R0500,Agency Staff,Comensura Ltd,888.8
202009,Sep,2.02009E+11,R0500,Agency Staff,Comensura Ltd,"1,032.80"
202009,Sep,2.02009E+11,R0500,Agency Staff,Comensura Ltd,"2,219.45"
202009,Sep,2.02009E+11,R0500,Agency Staff,Comensura Ltd,"1,013.98"
202009,Sep,2.02009E+11,R0500,Agency Staff,Comensura Ltd,"2,074.89"
202009,Sep,2.02009E+11,R0500,Agency Staff,Comensura Ltd,"1,331.67"
202009,Sep,2.02009E+11,R0500,Agency Staff,Comensura Ltd,829.1
202009,Sep,2.02009E+11,R0500,Agency Staff,Comensura Ltd,662.43
202009,Sep,2.02009E+11,R0500,Agency Staff,Comensura Ltd,955.34
202009,Sep,2.02009E+11,R0500,Agency Staff,Comensura Ltd,"2,219.45"
202009,Sep,2.02009E+11,R0500,Agency Staff,Comensura Ltd,983.31
202009,Sep,2.02009E+11,R0500,Agency Staff,Comensura Ltd,"1,098.75"
202009,Sep,2.02009E+11,R0500,Agency Staff,Comensura Ltd,"1,006.98"
202009,Sep,2.02009E+11,R0500,Agency Staff,Comensura Ltd,"2,219.45"
202009,Sep,2.02009E+11,R0500,Agency Staff,Comensura Ltd,"1,014.00"
202009,Sep,2.02009E+11,R0500,Agency Staff,Comensura Ltd,529.8
202009,Sep,2.02009E+11,R0500,Agency Staff,Comensura Ltd,"1,006.02"
202009,Sep,2.02009E+11,R0500,Agency Staff,Comensura Ltd,"1,032.80"
202009,Sep,2.02009E+11,R0500,Agency Staff,Comensura Ltd,597.12
202009,Sep,2.02009E+11,R0500,Agency Staff,Comensura Ltd,"2,219.45"
202009,Sep,2.02009E+11,R0500,Agency Staff,Comensura Ltd,919.47
202009,Sep,2.02009E+11,R0500,Agency Staff,Comensura Ltd,529.8
202009,Sep,2.02009E+11,R1110,Force Doctor Fees,Comensura Ltd,"4,593.54"
202009,Sep,2.02009E+11,R5600,Postage Costs,Royal Mail,"1,667.08"
202009,Sep,2.02009E+11,R5600,Postage Costs,Royal Mail,"1,664.59"
202009,Sep,2.02009E+11,R2800,Security and Alarms (inc locks),Chubb Fire and Security Limited,540.8
202009,Sep,2.02009E+11,R3660,The information is confidential or would attract an exemption under the Freedom of Information Act e.g. where disclosure could be prejudicial to the commercial interests of any person including the authority,Redacted,"2,191.25"
202009,Sep,2.02009E+11,R2600,Rent,Reed Rains,750
202009,Sep,2.02009E+11,R6785,Contributions - PCC Commissioning Services,Age UK Carlisle and Eden,"3,500.00"
202009,Sep,2.02009E+11,R6785,Contributions - PCC Commissioning Services,Carlisle Youth Zone,"3,367.39"
202009,Sep,2.02009E+11,R6785,Contributions - PCC Commissioning Services,Carlisle One World Centre,"3,500.00"
202009,Sep,2.02009E+11,R6785,Contributions - PCC Commissioning Services,Spiral,"3,271.10"
202009,Sep,2.02009E+11,R6785,Contributions - PCC Commissioning Services,Carlisle Key,"2,940.00"
202009,Sep,2.02009E+11,R6785,Contributions - PCC Commissioning Services,Solway Network Youth Church,"3,302.10"
202009,Sep,2.02009E+11,R6785,Contributions - PCC Commissioning Services,Happy Hooves RDA Group,"3,500.00"
202009,Sep,2.02009E+11,R2505,Gas,North Cumbria Integrated care NHS Foundation Trust (NCIC NHS FT),950.1
202009,Sep,2.02009E+11,R2510,Electricity,North Cumbria Integrated care NHS Foundation Trust (NCIC NHS FT),"1,342.42"
202009,Sep,2.02009E+11,R2700,Cleaning Contract,North Cumbria Integrated care NHS Foundation Trust (NCIC NHS FT),743.47
202009,Sep,2.02009E+11,R2700,Cleaning Contract,North Cumbria Integrated care NHS Foundation Trust (NCIC NHS FT),743.47
202009,Sep,2.02009E+11,R2600,Rent,North Cumbria Integrated care NHS Foundation Trust (NCIC NHS FT),"1,400.00"
202009,Sep,2.02009E+11,R6785,Contributions - PCC Commissioning Services,People First Independent Advocacy,"3,500.00"
202009,Sep,2.02009E+11,R6785,Contributions - PCC Commissioning Services,St John's Methodist Church,"1,255.29"
202009,Sep,2.02009E+11,R6785,Contributions - PCC Commissioning Services,Time to share bereavement services,"2,149.00"
202009,Sep,2.02009E+11,R6785,Contributions - PCC Commissioning Services,Whitehaven Harbour Youth Project,"2,800.00"
202009,Sep,2.02009E+11,R4920,SARC Doctors,G4S Health Services (UK) Ltd,"19,731.65"
202009,Sep,2.02009E+11,R6785,Contributions - PCC Commissioning Services,Victim Support,"73,369.42"
202009,Sep,2.02009E+11,R6785,Contributions - PCC Commissioning Services,Victim Support,"14,191.25"
202009,Sep,2.02009E+11,R6785,Contributions - PCC Commissioning Services,Brake the road safety charity,"2,500.00"
202009,Sep,2.02009E+11,R6785,Contributions - PCC Commissioning Services,Kirkby Lonsdale Town Council,"6,000.00"
202009,Sep,2.02009E+11,R6785,Contributions - PCC Commissioning Services,Gateway Church (Kendal),"3,364.90"
202009,Sep,2.02009E+11,R6785,Contributions - PCC Commissioning Services,Bay Trust Radio,"3,500.00"
202009,Sep,2.02009E+11,R5720,Member Attendance Allowances,Misconduct Hearing Independent Panel,"1,800.00"
202009,Sep,2.02009E+11,R6785,Contributions - PCC Commissioning Services,SAFA Cumbria,"3,500.00"
202009,Sep,2.02009E+11,R6785,Contributions - PCC Commissioning Services,CANDOFM,"3,213.00"
202009,Sep,2.02009E+11,R0500,Agency Staff,Comensura Ltd,694.83
202009,Sep,2.02009E+11,R0500,Agency Staff,Comensura Ltd,975.2
202009,Sep,2.02009E+11,R0500,Agency Staff,Comensura Ltd,914.25
202009,Sep,2.02009E+11,R0500,Agency Staff,Comensura Ltd,865.49
202009,Sep,2.02009E+11,R6830,External Audit Fee,Grant Thornton UK LLP,"4,200.00"
202009,Sep,2.02009E+11,R6830,External Audit Fee,Grant Thornton UK LLP,"5,840.00"
202009,Sep,2.02009E+11,R6710,Subscriptions,The Chartered Institute of Procurement & Supply,"1,500.00"
202009,Sep,2.02009E+11,R7290,Other Third Party Payments,Sancus Solutions Ltd,700
202009,Sep,2.02009E+11,R6785,Contributions - PCC Commissioning Services,Remedi Restorative Services,"11,641.67"
202009,Sep,2.02009E+11,R1720,Other Support Function Training,Misdconduct training,"2,500.00"
202009,Sep,2.02009E+11,R4710,Forensic Analysis - Serious Crime,Eurofins Forensic Services Ltd,737.82
202009,Sep,2.02009E+11,B2312,Inventories/Stocks - Uniforms - Purchases,Firmin and Sons Ltd,536
202009,Sep,2.02009E+11,R4000,Office Equipment - Purchase,Buckle and Jones,636
202009,Sep,2.02009E+11,B2312,Inventories/Stocks - Uniforms - Purchases,Toye Kenning & Spencer Ltd,562.74
202009,Sep,2.02009E+11,B2312,Inventories/Stocks - Uniforms - Purchases,Endura Ltd,"1,957.75"
202009,Sep,2.02009E+11,B2312,Inventories/Stocks - Uniforms - Purchases,Keela International Ltd,960.05
